SERVICE_CODE,ORGANISATION_UNIT,EXPENDITURE_CATEGORY,EXPENDITURE_DESCRIPTION,EXPENDITURE_CODE,NARRATIVE,DATE,TRANSATION_CODE,NET_AMOUNT,SUPPLIER_CODE,SUPPLIER_NAME,FROM_DATE,TO_DATE,FINANCIAL_PERIOD_YEAR
P&V,GUNPOWDER PARK,PREMISES RELATED EXPENDITURE,GM MAIN CONTRACT SCHEDULED,2141,GM Core Nov 2023,19/12/2023 00:00:00,280256,1451.76,GL0214,GLENDALE GROUNDS MANAGEMENT LIMITED,27/11/2023 00:00:00,31/12/2023 00:00:00,P09-2024
P&V,RIVER LEE COUNTRY PARK,PREMISES RELATED EXPENDITURE,GM MAIN CONTRACT SCHEDULED,2141,GM Core Nov 2023,19/12/2023 00:00:00,280256,96.67,GL0214,GLENDALE GROUNDS MANAGEMENT LIMITED,27/11/2023 00:00:00,31/12/2023 00:00:00,P09-2024
P&V,RIVER LEE COUNTRY PARK,PREMISES RELATED EXPENDITURE,GM MAIN CONTRACT SCHEDULED,2141,GM Core Nov 2023,19/12/2023 00:00:00,280256,8489.76,GL0214,GLENDALE GROUNDS MANAGEMENT LIMITED,27/11/2023 00:00:00,31/12/2023 00:00:00,P09-2024
,LEE VALLEY VELOPARK,PREMISES RELATED EXPENDITURE,GM MAIN CONTRACT SCHEDULED,2141,GM Core Nov 2023,19/12/2023 00:00:00,280256,3689.34,GL0214,GLENDALE GROUNDS MANAGEMENT LIMITED,27/11/2023 00:00:00,31/12/2023 00:00:00,P09-2024
,LV HOCKEY AND TENNIS CENTRE,PREMISES RELATED EXPENDITURE,GM MAIN CONTRACT SCHEDULED,2141,GM Core Nov 2023,19/12/2023 00:00:00,280256,2262.58,GL0214,GLENDALE GROUNDS MANAGEMENT LIMITED,27/11/2023 00:00:00,31/12/2023 00:00:00,P09-2024
P&V,THREE MILLS,PREMISES RELATED EXPENDITURE,GM MAIN CONTRACT SCHEDULED,2141,GM Core Nov 2023,19/12/2023 00:00:00,280256,826.92,GL0214,GLENDALE GROUNDS MANAGEMENT LIMITED,27/11/2023 00:00:00,31/12/2023 00:00:00,P09-2024
,LEE VALLEY RIDING CENTRE,PREMISES RELATED EXPENDITURE,GM MAIN CONTRACT SCHEDULED,2141,GM Core Nov 2023,19/12/2023 00:00:00,280256,286.76,GL0214,GLENDALE GROUNDS MANAGEMENT LIMITED,27/11/2023 00:00:00,31/12/2023 00:00:00,P09-2024
,LEE VALLEY ICE CENTRE,PREMISES RELATED EXPENDITURE,GM MAIN CONTRACT SCHEDULED,2141,GM Core Nov 2023,19/12/2023 00:00:00,280256,462,GL0214,GLENDALE GROUNDS MANAGEMENT LIMITED,27/11/2023 00:00:00,31/12/2023 00:00:00,P09-2024
P&V,FORMER LV LIDO SITE,PREMISES RELATED EXPENDITURE,GM MAIN CONTRACT SCHEDULED,2141,GM Core Nov 2023,19/12/2023 00:00:00,280256,566.45,GL0214,GLENDALE GROUNDS MANAGEMENT LIMITED,27/11/2023 00:00:00,31/12/2023 00:00:00,P09-2024
,LEE VALLEY ATHLETICS CENTRE,PREMISES RELATED EXPENDITURE,GM MAIN CONTRACT SCHEDULED,2141,GM Core Nov 2023,19/12/2023 00:00:00,280256,342.66,GL0214,GLENDALE GROUNDS MANAGEMENT LIMITED,27/11/2023 00:00:00,31/12/2023 00:00:00,P09-2024
,LEE VALLEY WHITE WATER CENTRE,PREMISES RELATED EXPENDITURE,GM MAIN CONTRACT SCHEDULED,2141,GM Core Nov 2023,19/12/2023 00:00:00,280256,1781.46,GL0214,GLENDALE GROUNDS MANAGEMENT LIMITED,27/11/2023 00:00:00,31/12/2023 00:00:00,P09-2024
,LEE VALLEY WATERWORKS CENTRE,PREMISES RELATED EXPENDITURE,GM HORTICULTURE SCHEDULED,2143,GM Core Nov 2023,19/12/2023 00:00:00,280256,86.56,GL0214,GLENDALE GROUNDS MANAGEMENT LIMITED,27/11/2023 00:00:00,31/12/2023 00:00:00,P09-2024
P&V,NORTH AREA RANGERS,PREMISES RELATED EXPENDITURE,GM HORTICULTURE SCHEDULED,2143,GM Core Nov 2023,19/12/2023 00:00:00,280256,127.59,GL0214,GLENDALE GROUNDS MANAGEMENT LIMITED,27/11/2023 00:00:00,31/12/2023 00:00:00,P09-2024
P&V,SOUTH AREA RANGERS,PREMISES RELATED EXPENDITURE,GM HORTICULTURE SCHEDULED,2143,GM Core Nov 2023,19/12/2023 00:00:00,280256,73.78,GL0214,GLENDALE GROUNDS MANAGEMENT LIMITED,27/11/2023 00:00:00,31/12/2023 00:00:00,P09-2024
P&V,ABBEY GARDENS,PREMISES RELATED EXPENDITURE,GM HORTICULTURE SCHEDULED,2143,GM Core Nov 2023,19/12/2023 00:00:00,280256,1005.46,GL0214,GLENDALE GROUNDS MANAGEMENT LIMITED,27/11/2023 00:00:00,31/12/2023 00:00:00,P09-2024
P&V,GUNPOWDER PARK,PREMISES RELATED EXPENDITURE,GM HORTICULTURE SCHEDULED,2143,GM Core Nov 2023,19/12/2023 00:00:00,280256,131.99,GL0214,GLENDALE GROUNDS MANAGEMENT LIMITED,27/11/2023 00:00:00,31/12/2023 00:00:00,P09-2024
P&V,RIVER LEE COUNTRY PARK,PREMISES RELATED EXPENDITURE,GM HORTICULTURE SCHEDULED,2143,GM Core Nov 2023,19/12/2023 00:00:00,280256,68.49,GL0214,GLENDALE GROUNDS MANAGEMENT LIMITED,27/11/2023 00:00:00,31/12/2023 00:00:00,P09-2024
,LEE VALLEY VELOPARK,PREMISES RELATED EXPENDITURE,GM HORTICULTURE SCHEDULED,2143,GM Core Nov 2023,19/12/2023 00:00:00,280256,587.09,GL0214,GLENDALE GROUNDS MANAGEMENT LIMITED,27/11/2023 00:00:00,31/12/2023 00:00:00,P09-2024
,LV HOCKEY AND TENNIS CENTRE,PREMISES RELATED EXPENDITURE,GM HORTICULTURE SCHEDULED,2143,GM Core Nov 2023,19/12/2023 00:00:00,280256,845.45,GL0214,GLENDALE GROUNDS MANAGEMENT LIMITED,27/11/2023 00:00:00,31/12/2023 00:00:00,P09-2024
P&V,THREE MILLS,PREMISES RELATED EXPENDITURE,GM HORTICULTURE SCHEDULED,2143,GM Core Nov 2023,19/12/2023 00:00:00,280256,27.44,GL0214,GLENDALE GROUNDS MANAGEMENT LIMITED,27/11/2023 00:00:00,31/12/2023 00:00:00,P09-2024
,LEE VALLEY RIDING CENTRE,PREMISES RELATED EXPENDITURE,GM HORTICULTURE SCHEDULED,2143,GM Core Nov 2023,19/12/2023 00:00:00,280256,6.86,GL0214,GLENDALE GROUNDS MANAGEMENT LIMITED,27/11/2023 00:00:00,31/12/2023 00:00:00,P09-2024
P&V,FORMER LV LIDO SITE,PREMISES RELATED EXPENDITURE,GM HORTICULTURE SCHEDULED,2143,GM Core Nov 2023,19/12/2023 00:00:00,280256,6.54,GL0214,GLENDALE GROUNDS MANAGEMENT LIMITED,27/11/2023 00:00:00,31/12/2023 00:00:00,P09-2024
,LEE VALLEY WATERWORKS CENTRE,PREMISES RELATED EXPENDITURE,CONTRACT CLEANING,2120,P124456-SERVICE-Cleaning WaterWorks Centre,19/12/2023 00:00:00,280738,776.16,BR0632,BRITANNIA SERVICES GROUP LTD,27/11/2023 00:00:00,31/12/2023 00:00:00,P09-2024
,LEE VALLEY CAMPSITE,PREMISES RELATED EXPENDITURE,CONTRACT CLEANING,2120,P123546-SERVICE-Site cleaning November 23,12/12/2023 00:00,280355,3752,LI0305,LIMPIAR CLEANING,27/11/2023 00:00:00,31/12/2023 00:00:00,P09-2024
,LEE VALLEY CAMPSITE,PREMISES RELATED EXPENDITURE,CONTRACT CLEANING,2120,P122615-SERVICE-Dec - Jan 24,12/12/2023 00:00,280527,93.56,IN0012,INITIAL WASHROOM HYGIENE,27/11/2023 00:00:00,31/12/2023 00:00:00,P09-2024
,LEE VALLEY CARAVAN PARK,PREMISES RELATED EXPENDITURE,CONTRACT CLEANING,2120,P124299-SERVICE-Contract Cleaning,12/06/2023 00:00,280353,4140,LI0305,LIMPIAR CLEANING,27/11/2023 00:00:00,31/12/2023 00:00:00,P09-2024
,LEE VALLEY CARAVAN PARK,PREMISES RELATED EXPENDITURE,CONTRACT CLEANING,2120,P124474-SERVICE-Hygiene supplies,31/12/2023 00:00:00,280869,98.87,IN0012,INITIAL WASHROOM HYGIENE,27/11/2023 00:00:00,31/12/2023 00:00:00,P09-2024
P&V,WILDLIFE DISCOVERY CENTRE,PREMISES RELATED EXPENDITURE,CONTRACT CLEANING,2120,P123372-SERVICE-Cleaning at Wildlife Discovery Centre,19/12/2023 00:00:00,280735,563.08,BR0632,BRITANNIA SERVICES GROUP LTD,27/11/2023 00:00:00,31/12/2023 00:00:00,P09-2024
P&V,GUNPOWDER PARK,PREMISES RELATED EXPENDITURE,CONTRACT CLEANING,2120,GM Core Nov 2023,19/12/2023 00:00:00,280256,281.26,GL0214,GLENDALE GROUNDS MANAGEMENT LIMITED,27/11/2023 00:00:00,31/12/2023 00:00:00,P09-2024
P&V,RIVER LEE COUNTRY PARK,PREMISES RELATED EXPENDITURE,CONTRACT CLEANING,2120,GM Core Nov 2023,19/12/2023 00:00:00,280256,562.53,GL0214,GLENDALE GROUNDS MANAGEMENT LIMITED,27/11/2023 00:00:00,31/12/2023 00:00:00,P09-2024
,LV LEISURE CENTRE CAMPSITE,PREMISES RELATED EXPENDITURE,CONTRACT CLEANING,2120,P124308-SERVICE-monthly clean,12/06/2023 00:00,280354,1842,LI0305,LIMPIAR CLEANING,27/11/2023 00:00:00,31/12/2023 00:00:00,P09-2024
P&V,MYDDLETON HSE HERITAGE CENTRE,PREMISES RELATED EXPENDITURE,CLEANING CONTRACT,2121,P121876-SERVICE-Tea Room Cleaning,19/12/2023 00:00:00,280737,840.84,BR0632,BRITANNIA SERVICES GROUP LTD,27/11/2023 00:00:00,31/12/2023 00:00:00,P09-2024
,LEE VALLEY CAMPSITE,PREMISES RELATED EXPENDITURE,LINEN SERVICE,2122,P123805-SERVICE-Site Laundry Nov- Mar 24,12/05/2023 00:00,280210,1275.65,JO0168,JOHNSONS STALBRIDGE LINEN SERVICES,27/11/2023 00:00:00,31/12/2023 00:00:00,P09-2024
,LEE VALLEY CARAVAN PARK,PREMISES RELATED EXPENDITURE,LINEN SERVICE,2122,P124278-SERVICE-Linen cleaning servive,12/05/2023 00:00,280209,1262.42,JO0168,JOHNSONS STALBRIDGE LINEN SERVICES,27/11/2023 00:00:00,31/12/2023 00:00:00,P09-2024
,LEE VALLEY MARINA STANSTEAD,PREMISES RELATED EXPENDITURE,GM MAIN CONTRACT SCHEDULED,2141,GM Core Nov 2023,19/12/2023 00:00:00,280256,328.59,GL0214,GLENDALE GROUNDS MANAGEMENT LIMITED,27/11/2023 00:00:00,31/12/2023 00:00:00,P09-2024
,LEE VALLEY WATERWORKS CENTRE,PREMISES RELATED EXPENDITURE,GM MAIN CONTRACT SCHEDULED,2141,GM Core Nov 2023,19/12/2023 00:00:00,280256,135.34,GL0214,GLENDALE GROUNDS MANAGEMENT LIMITED,27/11/2023 00:00:00,31/12/2023 00:00:00,P09-2024
,LEE VALLEY WATERWORKS CENTRE,PREMISES RELATED EXPENDITURE,GM MAIN CONTRACT SCHEDULED,2141,GM Core Nov 2023,19/12/2023 00:00:00,280256,308.67,GL0214,GLENDALE GROUNDS MANAGEMENT LIMITED,27/11/2023 00:00:00,31/12/2023 00:00:00,P09-2024
P&V,LEE VALLEY FARM HOLYFIELDHALL,PREMISES RELATED EXPENDITURE,GM MAIN CONTRACT SCHEDULED,2141,GM Core Nov 2023,19/12/2023 00:00:00,280256,76.23,GL0214,GLENDALE GROUNDS MANAGEMENT LIMITED,27/11/2023 00:00:00,31/12/2023 00:00:00,P09-2024
P&V,EAST INDIA DOCK AND BOW CREEK,PREMISES RELATED EXPENDITURE,GM MAIN CONTRACT SCHEDULED,2141,GM Core Nov 2023,19/12/2023 00:00:00,280256,432.85,GL0214,GLENDALE GROUNDS MANAGEMENT LIMITED,27/11/2023 00:00:00,31/12/2023 00:00:00,P09-2024
P&V,EAST INDIA DOCK AND BOW CREEK,PREMISES RELATED EXPENDITURE,GM MAIN CONTRACT SCHEDULED,2141,GM Core Nov 2023,19/12/2023 00:00:00,280256,483.37,GL0214,GLENDALE GROUNDS MANAGEMENT LIMITED,27/11/2023 00:00:00,31/12/2023 00:00:00,P09-2024
P&V,NORTH AREA RANGERS,PREMISES RELATED EXPENDITURE,GM MAIN CONTRACT SCHEDULED,2141,GM Core Nov 2023,19/12/2023 00:00:00,280256,2886.54,GL0214,GLENDALE GROUNDS MANAGEMENT LIMITED,27/11/2023 00:00:00,31/12/2023 00:00:00,P09-2024
P&V,SOUTH AREA RANGERS,PREMISES RELATED EXPENDITURE,GM MAIN CONTRACT SCHEDULED,2141,GM Core Nov 2023,19/12/2023 00:00:00,280256,3338.71,GL0214,GLENDALE GROUNDS MANAGEMENT LIMITED,27/11/2023 00:00:00,31/12/2023 00:00:00,P09-2024
P&V,SOUTH AREA RANGERS,PREMISES RELATED EXPENDITURE,GM MAIN CONTRACT SCHEDULED,2141,GM Core Nov 2023,19/12/2023 00:00:00,280256,193.35,GL0214,GLENDALE GROUNDS MANAGEMENT LIMITED,27/11/2023 00:00:00,31/12/2023 00:00:00,P09-2024
P&V,ABBEY GARDENS,PREMISES RELATED EXPENDITURE,GM MAIN CONTRACT SCHEDULED,2141,GM Core Nov 2023,19/12/2023 00:00:00,280256,1474.52,GL0214,GLENDALE GROUNDS MANAGEMENT LIMITED,27/11/2023 00:00:00,31/12/2023 00:00:00,P09-2024
,LEE VALLEY WHITE WATER CENTRE,PREMISES RELATED EXPENDITURE,GM HORTICULTURE SCHEDULED,2143,GM Core Nov 2023,19/12/2023 00:00:00,280256,14.98,GL0214,GLENDALE GROUNDS MANAGEMENT LIMITED,27/11/2023 00:00:00,31/12/2023 00:00:00,P09-2024
P&V,NORTH AREA RANGERS,PREMISES RELATED EXPENDITURE,GM ARBORICULTURE UNSCHEDULED,2146,P124015-SERVICE-Tree Works at Glen Faba,19/12/2023 00:00:00,280562,595,MU0030,P J MUSK TREES,27/11/2023 00:00:00,31/12/2023 00:00:00,P09-2024
P&V,GUNPOWDER PARK,PREMISES RELATED EXPENDITURE,GM ARBORICULTURE UNSCHEDULED,2146,P124153-SERVICE-Tree Works at Swan & Pike Pool,19/12/2023 00:00:00,280824,850,PA0222,PARKIN & PARKER TREE SPECIALISTS,27/11/2023 00:00:00,31/12/2023 00:00:00,P09-2024
P&V,GUNPOWDER PARK,PREMISES RELATED EXPENDITURE,GM ARBORICULTURE UNSCHEDULED,2146,P124153-SERVICE-Tree Works at Swan & Pike Pool,19/12/2023 00:00:00,280824,350,PA0222,PARKIN & PARKER TREE SPECIALISTS,27/11/2023 00:00:00,31/12/2023 00:00:00,P09-2024
P&V,GUNPOWDER PARK,PREMISES RELATED EXPENDITURE,GM ARBORICULTURE UNSCHEDULED,2146,P124153-SERVICE-Tree Works at Swan & Pike Pool,19/12/2023 00:00:00,280824,300,PA0222,PARKIN & PARKER TREE SPECIALISTS,27/11/2023 00:00:00,31/12/2023 00:00:00,P09-2024
P&V,GUNPOWDER PARK,PREMISES RELATED EXPENDITURE,GM ARBORICULTURE UNSCHEDULED,2146,P124153-SERVICE-Tree Works at Swan & Pike Pool,19/12/2023 00:00:00,280824,150,PA0222,PARKIN & PARKER TREE SPECIALISTS,27/11/2023 00:00:00,31/12/2023 00:00:00,P09-2024
P&V,GUNPOWDER PARK,PREMISES RELATED EXPENDITURE,GM ARBORICULTURE UNSCHEDULED,2146,P124209-SERVICE-Tree Works at Gunpowder Park,19/12/2023 00:00:00,280825,750,PA0222,PARKIN & PARKER TREE SPECIALISTS,27/11/2023 00:00:00,31/12/2023 00:00:00,P09-2024
P&V,FISHERIES MANAGEMENT,PREMISES RELATED EXPENDITURE,GM NON MAIN CONT UNSCHEDULED,2147,P124429-SERVICE-Install Disabled Swim at Bailey Bridge,19/12/2023 00:00:00,280853,850,AQ0410,AQUAMAINTAIN LTD,27/11/2023 00:00:00,31/12/2023 00:00:00,P09-2024
P&V,GUNPOWDER PARK,PREMISES RELATED EXPENDITURE,GM NON MAIN CONT UNSCHEDULED,2147,P124226-SERVICE-Repair Large Pot Hole Gunpowder Park,12/12/2023 00:00,280506,300,JO0019,R G JOYCE,27/11/2023 00:00:00,31/12/2023 00:00:00,P09-2024
P&V,SOUTH AREA RANGERS,PREMISES RELATED EXPENDITURE,HABITAT MANAGEMENT WORKS,2149,P124314-SERVICE-Ditch Clearance Walthamstow Marsh,20/12/2023 00:00:00,280631,1100,BU0090,BUSH WHEELER SERVICES LTD,27/11/2023 00:00:00,31/12/2023 00:00:00,P09-2024
P&V,GUNPOWDER PARK,PREMISES RELATED EXPENDITURE,HABITAT MANAGEMENT WORKS,2149,P123602-SERVICE-Flail along hawes lane footpath and bridleway,13/12/2023 00:00:00,280534,1000,SA0691,SAMUEL BACON T/A ACORN SERVICES (HERTS) LTD,27/11/2023 00:00:00,31/12/2023 00:00:00,P09-2024
P&V,GUNPOWDER PARK,PREMISES RELATED EXPENDITURE,HABITAT MANAGEMENT WORKS,2149,P123212-SERVICE-Cut hedge on Sewardstone Paddocks to old grow,13/12/2023 00:00:00,280535,325,SA0691,SAMUEL BACON T/A ACORN SERVICES (HERTS) LTD,27/11/2023 00:00:00,31/12/2023 00:00:00,P09-2024
P&V,GUNPOWDER PARK,PREMISES RELATED EXPENDITURE,HABITAT MANAGEMENT WORKS,2149,P123507-SERVICE-Sewardston Paddocks,13/12/2023 00:00:00,280536,1000,SA0691,SAMUEL BACON T/A ACORN SERVICES (HERTS) LTD,27/11/2023 00:00:00,31/12/2023 00:00:00,P09-2024
P&V,GUNPOWDER PARK,PREMISES RELATED EXPENDITURE,HABITAT MANAGEMENT WORKS,2149,P123309-SERVICE-Cut & Collect at Rammey Marsh,19/12/2023 00:00:00,280871,4368,MA0002,GTM RURAL  ENTERPRISES LIMITED,27/11/2023 00:00:00,31/12/2023 00:00:00,P09-2024
P&V,RIVER LEE COUNTRY PARK,PREMISES RELATED EXPENDITURE,HABITAT MANAGEMENT WORKS,2149,P124014-SERVICE-2 Days Reed Cutting at Seventy Acres with Tru,12/05/2023 00:00,280134,2850,AQ0237,AQUACLEAR WATER MANAGEMENT,27/11/2023 00:00:00,31/12/2023 00:00:00,P09-2024
P&V,NORTH AREA RANGERS,PREMISES RELATED EXPENDITURE,MEADOW CUTS,2150,P122065-SERVICE-Meadow Cuts - Various Sites in North,19/12/2023 00:00:00,279037,7138.17,BU0090,BUSH WHEELER SERVICES LTD,27/11/2023 00:00:00,31/12/2023 00:00:00,P09-2024
P&V,SOUTH AREA RANGERS,PREMISES RELATED EXPENDITURE,MEADOW CUTS,2150,P122065-SERVICE-Meadow Cuts - Various Sites in South,19/12/2023 00:00:00,279037,13425.56,BU0090,BUSH WHEELER SERVICES LTD,27/11/2023 00:00:00,31/12/2023 00:00:00,P09-2024
,LEE VALLEY MARINA SPRINGFIELD,PREMISES RELATED EXPENDITURE,GENERAL WASTE,2211,"P123966-SERVICE-General waste & recylng Oct,Nov,Dec",12/06/2023 00:00,280324,1656.21,CL0037,VEOLIA ES (UK) LTD,27/11/2023 00:00:00,31/12/2023 00:00:00,P09-2024
,LEE VALLEY MARINA STANSTEAD,PREMISES RELATED EXPENDITURE,GENERAL WASTE,2211,P121961-SERVICE-annual bin pick ups for RH & SM,12/12/2023 00:00,280328,262.89,CL0037,VEOLIA ES (UK) LTD,27/11/2023 00:00:00,31/12/2023 00:00:00,P09-2024
,LEE VALLEY MARINA STANSTEAD,PREMISES RELATED EXPENDITURE,GENERAL WASTE,2211,P121961-SERVICE-annual bin pick ups for RH & SM,19/12/2023 00:00:00,280329,211.73,CL0037,VEOLIA ES (UK) LTD,27/11/2023 00:00:00,31/12/2023 00:00:00,P09-2024
R&B,CORPORATE TRAINING,EMPLOYEES,TRAINING EXPENSES,1305,P124248-SERVICE-P Coates Managing Hearings Training,12/12/2023 00:00,280405,145,VI0074,VINE HR LIMITED,27/11/2023 00:00:00,31/12/2023 00:00:00,P09-2024
R&B,CORPORATE TRAINING,EMPLOYEES,TRAINING EXPENSES,1305,P124439-SERVICE-DSL TRAINING 7/8 DEC 2023,20/12/2023 00:00:00,280850,1200,TR0618,"TRAINING, CONSULTANCY AND PRACTICE LTD",27/11/2023 00:00:00,31/12/2023 00:00:00,P09-2024
R&B,CORPORATE TRAINING,EMPLOYEES,TRAINING EXPENSES,1305,P124471-SERVICE-FAW TRAINING 15-17/01/24,20/12/2023 00:00:00,280863,1590,RI0053,RIGHT DIRECTIONS (MANAGEMENT) LTD,27/11/2023 00:00:00,31/12/2023 00:00:00,P09-2024
R&B,CORPORATE TRAINING,EMPLOYEES,TRAINING EXPENSES,1305,P124492-SERVICE-E-Learning Training,31/12/2023 00:00:00,281090,1500,AC0479,DISABLED ENABLED LIMITED t/a ACCESS ABLE,27/11/2023 00:00:00,31/12/2023 00:00:00,P09-2024
P&V,LEE VALLEY FARM HOLYFIELDHALL,EMPLOYEES,TRAINING EXPENSES,1305,P124326-SERVICE-Telescopic FLT Training,12/12/2023 00:00,280528,1050,SA0137,SAFFRON WALDEN AGRICULTURAL TRAINING GROUP,27/11/2023 00:00:00,31/12/2023 00:00:00,P09-2024
,LEE VALLEY CAMPSITE,EMPLOYEES,TRAINING EXPENSES,1305,P124246-SERVICE-SC GA Brushcutter & Mower Training,12/06/2023 00:00,280330,770,NE0233,NEWLANDS TRAINING LTD,27/11/2023 00:00:00,31/12/2023 00:00:00,P09-2024
,LEE VALLEY CARAVAN PARK,EMPLOYEES,TRAINING EXPENSES,1305,P124246-SERVICE-DW GA Brushcutter & Mower Training,12/06/2023 00:00,280330,930,NE0233,NEWLANDS TRAINING LTD,27/11/2023 00:00:00,31/12/2023 00:00:00,P09-2024
,LV LEISURE CENTRE CAMPSITE,EMPLOYEES,TRAINING EXPENSES,1305,P124246-SERVICE-EC GA Brushcutter& Mower Training,12/06/2023 00:00,280330,850,NE0233,NEWLANDS TRAINING LTD,27/11/2023 00:00:00,31/12/2023 00:00:00,P09-2024
,LV LEISURE CENTRE GOLF COURSE,EMPLOYEES,TRAINING EXPENSES,1305,P124246-SERVICE-EG GA Brushcutter & Mower Training,12/06/2023 00:00,280330,810,NE0233,NEWLANDS TRAINING LTD,27/11/2023 00:00:00,31/12/2023 00:00:00,P09-2024
R&B,HUMAN RESOURCES,EMPLOYEES,TRAINING PANEL,1306,P124470-SERVICE-DIRECTOR TRAINING 6/02/24,20/12/2023 00:00:00,280864,450,RI0053,RIGHT DIRECTIONS (MANAGEMENT) LTD,27/11/2023 00:00:00,31/12/2023 00:00:00,P09-2024
R&B,CORPORATE TRAINING,EMPLOYEES,TRAINING PANEL,1306,P124340-SERVICE-EDI Training,20/12/2023 00:00:00,280544,1575,KL0167,KLC EMPLOYMENT LAW CONSULTANTS,27/11/2023 00:00:00,31/12/2023 00:00:00,P09-2024
R&B,NON DISTRIBUTED COSTS,EMPLOYEES,SUPERANNUATION ADDED YEARS,1310,RESIDUAL LIABILITIES,31/12/2023 00:00:00,281045,5276.2,LO0031,LONDON PENSIONS FUND AUTHORITY,27/11/2023 00:00:00,31/12/2023 00:00:00,P09-2024
R&B,NON DISTRIBUTED COSTS,EMPLOYEES,SUPERANNUATION ADDED YEARS,1310,RESIDUAL LIABILITIES,31/12/2023 00:00:00,281046,5276.2,LO0031,LONDON PENSIONS FUND AUTHORITY,27/11/2023 00:00:00,31/12/2023 00:00:00,P09-2024
P&V,YOUTH AND SCHOOLS,EMPLOYEES,CRB CHECKS,1330,Y&S Volunteer-DBS check,13/12/2023 00:00:00,280373,20,DD0119,DUE DILIGENCE CHECKING LIMITED,27/11/2023 00:00:00,31/12/2023 00:00:00,P09-2024
P&V,MYDDELTON HOUSE GARDENS,EMPLOYEES,CRB CHECKS,1330,ADMIN FEE,12/06/2023 00:00,280372,20,DD0119,DUE DILIGENCE CHECKING LIMITED,27/11/2023 00:00:00,31/12/2023 00:00:00,P09-2024
P&V,MYDDELTON HOUSE GARDENS,EMPLOYEES,CRB CHECKS,1330,DBS CHECK,12/06/2023 00:00,280372,18,DD0119,DUE DILIGENCE CHECKING LIMITED,27/11/2023 00:00:00,31/12/2023 00:00:00,P09-2024
P&V,SPORT AND LEISURE,EMPLOYEES,CRB CHECKS,1330,DBS CHECK,12/06/2023 00:00,280372,18,DD0119,DUE DILIGENCE CHECKING LIMITED,27/11/2023 00:00:00,31/12/2023 00:00:00,P09-2024
P&V,SPORT AND LEISURE,EMPLOYEES,CRB CHECKS,1330,ADMIN FEE,12/06/2023 00:00,280372,20,DD0119,DUE DILIGENCE CHECKING LIMITED,27/11/2023 00:00:00,31/12/2023 00:00:00,P09-2024
,LV LEISURE CENTRE CAMPSITE,EMPLOYEES,CRB CHECKS,1330,DBS CHECK,12/06/2023 00:00,280372,18,DD0119,DUE DILIGENCE CHECKING LIMITED,27/11/2023 00:00:00,31/12/2023 00:00:00,P09-2024
,LV LEISURE CENTRE CAMPSITE,EMPLOYEES,CRB CHECKS,1330,ADMIN FEE,12/06/2023 00:00,280372,20,DD0119,DUE DILIGENCE CHECKING LIMITED,27/11/2023 00:00:00,31/12/2023 00:00:00,P09-2024
CEO,CHIEF EXECUTIVE,EMPLOYEES,DRIVING LICENCE CHECKS,1335,HR-KYP DRIVING LICENCE DATA FEE S DAWSON,12/06/2023 00:00,280360,6.25,FI0288,FIRST ADVANTAGE EUROPE LTD,27/11/2023 00:00:00,31/12/2023 00:00:00,P09-2024
CEO,LEGAL SERVICES,EMPLOYEES,DRIVING LICENCE CHECKS,1335,HR-KYP DRIVING LICENCE DATA FEE B FOSTER,12/06/2023 00:00,280360,6.25,FI0288,FIRST ADVANTAGE EUROPE LTD,27/11/2023 00:00:00,31/12/2023 00:00:00,P09-2024
R&B,CORPORATE TRAINING,EMPLOYEES,APPRENTICE LEVY,1390,PAYE,12/12/2023 00:00,280514,1840,HM0368,HMRC,27/11/2023 00:00:00,31/12/2023 00:00:00,P09-2024
,LEE VALLEY MARINA STANSTEAD,PREMISES RELATED EXPENDITURE,SCHEDULED GROUND MAINTENANCE,2111,P121961-SERVICE-annual bin pick ups for RH and SA TOP UP,19/12/2023 00:00:00,280329,1074.76,CL0037,VEOLIA ES (UK) LTD,27/11/2023 00:00:00,31/12/2023 00:00:00,P09-2024
CEO,LVLC SERVICE CHARGE,PREMISES RELATED EXPENDITURE,SCHEDULED GROUND MAINTENANCE,2111,P123766-SERVICE-Remove Various Items Dumped by Covid Centre a,12/04/2023 00:00,280110,231.72,GL0214,GLENDALE GROUNDS MANAGEMENT LIMITED,27/11/2023 00:00:00,31/12/2023 00:00:00,P09-2024
CEO,LVLC SERVICE CHARGE,PREMISES RELATED EXPENDITURE,SCHEDULED GROUND MAINTENANCE,2111,P123765-SERVICE-Fire Break Clearance at Picketts Lock,12/04/2023 00:00,280111,246.29,GL0214,GLENDALE GROUNDS MANAGEMENT LIMITED,27/11/2023 00:00:00,31/12/2023 00:00:00,P09-2024
CEO,LVLC SERVICE CHARGE,PREMISES RELATED EXPENDITURE,SCHEDULED GROUND MAINTENANCE,2111,P123763-SERVICE-Remove Shrubs to North & South of Venue Entra,12/04/2023 00:00,280112,681.95,GL0214,GLENDALE GROUNDS MANAGEMENT LIMITED,27/11/2023 00:00:00,31/12/2023 00:00:00,P09-2024
CEO,LVLC SERVICE CHARGE,PREMISES RELATED EXPENDITURE,SCHEDULED GROUND MAINTENANCE,2111,P123762-SERVICE-Budleia Removal at Picketts Lock,12/04/2023 00:00,280113,190.11,GL0214,GLENDALE GROUNDS MANAGEMENT LIMITED,27/11/2023 00:00:00,31/12/2023 00:00:00,P09-2024
CEO,LVLC SERVICE CHARGE,PREMISES RELATED EXPENDITURE,SCHEDULED GROUND MAINTENANCE,2111,P123768-SERVICE-Lee Valley Athletics Centre Fly Tipping Remov,12/04/2023 00:00,280114,231.72,GL0214,GLENDALE GROUNDS MANAGEMENT LIMITED,27/11/2023 00:00:00,31/12/2023 00:00:00,P09-2024
CEO,LVLC SERVICE CHARGE,PREMISES RELATED EXPENDITURE,SCHEDULED GROUND MAINTENANCE,2111,P123767-SERVICE-Crown Lift Trees Adjacent to Glass Wall at Le,12/04/2023 00:00,280115,224.16,GL0214,GLENDALE GROUNDS MANAGEMENT LIMITED,27/11/2023 00:00:00,31/12/2023 00:00:00,P09-2024
CEO,LVLC SERVICE CHARGE,PREMISES RELATED EXPENDITURE,SCHEDULED GROUND MAINTENANCE,2111,GM Core Nov 2023,19/12/2023 00:00:00,280256,1539.86,GL0214,GLENDALE GROUNDS MANAGEMENT LIMITED,27/11/2023 00:00:00,31/12/2023 00:00:00,P09-2024
CEO,LVLC SERVICE CHARGE,PREMISES RELATED EXPENDITURE,SCHEDULED GROUND MAINTENANCE,2111,GM Core Nov 2023,19/12/2023 00:00:00,280256,56.16,GL0214,GLENDALE GROUNDS MANAGEMENT LIMITED,27/11/2023 00:00:00,31/12/2023 00:00:00,P09-2024
P&V,MYDDELTON HOUSE,PREMISES RELATED EXPENDITURE,CONTRACT CLEANING,2120,P121875-SERVICE-Myddelton House Cleaning,19/12/2023 00:00:00,280736,1681.68,BR0632,BRITANNIA SERVICES GROUP LTD,27/11/2023 00:00:00,31/12/2023 00:00:00,P09-2024
P&V,LEE VALLEY FARM HOLYFIELDHALL,PREMISES RELATED EXPENDITURE,GENERAL WASTE,2211,P124463-SERVICE-Waste for Incineration,31/12/2023 00:00:00,280773,487.03,BY0049,BYWATERS (LEYTON) LTD,27/11/2023 00:00:00,31/12/2023 00:00:00,P09-2024
,LEE VALLEY CAMPSITE,PREMISES RELATED EXPENDITURE,GENERAL WASTE,2211,P122977-SERVICE-Skip Collections  Aug- Dec 23,12/12/2023 00:00,280327,381.36,CL0037,VEOLIA ES (UK) LTD,27/11/2023 00:00:00,31/12/2023 00:00:00,P09-2024
,LEE VALLEY CARAVAN PARK,PREMISES RELATED EXPENDITURE,GENERAL WASTE,2211,P124309-SERVICE-General waste disposalk,12/06/2023 00:00,280326,2990.47,CL0037,VEOLIA ES (UK) LTD,27/11/2023 00:00:00,31/12/2023 00:00:00,P09-2024
P&V,NORTH AREA RANGERS,PREMISES RELATED EXPENDITURE,GENERAL WASTE,2211,P124009-SERVICE-12yd General Rubbish Skip at Holyfield Hall F,19/12/2023 00:00:00,280619,323.4,GB0239,GBN SERVICES LTD,27/11/2023 00:00:00,31/12/2023 00:00:00,P09-2024
P&V,NORTH AREA RANGERS,PREMISES RELATED EXPENDITURE,GENERAL WASTE,2211,P124009-SERVICE-12yd General Rubbish Skip at Holyfield Hall F,19/12/2023 00:00:00,280619,273.4,GB0239,GBN SERVICES LTD,27/11/2023 00:00:00,31/12/2023 00:00:00,P09-2024
P&V,NORTH AREA RANGERS,PREMISES RELATED EXPENDITURE,GENERAL WASTE,2211,P124009-SERVICE-Armchair Disposed off in the Skip,19/12/2023 00:00:00,280619,50,GB0239,GBN SERVICES LTD,27/11/2023 00:00:00,31/12/2023 00:00:00,P09-2024
P&V,SOUTH AREA RANGERS,PREMISES RELATED EXPENDITURE,GENERAL WASTE,2211,P123636-SERVICE-Skip at WaterWorks Centre,12/06/2023 00:00,280308,323.4,GB0239,GBN SERVICES LTD,27/11/2023 00:00:00,31/12/2023 00:00:00,P09-2024
P&V,SOUTH AREA RANGERS,PREMISES RELATED EXPENDITURE,GENERAL WASTE,2211,P123636-SERVICE-Skip at WaterWorks Centre,31/12/2023 00:00:00,281011,323.4,GB0239,GBN SERVICES LTD,27/11/2023 00:00:00,31/12/2023 00:00:00,P09-2024
,LV LEISURE CENTRE CAMPSITE,PREMISES RELATED EXPENDITURE,GENERAL WASTE,2211,P124305-SERVICE-bywaters,12/06/2023 00:00,280314,318.2,BY0049,BYWATERS (LEYTON) LTD,27/11/2023 00:00:00,31/12/2023 00:00:00,P09-2024
,LV LEISURE CENTRE CAMPSITE,PREMISES RELATED EXPENDITURE,GENERAL WASTE,2211,P124306-SERVICE-renewal t.v licence,12/06/2023 00:00,280320,159,TV0065,TV LICENSING,27/11/2023 00:00:00,31/12/2023 00:00:00,P09-2024
,LV LEISURE CENTRE CAMPSITE,PREMISES RELATED EXPENDITURE,GENERAL WASTE,2211,P124307-SERVICE-veolia,12/06/2023 00:00,280325,738,CL0037,VEOLIA ES (UK) LTD,27/11/2023 00:00:00,31/12/2023 00:00:00,P09-2024
P&V,NORTH AREA RANGERS,PREMISES RELATED EXPENDITURE,FLYTIPPING/WHITE GOOD DISPOSAL,2213,P123314-SERVICE-Remove Fly Tip at Rye House Gatehouse,12/05/2023 00:00,280109,274.81,GL0214,GLENDALE GROUNDS MANAGEMENT LIMITED,27/11/2023 00:00:00,31/12/2023 00:00:00,P09-2024
P&V,NORTH AREA RANGERS,PREMISES RELATED EXPENDITURE,FLYTIPPING/WHITE GOOD DISPOSAL,2213,P123314-SERVICE-Remove Fly Tip at Rye House Gatehouse,12/05/2023 00:00,280255,-274.81,GL0214,GLENDALE GROUNDS MANAGEMENT LIMITED,27/11/2023 00:00:00,31/12/2023 00:00:00,P09-2024
P&V,SOUTH AREA RANGERS,PREMISES RELATED EXPENDITURE,FLYTIPPING/WHITE GOOD DISPOSAL,2213,P124407-SERVICE-Flytip Removal at Clendish Marsh Tottenham,19/12/2023 00:00:00,280870,450,JO0019,R G JOYCE,27/11/2023 00:00:00,31/12/2023 00:00:00,P09-2024
P&V,MYDDELTON HOUSE,PREMISES RELATED EXPENDITURE,RECYCLING,2214,P121873-SERVICE-Recycling,12/12/2023 00:00,280493,24.68,CA0341,F & R CAWLEY LTD,27/11/2023 00:00:00,31/12/2023 00:00:00,P09-2024
P&V,MYDDELTON HOUSE,PREMISES RELATED EXPENDITURE,RECYCLING,2214,P122866-SERVICE-Recycling,12/12/2023 00:00,280493,195.46,CA0341,F & R CAWLEY LTD,27/11/2023 00:00:00,31/12/2023 00:00:00,P09-2024
P&V,MYDDELTON HOUSE,PREMISES RELATED EXPENDITURE,BUILDING SERVICE AGREEMENTS,2220,P124203-SERVICE-boiler call out nov 23,19/12/2023 00:00:00,280211,365,MY0444,MYRIAD HEAT & POWER LTD T/A MYRIAD PLANTROOM,27/11/2023 00:00:00,31/12/2023 00:00:00,P09-2024
P&V,MYDDELTON HOUSE,PREMISES RELATED EXPENDITURE,BUILDING SERVICE AGREEMENTS,2220,P121870-SERVICE-Sanitary Services,31/12/2023 00:00:00,281019,89.64,PE0015,PHS GROUP PLC,27/11/2023 00:00:00,31/12/2023 00:00:00,P09-2024
P&V,MYDDELTON HOUSE,PREMISES RELATED EXPENDITURE,BUILDING SERVICE AGREEMENTS,2220,P121870-SERVICE-Sanitary Services,31/12/2023 00:00:00,281058,-159.04,PE0015,PHS GROUP PLC,27/11/2023 00:00:00,31/12/2023 00:00:00,P09-2024
P&V,MYDDELTON HOUSE,PREMISES RELATED EXPENDITURE,BUILDING SERVICE AGREEMENTS,2220,P121870-SERVICE-Sanitary Services,31/12/2023 00:00:00,281059,-22.41,PE0015,PHS GROUP PLC,27/11/2023 00:00:00,31/12/2023 00:00:00,P09-2024
P&V,MYDDELTON HOUSE,PREMISES RELATED EXPENDITURE,BUILDING SERVICE AGREEMENTS,2220,P121870-SERVICE-Sanitary Services,31/12/2023 00:00:00,281060,24.15,PE0015,PHS GROUP PLC,27/11/2023 00:00:00,31/12/2023 00:00:00,P09-2024
P&V,MYDDELTON HOUSE,PREMISES RELATED EXPENDITURE,BUILDING SERVICE AGREEMENTS,2220,P121870-SERVICE-Sanitary Services,31/12/2023 00:00:00,281062,10.09,PE0015,PHS GROUP PLC,27/11/2023 00:00:00,31/12/2023 00:00:00,P09-2024
,LEE VALLEY MARINA SPRINGFIELD,PREMISES RELATED EXPENDITURE,BUILDING SERVICE AGREEMENTS,2220,P124482-SERVICE-Annual alarm service for chandlery,31/12/2023 00:00:00,280832,224.48,CH0088,CHUBB FIRE & SECURITY,27/11/2023 00:00:00,31/12/2023 00:00:00,P09-2024
,LEE VALLEY MARINA SPRINGFIELD,PREMISES RELATED EXPENDITURE,BUILDING SERVICE AGREEMENTS,2220,"P121662-SERVICE-Sanitary Disposal,Dust Mats,Eco Shield",31/12/2023 00:00:00,281018,216.54,PE0015,PHS GROUP PLC,27/11/2023 00:00:00,31/12/2023 00:00:00,P09-2024
,LEE VALLEY MARINA STANSTEAD,PREMISES RELATED EXPENDITURE,BUILDING SERVICE AGREEMENTS,2220,P124479-SERVICE-annual service charge: monitoring chandlery,31/12/2023 00:00:00,280833,379.99,CH0088,CHUBB FIRE & SECURITY,27/11/2023 00:00:00,31/12/2023 00:00:00,P09-2024
,LEE VALLEY WATERWORKS CENTRE,PREMISES RELATED EXPENDITURE,BUILDING SERVICE AGREEMENTS,2220,P124027-SERVICE-Waterworks Oct 2023 PPM,12/05/2023 00:00,280257,940.28,CO0199,EQUANS FM LIMITED (frmlyENGIE FM LIMITED),27/11/2023 00:00:00,31/12/2023 00:00:00,P09-2024
,LEE VALLEY WATERWORKS CENTRE,PREMISES RELATED EXPENDITURE,BUILDING SERVICE AGREEMENTS,2220,P124417-SERVICE-Waterworks Nov 2023 PPM,19/12/2023 00:00:00,280820,83.59,CO0199,EQUANS FM LIMITED (frmlyENGIE FM LIMITED),27/11/2023 00:00:00,31/12/2023 00:00:00,P09-2024
,LEE VALLEY WATERWORKS CENTRE,PREMISES RELATED EXPENDITURE,BUILDING SERVICE AGREEMENTS,2220,P124418-SERVICE-Nov 2023 - Water Sampling WWK's,19/12/2023 00:00:00,280821,184,CO0199,EQUANS FM LIMITED (frmlyENGIE FM LIMITED),27/11/2023 00:00:00,31/12/2023 00:00:00,P09-2024
,LEE VALLEY CAMPSITE,PREMISES RELATED EXPENDITURE,BUILDING SERVICE AGREEMENTS,2220,P121646-SERVICE-Nov 23,12/12/2023 00:00,280500,70,VE0006,VERMINATE CITY & RURAL PEST CONTROL LTD,27/11/2023 00:00:00,31/12/2023 00:00:00,P09-2024
,LEE VALLEY CARAVAN PARK,PREMISES RELATED EXPENDITURE,BUILDING SERVICE AGREEMENTS,2220,P124361-SERVICE-Monthly pest control,12/12/2023 00:00,280499,70,VE0006,VERMINATE CITY & RURAL PEST CONTROL LTD,27/11/2023 00:00:00,31/12/2023 00:00:00,P09-2024
P&V,GUNPOWDER PARK,PREMISES RELATED EXPENDITURE,BUILDING SERVICE AGREEMENTS,2220,P121073-SERVICE-Sanitary Disposal - Gunpowder Park - Public T,13/12/2023 00:00:00,280594,14.3,PE0015,PHS GROUP PLC,27/11/2023 00:00:00,31/12/2023 00:00:00,P09-2024
P&V,RIVER LEE COUNTRY PARK,PREMISES RELATED EXPENDITURE,BUILDING SERVICE AGREEMENTS,2220,P121074-SERVICE-Sanitary Disposal - Fishers Green Toilets,13/12/2023 00:00:00,280593,10.72,PE0015,PHS GROUP PLC,27/11/2023 00:00:00,31/12/2023 00:00:00,P09-2024
P&V,RIVER LEE COUNTRY PARK,PREMISES RELATED EXPENDITURE,BUILDING SERVICE AGREEMENTS,2220,P121071-SERVICE-Sanitary Disposal - Ranger Base Office Holyfi,31/12/2023 00:00:00,281061,6.47,PE0015,PHS GROUP PLC,27/11/2023 00:00:00,31/12/2023 00:00:00,P09-2024
,LV LEISURE CENTRE CAMPSITE,PREMISES RELATED EXPENDITURE,BUILDING SERVICE AGREEMENTS,2220,P124393-SERVICE-MONTHLY VISIT,13/12/2023 00:00:00,280501,70,VE0006,VERMINATE CITY & RURAL PEST CONTROL LTD,27/11/2023 00:00:00,31/12/2023 00:00:00,P09-2024
P&V,MYDDELTON HOUSE,PREMISES RELATED EXPENDITURE,BUILDING REPAIRS & MAINTENANCE,2222,P123985-SERVICE-Control Box UBA3,12/04/2023 00:00,280251,572.17,AS0039,ASTON GROUP,27/11/2023 00:00:00,31/12/2023 00:00:00,P09-2024
P&V,MYDDELTON HOUSE,PREMISES RELATED EXPENDITURE,BUILDING REPAIRS & MAINTENANCE,2222,P123593-SERVICE-12 Month Water Hygiene Contract - Myddelton H,12/05/2023 00:00,280264,780,JA0177,JASUN ENVIROCARE PLC,27/11/2023 00:00:00,31/12/2023 00:00:00,P09-2024
CEO,RESIDENTIAL ACCOMMODATION,PREMISES RELATED EXPENDITURE,BUILDING REPAIRS & MAINTENANCE,2222,P121557-SERVICE-Maintenance,12/04/2023 00:00,280012,81.67,CA0165,CASTLES,27/11/2023 00:00:00,31/12/2023 00:00:00,P09-2024
CEO,RESIDENTIAL ACCOMMODATION,PREMISES RELATED EXPENDITURE,BUILDING REPAIRS & MAINTENANCE,2222,P123808-SERVICE-Myddelton House Gate Lodge Garden Works,12/04/2023 00:00,280116,611.77,GL0214,GLENDALE GROUNDS MANAGEMENT LIMITED,27/11/2023 00:00:00,31/12/2023 00:00:00,P09-2024
CEO,RESIDENTIAL ACCOMMODATION,PREMISES RELATED EXPENDITURE,BUILDING REPAIRS & MAINTENANCE,2222,P123965-SERVICE-Holyfield Farm House Gate cottage No 1,13/12/2023 00:00:00,280272,185,LI0432,LIFE ENVIRONMENTAL SERVICES LTD,27/11/2023 00:00:00,31/12/2023 00:00:00,P09-2024
CEO,RESIDENTIAL ACCOMMODATION,PREMISES RELATED EXPENDITURE,BUILDING REPAIRS & MAINTENANCE,2222,P123965-SERVICE-Holyfield Farm House Gate cottage No 1,20/12/2023 00:00:00,280744,225,LI0432,LIFE ENVIRONMENTAL SERVICES LTD,27/11/2023 00:00:00,31/12/2023 00:00:00,P09-2024
CEO,COMMERCIAL ACCOMMODATION,PREMISES RELATED EXPENDITURE,BUILDING REPAIRS & MAINTENANCE,2222,P121780-SERVICE-Concrete blocks Wharf Road,12/04/2023 00:00,280237,62,NA0171,NAIVETTE SERVICES LTD,27/11/2023 00:00:00,31/12/2023 00:00:00,P09-2024
CEO,COMMERCIAL ACCOMMODATION,PREMISES RELATED EXPENDITURE,BUILDING REPAIRS & MAINTENANCE,2222,P121780-SERVICE-Concrete blocks Wharf Road,31/12/2023 00:00:00,281025,62,NA0171,NAIVETTE SERVICES LTD,27/11/2023 00:00:00,31/12/2023 00:00:00,P09-2024
,LEE VALLEY MARINA STANSTEAD,PREMISES RELATED EXPENDITURE,BUILDING REPAIRS & MAINTENANCE,2222,P124172-SERVICE-H&S hazard signs and shelf corner buffers,12/12/2023 00:00,280067,115.39,AM0406,AMAZON PAYMENTS UK LIMITED,27/11/2023 00:00:00,31/12/2023 00:00:00,P09-2024
,LEE VALLEY MARINA STANSTEAD,PREMISES RELATED EXPENDITURE,BUILDING REPAIRS & MAINTENANCE,2222,P124175-SERVICE-corrosive H&S sign,12/12/2023 00:00,280069,11.1,AM0406,AMAZON PAYMENTS UK LIMITED,27/11/2023 00:00:00,31/12/2023 00:00:00,P09-2024
,LEE VALLEY MARINA STANSTEAD,PREMISES RELATED EXPENDITURE,BUILDING REPAIRS & MAINTENANCE,2222,P124189-SERVICE-Diesel Pump Annual Service 23,12/12/2023 00:00,280345,250,FA0269,FAST FUEL SERVICES,27/11/2023 00:00:00,31/12/2023 00:00:00,P09-2024
,LEE VALLEY MARINA STANSTEAD,PREMISES RELATED EXPENDITURE,BUILDING REPAIRS & MAINTENANCE,2222,"P124275-SERVICE-ICE:  Bags of salt, spreader, bin",12/12/2023 00:00,280350,601.8,TH0008,JKL SOLUTIONS LTD,27/11/2023 00:00:00,31/12/2023 00:00:00,P09-2024
,LEE VALLEY MARINA STANSTEAD,PREMISES RELATED EXPENDITURE,BUILDING REPAIRS & MAINTENANCE,2222,P122515-SERVICE-Annual TMV Service and Legionella Sampling,19/12/2023 00:00:00,280504,113.8,KI0090,KINGFISHER ENVIRONMENTAL SERVICES LTD,27/11/2023 00:00:00,31/12/2023 00:00:00,P09-2024
,LEE VALLEY MARINA STANSTEAD,PREMISES RELATED EXPENDITURE,BUILDING REPAIRS & MAINTENANCE,2222,"P124386-SERVICE-extinguishers, stand, signs for laundry",19/12/2023 00:00:00,280622,133.15,TJ0009,T.J.FIRE & SECURITY,27/11/2023 00:00:00,31/12/2023 00:00:00,P09-2024
,LEE VALLEY WATERWORKS CENTRE,PREMISES RELATED EXPENDITURE,BUILDING REPAIRS & MAINTENANCE,2222,P123712-SERVICE-Replace Faulty Contactor Materials,19/12/2023 00:00:00,279848,35.08,CO0199,EQUANS FM LIMITED (frmlyENGIE FM LIMITED),27/11/2023 00:00:00,31/12/2023 00:00:00,P09-2024
,LEE VALLEY WATERWORKS CENTRE,PREMISES RELATED EXPENDITURE,BUILDING REPAIRS & MAINTENANCE,2222,P123712-SERVICE-Replace Faulty Contactor at Waterworks Centre,19/12/2023 00:00:00,279848,483.7,CO0199,EQUANS FM LIMITED (frmlyENGIE FM LIMITED),27/11/2023 00:00:00,31/12/2023 00:00:00,P09-2024
,LEE VALLEY WATERWORKS CENTRE,PREMISES RELATED EXPENDITURE,BUILDING REPAIRS & MAINTENANCE,2222,P124455-SERVICE-Shutter Repairs at Waterworks,19/12/2023 00:00:00,280061,461.25,GU0198,GUARDIAN INDUSTRIAL DOORS LIMITED,27/11/2023 00:00:00,31/12/2023 00:00:00,P09-2024
,LEE VALLEY WATERWORKS CENTRE,PREMISES RELATED EXPENDITURE,BUILDING REPAIRS & MAINTENANCE,2222,P123870-SERVICE-Digout 4 Gullies at Waterworks Centre Car Par,12/04/2023 00:00,280244,700,CO0550,CONVERT WATER LTD,27/11/2023 00:00:00,31/12/2023 00:00:00,P09-2024
P&V,LEE VALLEY FARM HOLYFIELDHALL,PREMISES RELATED EXPENDITURE,BUILDING REPAIRS & MAINTENANCE,2222,P121497-SERVICE-Building Repairs,12/04/2023 00:00,280057,58.5,JE0011,SAINT-GOBAIN BUILDING DISTRIBUTION,27/11/2023 00:00:00,31/12/2023 00:00:00,P09-2024
P&V,LEE VALLEY FARM HOLYFIELDHALL,PREMISES RELATED EXPENDITURE,BUILDING REPAIRS & MAINTENANCE,2222,P121497-SERVICE-Building Repairs,19/12/2023 00:00:00,280586,89.79,JE0011,SAINT-GOBAIN BUILDING DISTRIBUTION,27/11/2023 00:00:00,31/12/2023 00:00:00,P09-2024
P&V,LEE VALLEY FARM HOLYFIELDHALL,PREMISES RELATED EXPENDITURE,BUILDING REPAIRS & MAINTENANCE,2222,P121497-SERVICE-Building Repairs,19/12/2023 00:00:00,280770,396.24,JE0011,SAINT-GOBAIN BUILDING DISTRIBUTION,27/11/2023 00:00:00,31/12/2023 00:00:00,P09-2024
,LEE VALLEY CARAVAN PARK,PREMISES RELATED EXPENDITURE,BUILDING REPAIRS & MAINTENANCE,2222,P124347-SERVICE-DW EZGO Buggy,31/12/2023 00:00:00,280734,3625,CA0698,CAMBRIDGE GOLF COMPANY,27/11/2023 00:00:00,31/12/2023 00:00:00,P09-2024
P&V,WILDLIFE DISCOVERY CENTRE,PREMISES RELATED EXPENDITURE,BUILDING REPAIRS & MAINTENANCE,2222,P123752-SERVICE-Annual PAT Testing at Wildlife Discovery Cent,31/12/2023 00:00:00,280818,96,BR0018,BRADSHAW ELECTRICAL LIMITED,27/11/2023 00:00:00,31/12/2023 00:00:00,P09-2024
P&V,GUNPOWDER PARK,PREMISES RELATED EXPENDITURE,BUILDING REPAIRS & MAINTENANCE,2222,P123821-SERVICE-PPM - Oct 2023 to Mar 2024 at Gunpowder Park,19/12/2023 00:00:00,280743,154.6,CO0199,EQUANS FM LIMITED (frmlyENGIE FM LIMITED),27/11/2023 00:00:00,31/12/2023 00:00:00,P09-2024
P&V,RIVER LEE COUNTRY PARK,PREMISES RELATED EXPENDITURE,BUILDING REPAIRS & MAINTENANCE,2222,P122317-SERVICE-Fishers Green Toilets Urinal - Call Out,12/06/2023 00:00,279288,98,KE0023,KENDALL & SONS LIMITED,27/11/2023 00:00:00,31/12/2023 00:00:00,P09-2024
P&V,RIVER LEE COUNTRY PARK,PREMISES RELATED EXPENDITURE,BUILDING REPAIRS & MAINTENANCE,2222,P122317-SERVICE-Fishers Green Toilets Urinal - Call Out,12/06/2023 00:00,280228,-98,KE0023,KENDALL & SONS LIMITED,27/11/2023 00:00:00,31/12/2023 00:00:00,P09-2024
,LV LEISURE CENTRE CAMPSITE,PREMISES RELATED EXPENDITURE,BUILDING REPAIRS & MAINTENANCE,2222,P124348-SERVICE-EZGO Buggy,31/12/2023 00:00:00,280732,3750,CA0698,CAMBRIDGE GOLF COMPANY,27/11/2023 00:00:00,31/12/2023 00:00:00,P09-2024
,LV LEISURE CENTRE GOLF COURSE,PREMISES RELATED EXPENDITURE,BUILDING REPAIRS & MAINTENANCE,2222,P124349-SERVICE-Hayter Blade,31/12/2023 00:00:00,280733,475.36,CA0698,CAMBRIDGE GOLF COMPANY,27/11/2023 00:00:00,31/12/2023 00:00:00,P09-2024
CEO,LVLC SERVICE CHARGE,PREMISES RELATED EXPENDITURE,BUILDING REPAIRS & MAINTENANCE,2222,P121726-SERVICE-Contract Sweep,31/12/2023 00:00:00,280095,300,SE0374,SELECT SWEEPER HIRE LTD,27/11/2023 00:00:00,31/12/2023 00:00:00,P09-2024
CEO,LVLC SERVICE CHARGE,PREMISES RELATED EXPENDITURE,BUILDING REPAIRS & MAINTENANCE,2222,P121726-SERVICE-Contract Sweep,31/12/2023 00:00:00,280242,300,SE0374,SELECT SWEEPER HIRE LTD,27/11/2023 00:00:00,31/12/2023 00:00:00,P09-2024
,LEE VALLEY MARINA SPRINGFIELD,PREMISES RELATED EXPENDITURE,CAR PARKS/ACCESS TRACKS,2235,P124128-SERVICE-To supply 16 ton of MOT Type 1 as quotation,12/04/2023 00:00,280129,650,NI0001,A H NICHOLLS & SONS LTD,27/11/2023 00:00:00,31/12/2023 00:00:00,P09-2024
CEO,COMMERCIAL ACCOMMODATION,PREMISES RELATED EXPENDITURE,EAST HALE ALLOTMENTS,2261,P121887-SERVICE-Allotment Bins,13/12/2023 00:00:00,280322,307.54,CL0037,VEOLIA ES (UK) LTD,27/11/2023 00:00:00,31/12/2023 00:00:00,P09-2024
CEO,COMMERCIAL ACCOMMODATION,PREMISES RELATED EXPENDITURE,EAST HALE ALLOTMENTS,2261,P121887-SERVICE-Allotment Bins,13/12/2023 00:00:00,280323,9.5,CL0037,VEOLIA ES (UK) LTD,27/11/2023 00:00:00,31/12/2023 00:00:00,P09-2024
P&V,MYDDELTON HOUSE,PREMISES RELATED EXPENDITURE,ENERGY COSTS (ELECTRICITY),2332,Md House - Nov 23,19/12/2023 00:00:00,280785,3136.02,KE0007,KENT COUNTY COUNCIL (KCS),27/11/2023 00:00:00,31/12/2023 00:00:00,P09-2024
CEO,RESIDENTIAL ACCOMMODATION,PREMISES RELATED EXPENDITURE,ENERGY COSTS (ELECTRICITY),2332,25/10/23-24/11/23,12/04/2023 00:00,280099,114.22,EO0420,E-ON NEXT ENERGY LTD,27/11/2023 00:00:00,31/12/2023 00:00:00,P09-2024
CEO,RESIDENTIAL ACCOMMODATION,PREMISES RELATED EXPENDITURE,ENERGY COSTS (ELECTRICITY),2332,Late payment fee,19/12/2023 00:00:00,280512,40,EO0420,E-ON NEXT ENERGY LTD,27/11/2023 00:00:00,31/12/2023 00:00:00,P09-2024
CEO,RESIDENTIAL ACCOMMODATION,PREMISES RELATED EXPENDITURE,ENERGY COSTS (ELECTRICITY),2332,12/11/23-11/12/23,31/12/2023 00:00:00,280759,14.85,EO0418,E-ON NEXT ENERGY LTD,27/11/2023 00:00:00,31/12/2023 00:00:00,P09-2024
CEO,RESIDENTIAL ACCOMMODATION,PREMISES RELATED EXPENDITURE,ENERGY COSTS (ELECTRICITY),2332,C/NOTE TO CANCEL COMP 280512,19/12/2023 00:00:00,280769,-40,EO0420,E-ON NEXT ENERGY LTD,27/11/2023 00:00:00,31/12/2023 00:00:00,P09-2024
CEO,COMMERCIAL ACCOMMODATION,PREMISES RELATED EXPENDITURE,ENERGY COSTS (ELECTRICITY),2332,Nov-23,13/12/2023 00:00:00,280523,30,EO0398,E-ON NEXT ENERGY LTD,27/11/2023 00:00:00,31/12/2023 00:00:00,P09-2024
CEO,COMMERCIAL ACCOMMODATION,PREMISES RELATED EXPENDITURE,ENERGY COSTS (ELECTRICITY),2332,Nov-23,13/12/2023 00:00:00,280575,31.61,EO0419,E-ON NEXT ENERGY LTD,27/11/2023 00:00:00,31/12/2023 00:00:00,P09-2024
,LEE VALLEY MARINA SPRINGFIELD,PREMISES RELATED EXPENDITURE,ENERGY COSTS (ELECTRICITY),2332,Springfield- electricity-Nov 2023,20/12/2023 00:00:00,280784,5933.09,KE0007,KENT COUNTY COUNCIL (KCS),27/11/2023 00:00:00,31/12/2023 00:00:00,P09-2024
,LEE VALLEY MARINA STANSTEAD,PREMISES RELATED EXPENDITURE,ENERGY COSTS (ELECTRICITY),2332,Stanstead-Toilet Block-Sept23-Nov23,31/12/2023 00:00:00,280787,234.43,KE0007,KENT COUNTY COUNCIL (KCS),27/11/2023 00:00:00,31/12/2023 00:00:00,P09-2024
,LEE VALLEY MARINA STANSTEAD,PREMISES RELATED EXPENDITURE,ENERGY COSTS (ELECTRICITY),2332,Stanstead-BoatYard-Sep23-Nov23,31/12/2023 00:00:00,280790,5196.16,KE0007,KENT COUNTY COUNCIL (KCS),27/11/2023 00:00:00,31/12/2023 00:00:00,P09-2024
,LEE VALLEY MARINA STANSTEAD,PREMISES RELATED EXPENDITURE,ENERGY COSTS (ELECTRICITY),2332,Stanstead-Undercover Boat-Sept23-Nov23,31/12/2023 00:00:00,280796,453.5,KE0007,KENT COUNTY COUNCIL (KCS),27/11/2023 00:00:00,31/12/2023 00:00:00,P09-2024
,LEE VALLEY WATERWORKS CENTRE,PREMISES RELATED EXPENDITURE,ENERGY COSTS (ELECTRICITY),2332,Waterworks-electricity-Nov 23,20/12/2023 00:00:00,280780,1426.03,NP0123,NPOWER LIMITED,27/11/2023 00:00:00,31/12/2023 00:00:00,P09-2024
P&V,LEE VALLEY FARM HOLYFIELDHALL,PREMISES RELATED EXPENDITURE,ENERGY COSTS (ELECTRICITY),2332,BRITISH GAS TRADING LTD,12/04/2023 00:00,280063,72.55,BR0030,BRITISH GAS TRADING LTD,27/11/2023 00:00:00,31/12/2023 00:00:00,P09-2024
P&V,LEE VALLEY FARM HOLYFIELDHALL,PREMISES RELATED EXPENDITURE,ENERGY COSTS (ELECTRICITY),2332,Holyfield-electricity-Nov23,19/12/2023 00:00:00,280808,38.3,KE0007,KENT COUNTY COUNCIL (KCS),27/11/2023 00:00:00,31/12/2023 00:00:00,P09-2024
,LEE VALLEY CAMPSITE,PREMISES RELATED EXPENDITURE,ENERGY COSTS (ELECTRICITY),2332,Sewardstone-Sept23-Nov23,20/12/2023 00:00:00,280804,129.98,KE0007,KENT COUNTY COUNCIL (KCS),27/11/2023 00:00:00,31/12/2023 00:00:00,P09-2024
,LEE VALLEY CAMPSITE,PREMISES RELATED EXPENDITURE,ENERGY COSTS (ELECTRICITY),2332,Sewardstone-Nov23,20/12/2023 00:00:00,280805,5472.44,KE0007,KENT COUNTY COUNCIL (KCS),27/11/2023 00:00:00,31/12/2023 00:00:00,P09-2024
,LEE VALLEY CAMPSITE,PREMISES RELATED EXPENDITURE,ENERGY COSTS (ELECTRICITY),2332,Sewardstone-Nov23,20/12/2023 00:00:00,280806,4676.06,KE0007,KENT COUNTY COUNCIL (KCS),27/11/2023 00:00:00,31/12/2023 00:00:00,P09-2024
,LEE VALLEY CARAVAN PARK,PREMISES RELATED EXPENDITURE,ENERGY COSTS (ELECTRICITY),2332,DW-electricity-Nov23,19/12/2023 00:00:00,280807,14955.53,KE0007,KENT COUNTY COUNCIL (KCS),27/11/2023 00:00:00,31/12/2023 00:00:00,P09-2024
P&V,MYDDELTON HOUSE GARDENS,PREMISES RELATED EXPENDITURE,ENERGY COSTS (ELECTRICITY),2332,Md House=Gard- Sept23-Nov23,19/12/2023 00:00:00,280786,1512.51,KE0007,KENT COUNTY COUNCIL (KCS),27/11/2023 00:00:00,31/12/2023 00:00:00,P09-2024
P&V,EAST INDIA DOCK AND BOW CREEK,PREMISES RELATED EXPENDITURE,ENERGY COSTS (ELECTRICITY),2332,Bow Creek - electric- Aug23 - Oct23,12/12/2023 00:00,280101,180.72,KE0007,KENT COUNTY COUNCIL (KCS),27/11/2023 00:00:00,31/12/2023 00:00:00,P09-2024
P&V,EAST INDIA DOCK AND BOW CREEK,PREMISES RELATED EXPENDITURE,ENERGY COSTS (ELECTRICITY),2332,Orchard Pl-Sept23-Nov23,19/12/2023 00:00:00,280798,96.59,KE0007,KENT COUNTY COUNCIL (KCS),27/11/2023 00:00:00,31/12/2023 00:00:00,P09-2024
P&V,RYE HOUSE GATEHOUSE,PREMISES RELATED EXPENDITURE,ENERGY COSTS (ELECTRICITY),2332,Rye House- Sept23-Nov23,19/12/2023 00:00:00,280794,167.06,KE0007,KENT COUNTY COUNCIL (KCS),27/11/2023 00:00:00,31/12/2023 00:00:00,P09-2024
P&V,NORTH AREA RANGERS,PREMISES RELATED EXPENDITURE,ENERGY COSTS (ELECTRICITY),2332,01/12/22-28/02/23,19/12/2023 00:00:00,272282,87.74,KE0007,KENT COUNTY COUNCIL (KCS),27/11/2023 00:00:00,31/12/2023 00:00:00,P09-2024
P&V,NORTH AREA RANGERS,PREMISES RELATED EXPENDITURE,ENERGY COSTS (ELECTRICITY),2332,DW P Toilet-FINAL INVOICE,19/12/2023 00:00:00,280783,293.93,KE0007,KENT COUNTY COUNCIL (KCS),27/11/2023 00:00:00,31/12/2023 00:00:00,P09-2024
P&V,NORTH AREA RANGERS,PREMISES RELATED EXPENDITURE,ENERGY COSTS (ELECTRICITY),2332,Mill Lane-Toilet Blk-Sept23-Nov23,19/12/2023 00:00:00,280791,1020.54,KE0007,KENT COUNTY COUNCIL (KCS),27/11/2023 00:00:00,31/12/2023 00:00:00,P09-2024
P&V,NORTH AREA RANGERS,PREMISES RELATED EXPENDITURE,ENERGY COSTS (ELECTRICITY),2332,Rye Gate Farm- Sept23-Nov23,19/12/2023 00:00:00,280814,106.48,KE0007,KENT COUNTY COUNCIL (KCS),27/11/2023 00:00:00,31/12/2023 00:00:00,P09-2024
P&V,SOUTH AREA RANGERS,PREMISES RELATED EXPENDITURE,ENERGY COSTS (ELECTRICITY),2332,Feeder Pillar-Lea Bridge E10-Sept23-Nov2,19/12/2023 00:00:00,280795,361.96,KE0007,KENT COUNTY COUNCIL (KCS),27/11/2023 00:00:00,31/12/2023 00:00:00,P09-2024
P&V,ABBEY GARDENS,PREMISES RELATED EXPENDITURE,ENERGY COSTS (ELECTRICITY),2332,Abbey Gardens-Car Park-Sept23-Nov23,19/12/2023 00:00:00,280797,1447.38,KE0007,KENT COUNTY COUNCIL (KCS),27/11/2023 00:00:00,31/12/2023 00:00:00,P09-2024
P&V,GUNPOWDER PARK,PREMISES RELATED EXPENDITURE,ENERGY COSTS (ELECTRICITY),2332,Field Station-Gunpowder-Nov23,19/12/2023 00:00:00,280793,691.52,KE0007,KENT COUNTY COUNCIL (KCS),27/11/2023 00:00:00,31/12/2023 00:00:00,P09-2024
P&V,RIVER LEE COUNTRY PARK,PREMISES RELATED EXPENDITURE,ENERGY COSTS (ELECTRICITY),2332,Windmill Lane-Sept23-Nov23,19/12/2023 00:00:00,280788,139.18,KE0007,KENT COUNTY COUNCIL (KCS),27/11/2023 00:00:00,31/12/2023 00:00:00,P09-2024
P&V,RIVER LEE COUNTRY PARK,PREMISES RELATED EXPENDITURE,ENERGY COSTS (ELECTRICITY),2332,Fishers Green-Toilet Blk-Sept23-Nov23,20/12/2023 00:00:00,280789,622.09,KE0007,KENT COUNTY COUNCIL (KCS),27/11/2023 00:00:00,31/12/2023 00:00:00,P09-2024
P&V,QUEEN ELIZABETH OLYMPIC PARK,PREMISES RELATED EXPENDITURE,ENERGY COSTS (ELECTRICITY),2332,Velo-Feeder Pillar-TFP01-Sept23-Nov23,19/12/2023 00:00:00,280799,2085.11,KE0007,KENT COUNTY COUNCIL (KCS),27/11/2023 00:00:00,31/12/2023 00:00:00,P09-2024
P&V,QUEEN ELIZABETH OLYMPIC PARK,PREMISES RELATED EXPENDITURE,ENERGY COSTS (ELECTRICITY),2332,Velo-Feeder Pillar-TFP02-Sept23-Nov23,19/12/2023 00:00:00,280800,277.12,KE0007,KENT COUNTY COUNCIL (KCS),27/11/2023 00:00:00,31/12/2023 00:00:00,P09-2024
P&V,QUEEN ELIZABETH OLYMPIC PARK,PREMISES RELATED EXPENDITURE,ENERGY COSTS (ELECTRICITY),2332,Velo-Feeder Pillar E13-Sept23-Nov23,19/12/2023 00:00:00,280801,237.61,KE0007,KENT COUNTY COUNCIL (KCS),27/11/2023 00:00:00,31/12/2023 00:00:00,P09-2024
P&V,QUEEN ELIZABETH OLYMPIC PARK,PREMISES RELATED EXPENDITURE,ENERGY COSTS (ELECTRICITY),2332,Velo-Feeder Pillar-E13-Nov 23,19/12/2023 00:00:00,280802,325.46,KE0007,KENT COUNTY COUNCIL (KCS),27/11/2023 00:00:00,31/12/2023 00:00:00,P09-2024
P&V,QUEEN ELIZABETH OLYMPIC PARK,PREMISES RELATED EXPENDITURE,ENERGY COSTS (ELECTRICITY),2332,Velo-Feeder Pillar L05 FP1-Nov23,19/12/2023 00:00:00,280803,154.14,KE0007,KENT COUNTY COUNCIL (KCS),27/11/2023 00:00:00,31/12/2023 00:00:00,P09-2024
P&V,QUEEN ELIZABETH OLYMPIC PARK,PREMISES RELATED EXPENDITURE,ENERGY COSTS (ELECTRICITY),2332,Velo-Feeder Pillar L05 FP1-Nov23,19/12/2023 00:00:00,280803,0.99,KE0007,KENT COUNTY COUNCIL (KCS),27/11/2023 00:00:00,31/12/2023 00:00:00,P09-2024
P&V,CAR PARK INCOME,PREMISES RELATED EXPENDITURE,ENERGY COSTS (ELECTRICITY),2332,Clayton Hill-electricity-Nov23,19/12/2023 00:00:00,280781,43.34,NP0123,NPOWER LIMITED,27/11/2023 00:00:00,31/12/2023 00:00:00,P09-2024
P&V,CAR PARK INCOME,PREMISES RELATED EXPENDITURE,ENERGY COSTS (ELECTRICITY),2332,Cornmill Meadows- electricity-Nov 23,19/12/2023 00:00:00,280782,60.2,NP0123,NPOWER LIMITED,27/11/2023 00:00:00,31/12/2023 00:00:00,P09-2024
,LV LEISURE CENTRE CAMPSITE,PREMISES RELATED EXPENDITURE,ENERGY COSTS (ELECTRICITY),2332,EDM-Elctricity - Nov 2023,19/12/2023 00:00:00,280779,12252.07,NP0123,NPOWER LIMITED,27/11/2023 00:00:00,31/12/2023 00:00:00,P09-2024
,LEE VALLEY MARINA SPRINGFIELD,PREMISES RELATED EXPENDITURE,ENERGY COSTS (GAS),2333,Springfield-gas-Nov23,20/12/2023 00:00:00,280811,1730.83,KE0007,KENT COUNTY COUNCIL (KCS),27/11/2023 00:00:00,31/12/2023 00:00:00,P09-2024
,LEE VALLEY MARINA STANSTEAD,PREMISES RELATED EXPENDITURE,ENERGY COSTS (GAS),2333,31/10/23-30/11/23,31/12/2023 00:00:00,281026,839.62,KE0007,KENT COUNTY COUNCIL (KCS),27/11/2023 00:00:00,31/12/2023 00:00:00,P09-2024
,LEE VALLEY MARINA STANSTEAD,PREMISES RELATED EXPENDITURE,ENERGY COSTS (GAS),2333,31/10/23-30/11/23,31/12/2023 00:00:00,281027,154.49,KE0007,KENT COUNTY COUNCIL (KCS),27/11/2023 00:00:00,31/12/2023 00:00:00,P09-2024
,LEE VALLEY WATERWORKS CENTRE,PREMISES RELATED EXPENDITURE,ENERGY COSTS (GAS),2333,Waterworks-Nov23,19/12/2023 00:00:00,280812,985.92,KE0007,KENT COUNTY COUNCIL (KCS),27/11/2023 00:00:00,31/12/2023 00:00:00,P09-2024
,LEE VALLEY CAMPSITE,PREMISES RELATED EXPENDITURE,ENERGY COSTS (GAS),2333,18/09/23-14/11/23,12/04/2023 00:00,280056,9.33,BR0654,BRITISH GAS TRADING LTD,27/11/2023 00:00:00,31/12/2023 00:00:00,P09-2024
,LEE VALLEY CAMPSITE,PREMISES RELATED EXPENDITURE,ENERGY COSTS (GAS),2333,15/11/23-15/12/23,20/12/2023 00:00:00,280774,13.75,BR0654,BRITISH GAS TRADING LTD,27/11/2023 00:00:00,31/12/2023 00:00:00,P09-2024
,LEE VALLEY CAMPSITE,PREMISES RELATED EXPENDITURE,ENERGY COSTS (GAS),2333,Sewardstone-gas-Nov23,20/12/2023 00:00:00,280809,1214.75,KE0007,KENT COUNTY COUNCIL (KCS),27/11/2023 00:00:00,31/12/2023 00:00:00,P09-2024
,LEE VALLEY CARAVAN PARK,PREMISES RELATED EXPENDITURE,ENERGY COSTS (GAS),2333,P124402-SERVICE-Standing Charge,19/12/2023 00:00:00,280530,60,AV0327,AVANTI GAS LIMITED,27/11/2023 00:00:00,31/12/2023 00:00:00,P09-2024
,LEE VALLEY CARAVAN PARK,PREMISES RELATED EXPENDITURE,ENERGY COSTS (GAS),2333,P124403-SERVICE-Standing charge,19/12/2023 00:00:00,280531,60,AV0327,AVANTI GAS LIMITED,27/11/2023 00:00:00,31/12/2023 00:00:00,P09-2024
,LEE VALLEY CARAVAN PARK,PREMISES RELATED EXPENDITURE,ENERGY COSTS (GAS),2333,P124404-SERVICE-Gas delivery,19/12/2023 00:00:00,280532,1705.62,AV0327,AVANTI GAS LIMITED,27/11/2023 00:00:00,31/12/2023 00:00:00,P09-2024
,LEE VALLEY CARAVAN PARK,PREMISES RELATED EXPENDITURE,ENERGY COSTS (GAS),2333,P124405-SERVICE-Gas delivery,19/12/2023 00:00:00,280582,9341.93,AV0327,AVANTI GAS LIMITED,27/11/2023 00:00:00,31/12/2023 00:00:00,P09-2024
,LEE VALLEY CARAVAN PARK,PREMISES RELATED EXPENDITURE,ENERGY COSTS (GAS),2333,P124498-SERVICE-Gas delivery,31/12/2023 00:00:00,281057,539.47,AV0327,AVANTI GAS LIMITED,27/11/2023 00:00:00,31/12/2023 00:00:00,P09-2024
P&V,GUNPOWDER PARK,PREMISES RELATED EXPENDITURE,ENERGY COSTS (GAS),2333,Field Station-Gunpowder-Nov23,19/12/2023 00:00:00,280813,69.5,KE0007,KENT COUNTY COUNCIL (KCS),27/11/2023 00:00:00,31/12/2023 00:00:00,P09-2024
,LV LEISURE CENTRE CAMPSITE,PREMISES RELATED EXPENDITURE,ENERGY COSTS (GAS),2333,EDM-Gas-Nov23,19/12/2023 00:00:00,280810,3351.48,KE0007,KENT COUNTY COUNCIL (KCS),27/11/2023 00:00:00,31/12/2023 00:00:00,P09-2024
P&V,KING GEORGE RESERVOIR SOUTH,PREMISES RELATED EXPENDITURE,RENT (EXTERNAL),2442,RENT IN ADVANCE-101024-310324,31/12/2023 00:00:00,280777,3375,TH0020,THAMES WATER UTILITIES LIMITED,27/11/2023 00:00:00,31/12/2023 00:00:00,P09-2024
,LV LEISURE CENTRE CAMPSITE,PREMISES RELATED EXPENDITURE,BUSINESS RATES,2444,Business Rate Tax-01/04/22-31/03/23,12/06/2023 00:00,280383,13568,EN0035,LONDON BOROUGH OF ENFIELD,27/11/2023 00:00:00,31/12/2023 00:00:00,P09-2024
,LV LEISURE CENTRE CAMPSITE,PREMISES RELATED EXPENDITURE,BUSINESS RATES,2444,Business Rate Tax-01/04/23-31/03/24,12/06/2023 00:00,280384,7816.39,EN0035,LONDON BOROUGH OF ENFIELD,27/11/2023 00:00:00,31/12/2023 00:00:00,P09-2024
P&V,MYDDELTON HOUSE GARDENS,PREMISES RELATED EXPENDITURE,COUNCIL TAX,2445,Gate Lodge-Late payment charge,20/12/2023 00:00:00,280827,102.5,EN0035,LONDON BOROUGH OF ENFIELD,27/11/2023 00:00:00,31/12/2023 00:00:00,P09-2024
CEO,RESIDENTIAL ACCOMMODATION,PREMISES RELATED EXPENDITURE,PROPERTY MANAGEMT/LETTING FEES,2447,P124280-SERVICE-11 Picketts Lock Lane - Letting & Warranty Fe,19/12/2023 00:00:00,280013,630,CA0165,CASTLES,27/11/2023 00:00:00,31/12/2023 00:00:00,P09-2024
CEO,RESIDENTIAL ACCOMMODATION,PREMISES RELATED EXPENDITURE,PROPERTY MANAGEMT/LETTING FEES,2447,P124280-SERVICE-11 Picketts Lock Lane - Letting & Warranty Fe,19/12/2023 00:00:00,280014,1260,CA0165,CASTLES,27/11/2023 00:00:00,31/12/2023 00:00:00,P09-2024
CEO,RESIDENTIAL ACCOMMODATION,PREMISES RELATED EXPENDITURE,PROPERTY MANAGEMT/LETTING FEES,2447,P124280-SERVICE-11 Picketts Lock Lane - Letting & Warranty Fe,19/12/2023 00:00:00,280015,214.2,CA0165,CASTLES,27/11/2023 00:00:00,31/12/2023 00:00:00,P09-2024
CEO,RESIDENTIAL ACCOMMODATION,PREMISES RELATED EXPENDITURE,PROPERTY MANAGEMT/LETTING FEES,2447,P124280-SERVICE-11 Picketts Lock Lane - Letting & Warranty Fe,19/12/2023 00:00:00,280016,107.1,CA0165,CASTLES,27/11/2023 00:00:00,31/12/2023 00:00:00,P09-2024
CEO,RESIDENTIAL ACCOMMODATION,PREMISES RELATED EXPENDITURE,PROPERTY MANAGEMT/LETTING FEES,2447,P124303-SERVICE-11 Picketts Lock Lane - Landlord Fees,13/12/2023 00:00:00,280275,2040,CA0165,CASTLES,27/11/2023 00:00:00,31/12/2023 00:00:00,P09-2024
CEO,RESIDENTIAL ACCOMMODATION,PREMISES RELATED EXPENDITURE,PROPERTY MANAGEMT/LETTING FEES,2447,P124304-SERVICE-11 Picketts Lock Lane - Landlord Warranty,13/12/2023 00:00:00,280276,438.6,CA0165,CASTLES,27/11/2023 00:00:00,31/12/2023 00:00:00,P09-2024
CEO,RESIDENTIAL ACCOMMODATION,PREMISES RELATED EXPENDITURE,PROPERTY MANAGEMT/LETTING FEES,2447,P124395-SERVICE-2 Connaught Close Landlord & Warranty Fees,19/12/2023 00:00:00,280545,357,CA0165,CASTLES,27/11/2023 00:00:00,31/12/2023 00:00:00,P09-2024
CEO,RESIDENTIAL ACCOMMODATION,PREMISES RELATED EXPENDITURE,PROPERTY MANAGEMT/LETTING FEES,2447,P124395-SERVICE-2 Connaught Close Landlord & Warranty Fees,19/12/2023 00:00:00,280546,2100,CA0165,CASTLES,27/11/2023 00:00:00,31/12/2023 00:00:00,P09-2024
CEO,RESIDENTIAL ACCOMMODATION,PREMISES RELATED EXPENDITURE,PROPERTY MANAGEMT/LETTING FEES,2447,P124396-SERVICE-7 Picketts Lock Lane Landlord Warranty & Fees,19/12/2023 00:00:00,280547,221,CA0165,CASTLES,27/11/2023 00:00:00,31/12/2023 00:00:00,P09-2024
CEO,RESIDENTIAL ACCOMMODATION,PREMISES RELATED EXPENDITURE,PROPERTY MANAGEMT/LETTING FEES,2447,P124396-SERVICE-7 Picketts Lock Lane Landlord Warranty & Fees,19/12/2023 00:00:00,280548,1300,CA0165,CASTLES,27/11/2023 00:00:00,31/12/2023 00:00:00,P09-2024
CEO,RESIDENTIAL ACCOMMODATION,PREMISES RELATED EXPENDITURE,PROPERTY MANAGEMT/LETTING FEES,2447,P124396-SERVICE-7 Picketts Lock Lane Landlord Warranty & Fees,19/12/2023 00:00:00,280549,240,CA0165,CASTLES,27/11/2023 00:00:00,31/12/2023 00:00:00,P09-2024
CEO,RESIDENTIAL ACCOMMODATION,PREMISES RELATED EXPENDITURE,PROPERTY MANAGEMT/LETTING FEES,2447,P124475-SERVICE-7 Picketts Lock Lane Landlord Warranty,31/12/2023 00:00:00,280625,40.8,CA0165,CASTLES,27/11/2023 00:00:00,31/12/2023 00:00:00,P09-2024
CEO,RESIDENTIAL ACCOMMODATION,PREMISES RELATED EXPENDITURE,PROPERTY MANAGEMT/LETTING FEES,2447,P124476-SERVICE-Railway Cottage Management Fee,31/12/2023 00:00:00,280854,800,WA0315,PAUL WALLACE ESTATE AGENTS,27/11/2023 00:00:00,31/12/2023 00:00:00,P09-2024
P&V,MYDDELTON HOUSE,PREMISES RELATED EXPENDITURE,WATER,2555,Md House- water- Nov 2023,12/06/2023 00:00,280317,1723.57,CA0625,CASTLE WATER LIMITED,27/11/2023 00:00:00,31/12/2023 00:00:00,P09-2024
,LEE VALLEY MARINA SPRINGFIELD,PREMISES RELATED EXPENDITURE,WATER,2555,Nov-23,20/12/2023 00:00:00,280754,2010.67,CA0625,CASTLE WATER LIMITED,27/11/2023 00:00:00,31/12/2023 00:00:00,P09-2024
,LEE VALLEY MARINA SPRINGFIELD,PREMISES RELATED EXPENDITURE,WATER,2555,Nov-23,20/12/2023 00:00:00,280754,1242.85,CA0625,CASTLE WATER LIMITED,27/11/2023 00:00:00,31/12/2023 00:00:00,P09-2024
,LEE VALLEY MARINA STANSTEAD,PREMISES RELATED EXPENDITURE,WATER,2555,Stanstead- water - Nov 2023,12/12/2023 00:00,280315,216.19,CA0625,CASTLE WATER LIMITED,27/11/2023 00:00:00,31/12/2023 00:00:00,P09-2024
,LEE VALLEY MARINA STANSTEAD,PREMISES RELATED EXPENDITURE,WATER,2555,Stanstead- water - Nov 2023,12/12/2023 00:00,280315,210.25,CA0625,CASTLE WATER LIMITED,27/11/2023 00:00:00,31/12/2023 00:00:00,P09-2024
,LEE VALLEY WATERWORKS CENTRE,PREMISES RELATED EXPENDITURE,WATER,2555,Waterworks - water- Nov 2023,12/06/2023 00:00,280318,71.01,CA0625,CASTLE WATER LIMITED,27/11/2023 00:00:00,31/12/2023 00:00:00,P09-2024
P&V,LEE VALLEY FARM HOLYFIELDHALL,PREMISES RELATED EXPENDITURE,WATER,2555,Holyfield-Adjustments- April 23-30Sept23,19/12/2023 00:00:00,279871,-2684.13,CA0625,CASTLE WATER LIMITED,27/11/2023 00:00:00,31/12/2023 00:00:00,P09-2024
P&V,LEE VALLEY FARM HOLYFIELDHALL,PREMISES RELATED EXPENDITURE,WATER,2555,Holyfield-Adjustments-Apr 23 -  Ot23,19/12/2023 00:00:00,279872,1721.5,CA0625,CASTLE WATER LIMITED,27/11/2023 00:00:00,31/12/2023 00:00:00,P09-2024
P&V,LEE VALLEY FARM HOLYFIELDHALL,PREMISES RELATED EXPENDITURE,WATER,2555,Holyfiel- water - Nov 23,19/12/2023 00:00:00,280513,260.07,CA0625,CASTLE WATER LIMITED,27/11/2023 00:00:00,31/12/2023 00:00:00,P09-2024
,LEE VALLEY CAMPSITE,PREMISES RELATED EXPENDITURE,WATER,2555,Sewardstone- water-Nov2023,12/12/2023 00:00,280319,2039,CA0625,CASTLE WATER LIMITED,27/11/2023 00:00:00,31/12/2023 00:00:00,P09-2024
,LEE VALLEY CARAVAN PARK,PREMISES RELATED EXPENDITURE,WATER,2555,DW-water- Nov23,12/12/2023 00:00,280522,1990.41,CA0625,CASTLE WATER LIMITED,27/11/2023 00:00:00,31/12/2023 00:00:00,P09-2024
,LEE VALLEY CARAVAN PARK,PREMISES RELATED EXPENDITURE,WATER,2555,DW-water- Nov23,12/12/2023 00:00,280522,3307.12,CA0625,CASTLE WATER LIMITED,27/11/2023 00:00:00,31/12/2023 00:00:00,P09-2024
,LEE VALLEY CARAVAN PARK,PREMISES RELATED EXPENDITURE,WATER,2555,DW- Adjustments- Oct-Nov23,20/12/2023 00:00:00,280873,-55.95,CA0625,CASTLE WATER LIMITED,27/11/2023 00:00:00,31/12/2023 00:00:00,P09-2024
,LEE VALLEY CARAVAN PARK,PREMISES RELATED EXPENDITURE,WATER,2555,DW- Adjustments- Oct-Nov23,20/12/2023 00:00:00,280873,-97.04,CA0625,CASTLE WATER LIMITED,27/11/2023 00:00:00,31/12/2023 00:00:00,P09-2024
P&V,RIVER LEE COUNTRY PARK,PREMISES RELATED EXPENDITURE,WATER,2555,Nov-23,19/12/2023 00:00:00,280756,29.37,CA0625,CASTLE WATER LIMITED,27/11/2023 00:00:00,31/12/2023 00:00:00,P09-2024
P&V,RIVER LEE COUNTRY PARK,PREMISES RELATED EXPENDITURE,WATER,2555,01/10/23-31/10/23,31/12/2023 00:00:00,281003,-44.05,CA0625,CASTLE WATER LIMITED,27/11/2023 00:00:00,31/12/2023 00:00:00,P09-2024
P&V,RIVER LEE COUNTRY PARK,PREMISES RELATED EXPENDITURE,WATER,2555,01/10/23-29/11/23,31/12/2023 00:00:00,281004,38.76,CA0625,CASTLE WATER LIMITED,27/11/2023 00:00:00,31/12/2023 00:00:00,P09-2024
P&V,FORMER LV LIDO SITE,PREMISES RELATED EXPENDITURE,WATER,2555,March 2023-Oct 2023,12/12/2023 00:00,279862,1777.96,CA0625,CASTLE WATER LIMITED,27/11/2023 00:00:00,31/12/2023 00:00:00,P09-2024
P&V,FORMER LV LIDO SITE,PREMISES RELATED EXPENDITURE,WATER,2555,March 2023-Oct 2023,12/12/2023 00:00,279862,427.31,CA0625,CASTLE WATER LIMITED,27/11/2023 00:00:00,31/12/2023 00:00:00,P09-2024
P&V,FORMER LV LIDO SITE,PREMISES RELATED EXPENDITURE,WATER,2555,Brox Riverside- water -Nov 2023,12/12/2023 00:00,280316,464.29,CA0625,CASTLE WATER LIMITED,27/11/2023 00:00:00,31/12/2023 00:00:00,P09-2024
P&V,FORMER LV LIDO SITE,PREMISES RELATED EXPENDITURE,WATER,2555,Brox Riverside- water -Nov 2023,12/12/2023 00:00,280316,479.38,CA0625,CASTLE WATER LIMITED,27/11/2023 00:00:00,31/12/2023 00:00:00,P09-2024
,LV LEISURE CENTRE CAMPSITE,PREMISES RELATED EXPENDITURE,WATER,2555,Nov-23,19/12/2023 00:00:00,280753,595.95,CA0625,CASTLE WATER LIMITED,27/11/2023 00:00:00,31/12/2023 00:00:00,P09-2024
,LV LEISURE CENTRE CAMPSITE,PREMISES RELATED EXPENDITURE,WATER,2555,Nov-23,19/12/2023 00:00:00,280753,454.15,CA0625,CASTLE WATER LIMITED,27/11/2023 00:00:00,31/12/2023 00:00:00,P09-2024
,LV LEISURE CENTRE CAMPSITE,PREMISES RELATED EXPENDITURE,WATER,2555,Nov-23,19/12/2023 00:00:00,280755,35.37,CA0625,CASTLE WATER LIMITED,27/11/2023 00:00:00,31/12/2023 00:00:00,P09-2024
,LV LEISURE CENTRE CAMPSITE,PREMISES RELATED EXPENDITURE,WATER,2555,Nov-23,19/12/2023 00:00:00,280755,40.58,CA0625,CASTLE WATER LIMITED,27/11/2023 00:00:00,31/12/2023 00:00:00,P09-2024
,LV LEISURE CENTRE CAMPSITE,PREMISES RELATED EXPENDITURE,WATER,2555,01/10/23-30/11/23,31/12/2023 00:00:00,281002,-129.82,CA0625,CASTLE WATER LIMITED,27/11/2023 00:00:00,31/12/2023 00:00:00,P09-2024
,LV LEISURE CENTRE CAMPSITE,PREMISES RELATED EXPENDITURE,WATER,2555,01/10/23-30/11/23,31/12/2023 00:00:00,281002,-225.13,CA0625,CASTLE WATER LIMITED,27/11/2023 00:00:00,31/12/2023 00:00:00,P09-2024
P&V,MYDDELTON HOUSE,PREMISES RELATED EXPENDITURE,CLEANING & DOMESTIC SUPPLIES,2666,P124012-SERVICE-amazon cleaning supplies,19/12/2023 00:00:00,280578,14.16,AM0406,AMAZON PAYMENTS UK LIMITED,27/11/2023 00:00:00,31/12/2023 00:00:00,P09-2024
,LEE VALLEY MARINA SPRINGFIELD,PREMISES RELATED EXPENDITURE,CLEANING & DOMESTIC SUPPLIES,2666,P123193-SERVICE-Site Cleaning August to november 23,12/06/2023 00:00,280334,1070.52,MA0015,MAYFAIR CLEANING COMPANY LIMITED,27/11/2023 00:00:00,31/12/2023 00:00:00,P09-2024
,LEE VALLEY CAMPSITE,PREMISES RELATED EXPENDITURE,CLEANING & DOMESTIC SUPPLIES,2666,P123437-SERVICE-INCREASE P/O TO COVER INVOICE,12/05/2023 00:00,280250,427.17,HY0043,HYGIENE SYSTEMS LTD,27/11/2023 00:00:00,31/12/2023 00:00:00,P09-2024
,LEE VALLEY CAMPSITE,PREMISES RELATED EXPENDITURE,CLEANING & DOMESTIC SUPPLIES,2666,P123437-SERVICE-Site cleaning materials,12/05/2023 00:00,280250,9.12,HY0043,HYGIENE SYSTEMS LTD,27/11/2023 00:00:00,31/12/2023 00:00:00,P09-2024
,LEE VALLEY CAMPSITE,PREMISES RELATED EXPENDITURE,CLEANING & DOMESTIC SUPPLIES,2666,P124339-SERVICE-double mattress protectors x8,20/12/2023 00:00:00,280484,59.92,AM0406,AMAZON PAYMENTS UK LIMITED,27/11/2023 00:00:00,31/12/2023 00:00:00,P09-2024
,LEE VALLEY CAMPSITE,PREMISES RELATED EXPENDITURE,CLEANING & DOMESTIC SUPPLIES,2666,P124339-SERVICE-single waterproof mattress protectors x9,13/12/2023 00:00:00,280511,59.58,AM0406,AMAZON PAYMENTS UK LIMITED,27/11/2023 00:00:00,31/12/2023 00:00:00,P09-2024
,LEE VALLEY CAMPSITE,PREMISES RELATED EXPENDITURE,CLEANING & DOMESTIC SUPPLIES,2666,P123910-SERVICE-Stock Site cleaning materials,12/12/2023 00:00,280519,185.11,HY0043,HYGIENE SYSTEMS LTD,27/11/2023 00:00:00,31/12/2023 00:00:00,P09-2024
,LEE VALLEY CAMPSITE,PREMISES RELATED EXPENDITURE,CLEANING & DOMESTIC SUPPLIES,2666,P123910-SERVICE-Stock Site cleaning materials,12/12/2023 00:00,280520,21.6,HY0043,HYGIENE SYSTEMS LTD,27/11/2023 00:00:00,31/12/2023 00:00:00,P09-2024
,LEE VALLEY CAMPSITE,PREMISES RELATED EXPENDITURE,CLEANING & DOMESTIC SUPPLIES,2666,P124339-SERVICE-12xyellow dusters,20/12/2023 00:00:00,280558,8.32,AM0406,AMAZON PAYMENTS UK LIMITED,27/11/2023 00:00:00,31/12/2023 00:00:00,P09-2024
,LEE VALLEY CAMPSITE,PREMISES RELATED EXPENDITURE,CLEANING & DOMESTIC SUPPLIES,2666,P124339-SERVICE-tea towels,20/12/2023 00:00:00,280559,11.66,AM0406,AMAZON PAYMENTS UK LIMITED,27/11/2023 00:00:00,31/12/2023 00:00:00,P09-2024
,LEE VALLEY CARAVAN PARK,PREMISES RELATED EXPENDITURE,CLEANING & DOMESTIC SUPPLIES,2666,P124231-SERVICE-Cleaning materials,12/06/2023 00:00,280344,142.92,HY0043,HYGIENE SYSTEMS LTD,27/11/2023 00:00:00,31/12/2023 00:00:00,P09-2024
,LEE VALLEY CARAVAN PARK,PREMISES RELATED EXPENDITURE,CLEANING & DOMESTIC SUPPLIES,2666,P124363-SERVICE-Cleaning materials,31/12/2023 00:00:00,280823,303.04,HY0043,HYGIENE SYSTEMS LTD,27/11/2023 00:00:00,31/12/2023 00:00:00,P09-2024
P&V,RIVER LEE COUNTRY PARK,PREMISES RELATED EXPENDITURE,CLEANING & DOMESTIC SUPPLIES,2666,P124206-SERVICE-1x Value Toilet Rolls Pk36 - 78285CP,12/12/2023 00:00,280231,15.77,TH0008,JKL SOLUTIONS LTD,27/11/2023 00:00:00,31/12/2023 00:00:00,P09-2024
P&V,RIVER LEE COUNTRY PARK,PREMISES RELATED EXPENDITURE,CLEANING & DOMESTIC SUPPLIES,2666,P124206-SERVICE-1x Kitchen Roll 2ply (6x4) - KITCROLL24,12/12/2023 00:00,280231,8.99,TH0008,JKL SOLUTIONS LTD,27/11/2023 00:00:00,31/12/2023 00:00:00,P09-2024
P&V,RIVER LEE COUNTRY PARK,PREMISES RELATED EXPENDITURE,CLEANING & DOMESTIC SUPPLIES,2666,P124207-SERVICE-1x Washing Up Liquid - 500234,12/04/2023 00:00,280239,4.32,GR0020,GREENHAM TRADING LIMITED,27/11/2023 00:00:00,31/12/2023 00:00:00,P09-2024
P&V,RIVER LEE COUNTRY PARK,PREMISES RELATED EXPENDITURE,CLEANING & DOMESTIC SUPPLIES,2666,P124207-SERVICE-1x Carex Hand Wash 5Lt - 548014,12/04/2023 00:00,280239,14.87,GR0020,GREENHAM TRADING LIMITED,27/11/2023 00:00:00,31/12/2023 00:00:00,P09-2024
,LV LEISURE CENTRE CAMPSITE,PREMISES RELATED EXPENDITURE,CLEANING & DOMESTIC SUPPLIES,2666,P124211-SERVICE-Cleaning supplies,19/12/2023 00:00:00,280266,252.56,HY0043,HYGIENE SYSTEMS LTD,27/11/2023 00:00:00,31/12/2023 00:00:00,P09-2024
,LV LEISURE CENTRE CAMPSITE,PREMISES RELATED EXPENDITURE,CLEANING & DOMESTIC SUPPLIES,2666,P124409-SERVICE-Cleaning supplies,19/12/2023 00:00:00,280857,286,HY0043,HYGIENE SYSTEMS LTD,27/11/2023 00:00:00,31/12/2023 00:00:00,P09-2024
P&V,LEE VALLEY FARM HOLYFIELDHALL,TRANSPORT RELATED EXPENDITURE,TRANSPORT RUNNING EXPENSES,3333,P121504-SERVICE-Tractor Spares,12/04/2023 00:00,280079,93.33,OL0059,OLIVER LANDPOWER LIMITED,27/11/2023 00:00:00,31/12/2023 00:00:00,P09-2024
P&V,LEE VALLEY FARM HOLYFIELDHALL,TRANSPORT RELATED EXPENDITURE,TRANSPORT RUNNING EXPENSES,3333,P121496-SERVICE-Workshop Sundries,19/12/2023 00:00:00,280245,29.5,GR0022,GROUP COMPONENTS LIMITED,27/11/2023 00:00:00,31/12/2023 00:00:00,P09-2024
P&V,LEE VALLEY FARM HOLYFIELDHALL,TRANSPORT RELATED EXPENDITURE,TRANSPORT RUNNING EXPENSES,3333,P121507-SERVICE-Machinery Spares,19/12/2023 00:00:00,280274,126.01,SP0034,SPALDINGS (UK) LIMITED,27/11/2023 00:00:00,31/12/2023 00:00:00,P09-2024
P&V,LEE VALLEY FARM HOLYFIELDHALL,TRANSPORT RELATED EXPENDITURE,TRANSPORT RUNNING EXPENSES,3333,P121496-SERVICE-Workshop Sundries,19/12/2023 00:00:00,280277,27.03,GR0022,GROUP COMPONENTS LIMITED,27/11/2023 00:00:00,31/12/2023 00:00:00,P09-2024
P&V,LEE VALLEY FARM HOLYFIELDHALL,TRANSPORT RELATED EXPENDITURE,TRANSPORT RUNNING EXPENSES,3333,P124271-SERVICE-5000ltr Red Disel,19/12/2023 00:00:00,280321,3855.85,TE0052,CERTAS ENERGY UK LIMITED,27/11/2023 00:00:00,31/12/2023 00:00:00,P09-2024
P&V,LEE VALLEY FARM HOLYFIELDHALL,TRANSPORT RELATED EXPENDITURE,TRANSPORT RUNNING EXPENSES,3333,P121507-SERVICE-Machinery Spares,19/12/2023 00:00:00,280343,23.62,SP0034,SPALDINGS (UK) LIMITED,27/11/2023 00:00:00,31/12/2023 00:00:00,P09-2024
P&V,LEE VALLEY FARM HOLYFIELDHALL,TRANSPORT RELATED EXPENDITURE,TRANSPORT RUNNING EXPENSES,3333,P121509-SERVICE-Tractor Spares,19/12/2023 00:00:00,280565,140.82,RW0257,R. W. CRAWFORD AGRICULTURAL MACHINERY LTD,27/11/2023 00:00:00,31/12/2023 00:00:00,P09-2024
P&V,LEE VALLEY FARM HOLYFIELDHALL,TRANSPORT RELATED EXPENDITURE,TRANSPORT RUNNING EXPENSES,3333,P124443-SERVICE-PTO Cover,19/12/2023 00:00:00,280635,514.15,OL0059,OLIVER LANDPOWER LIMITED,27/11/2023 00:00:00,31/12/2023 00:00:00,P09-2024
P&V,LEE VALLEY FARM HOLYFIELDHALL,TRANSPORT RELATED EXPENDITURE,TRANSPORT RUNNING EXPENSES,3333,P121507-SERVICE-Machinery Spares,31/12/2023 00:00:00,280842,8.52,SP0034,SPALDINGS (UK) LIMITED,27/11/2023 00:00:00,31/12/2023 00:00:00,P09-2024
P&V,LEE VALLEY FARM HOLYFIELDHALL,TRANSPORT RELATED EXPENDITURE,TRANSPORT RUNNING EXPENSES,3333,P124438-SERVICE-Passage Scraper Spares/Drive Sprocket,31/12/2023 00:00:00,280849,201.5,PO0086,POLLOCK FARM EQUIPMENT,27/11/2023 00:00:00,31/12/2023 00:00:00,P09-2024
P&V,LEE VALLEY FARM HOLYFIELDHALL,TRANSPORT RELATED EXPENDITURE,TRANSPORT RUNNING EXPENSES,3333,P121498-SERVICE-Puncture Repair,31/12/2023 00:00:00,281091,228,KB0006,CITY 1ST LTD (frmly KB TYRES LTD),27/11/2023 00:00:00,31/12/2023 00:00:00,P09-2024
P&V,FISHERIES MANAGEMENT,TRANSPORT RELATED EXPENDITURE,VEHICLE FUEL,3335,FUEL CARD--Nov 2023,12/06/2023 00:00,280309,4.18,AR0035,ALLSTAR BUSINESS SOLUTIONS LTD,27/11/2023 00:00:00,31/12/2023 00:00:00,P09-2024
P&V,FISHERIES MANAGEMENT,TRANSPORT RELATED EXPENDITURE,VEHICLE FUEL,3335,FUEL CARD--Nov 2023,12/06/2023 00:00,280309,162.37,AR0035,ALLSTAR BUSINESS SOLUTIONS LTD,27/11/2023 00:00:00,31/12/2023 00:00:00,P09-2024
P&V,FISHERIES MANAGEMENT,TRANSPORT RELATED EXPENDITURE,VEHICLE FUEL,3335,fuel card- Dec 2023,31/12/2023 00:00:00,281049,4.18,AR0035,ALLSTAR BUSINESS SOLUTIONS LTD,27/11/2023 00:00:00,31/12/2023 00:00:00,P09-2024
,LEE VALLEY MARINA STANSTEAD,TRANSPORT RELATED EXPENDITURE,VEHICLE FUEL,3335,FUEL CARD--Nov 2023,12/06/2023 00:00,280309,4.18,AR0035,ALLSTAR BUSINESS SOLUTIONS LTD,27/11/2023 00:00:00,31/12/2023 00:00:00,P09-2024
,LEE VALLEY MARINA STANSTEAD,TRANSPORT RELATED EXPENDITURE,VEHICLE FUEL,3335,FUEL CARD--Nov 2023,12/06/2023 00:00,280309,89.23,AR0035,ALLSTAR BUSINESS SOLUTIONS LTD,27/11/2023 00:00:00,31/12/2023 00:00:00,P09-2024
,LEE VALLEY MARINA STANSTEAD,TRANSPORT RELATED EXPENDITURE,VEHICLE FUEL,3335,fuel card- Dec 2023,31/12/2023 00:00:00,281049,4.18,AR0035,ALLSTAR BUSINESS SOLUTIONS LTD,27/11/2023 00:00:00,31/12/2023 00:00:00,P09-2024
,STANSTEAD RECHARGEABLE WORKS,TRANSPORT RELATED EXPENDITURE,VEHICLE FUEL,3335,P124225-SERVICE-200 ltrs white diesel,13/12/2023 00:00:00,280312,290.8,SP0543,SPEEDY FUELS LIMITED,27/11/2023 00:00:00,31/12/2023 00:00:00,P09-2024
P&V,LEE VALLEY FARM HOLYFIELDHALL,TRANSPORT RELATED EXPENDITURE,VEHICLE FUEL,3335,FUEL CARD--Nov 2023,12/06/2023 00:00,280309,6.27,AR0035,ALLSTAR BUSINESS SOLUTIONS LTD,27/11/2023 00:00:00,31/12/2023 00:00:00,P09-2024
P&V,LEE VALLEY FARM HOLYFIELDHALL,TRANSPORT RELATED EXPENDITURE,VEHICLE FUEL,3335,fuel card- Dec 2023,31/12/2023 00:00:00,281049,6.27,AR0035,ALLSTAR BUSINESS SOLUTIONS LTD,27/11/2023 00:00:00,31/12/2023 00:00:00,P09-2024
,LEE VALLEY CAMPSITE,TRANSPORT RELATED EXPENDITURE,VEHICLE FUEL,3335,FUEL CARD--Nov 2023,12/06/2023 00:00,280309,39.03,AR0035,ALLSTAR BUSINESS SOLUTIONS LTD,27/11/2023 00:00:00,31/12/2023 00:00:00,P09-2024
,LEE VALLEY CAMPSITE,TRANSPORT RELATED EXPENDITURE,VEHICLE FUEL,3335,FUEL CARD--Nov 2023,12/06/2023 00:00,280309,6.27,AR0035,ALLSTAR BUSINESS SOLUTIONS LTD,27/11/2023 00:00:00,31/12/2023 00:00:00,P09-2024
,LEE VALLEY CAMPSITE,TRANSPORT RELATED EXPENDITURE,VEHICLE FUEL,3335,fuel card- Dec 2023,31/12/2023 00:00:00,281049,23.04,AR0035,ALLSTAR BUSINESS SOLUTIONS LTD,27/11/2023 00:00:00,31/12/2023 00:00:00,P09-2024
,LEE VALLEY CAMPSITE,TRANSPORT RELATED EXPENDITURE,VEHICLE FUEL,3335,fuel card- Dec 2023,31/12/2023 00:00:00,281049,6.27,AR0035,ALLSTAR BUSINESS SOLUTIONS LTD,27/11/2023 00:00:00,31/12/2023 00:00:00,P09-2024
,LEE VALLEY CARAVAN PARK,TRANSPORT RELATED EXPENDITURE,VEHICLE FUEL,3335,FUEL CARD--Nov 2023,12/06/2023 00:00,280309,4.18,AR0035,ALLSTAR BUSINESS SOLUTIONS LTD,27/11/2023 00:00:00,31/12/2023 00:00:00,P09-2024
,LEE VALLEY CARAVAN PARK,TRANSPORT RELATED EXPENDITURE,VEHICLE FUEL,3335,FUEL CARD--Nov 2023,12/06/2023 00:00,280309,116.93,AR0035,ALLSTAR BUSINESS SOLUTIONS LTD,27/11/2023 00:00:00,31/12/2023 00:00:00,P09-2024
,LEE VALLEY CARAVAN PARK,TRANSPORT RELATED EXPENDITURE,VEHICLE FUEL,3335,fuel card- Dec 2023,31/12/2023 00:00:00,281049,125.68,AR0035,ALLSTAR BUSINESS SOLUTIONS LTD,27/11/2023 00:00:00,31/12/2023 00:00:00,P09-2024
,LEE VALLEY CARAVAN PARK,TRANSPORT RELATED EXPENDITURE,VEHICLE FUEL,3335,fuel card- Dec 2023,31/12/2023 00:00:00,281049,4.18,AR0035,ALLSTAR BUSINESS SOLUTIONS LTD,27/11/2023 00:00:00,31/12/2023 00:00:00,P09-2024
P&V,MYDDELTON HOUSE GARDENS,TRANSPORT RELATED EXPENDITURE,VEHICLE FUEL,3335,FUEL CARD--Nov 2023,12/06/2023 00:00,280309,2.09,AR0035,ALLSTAR BUSINESS SOLUTIONS LTD,27/11/2023 00:00:00,31/12/2023 00:00:00,P09-2024
P&V,MYDDELTON HOUSE GARDENS,TRANSPORT RELATED EXPENDITURE,VEHICLE FUEL,3335,fuel card- Dec 2023,31/12/2023 00:00:00,281049,2.09,AR0035,ALLSTAR BUSINESS SOLUTIONS LTD,27/11/2023 00:00:00,31/12/2023 00:00:00,P09-2024
P&V,NORTH AREA RANGERS,TRANSPORT RELATED EXPENDITURE,VEHICLE FUEL,3335,FUEL CARD--Nov 2023,12/06/2023 00:00,280309,25.08,AR0035,ALLSTAR BUSINESS SOLUTIONS LTD,27/11/2023 00:00:00,31/12/2023 00:00:00,P09-2024
P&V,NORTH AREA RANGERS,TRANSPORT RELATED EXPENDITURE,VEHICLE FUEL,3335,FUEL CARD--Nov 2023,12/06/2023 00:00,280309,105.57,AR0035,ALLSTAR BUSINESS SOLUTIONS LTD,27/11/2023 00:00:00,31/12/2023 00:00:00,P09-2024
P&V,NORTH AREA RANGERS,TRANSPORT RELATED EXPENDITURE,VEHICLE FUEL,3335,fuel card- Dec 2023,31/12/2023 00:00:00,281049,329.1,AR0035,ALLSTAR BUSINESS SOLUTIONS LTD,27/11/2023 00:00:00,31/12/2023 00:00:00,P09-2024
P&V,NORTH AREA RANGERS,TRANSPORT RELATED EXPENDITURE,VEHICLE FUEL,3335,fuel card- Dec 2023,31/12/2023 00:00:00,281049,22.99,AR0035,ALLSTAR BUSINESS SOLUTIONS LTD,27/11/2023 00:00:00,31/12/2023 00:00:00,P09-2024
P&V,SOUTH AREA RANGERS,TRANSPORT RELATED EXPENDITURE,VEHICLE FUEL,3335,FUEL CARD--Nov 2023,12/06/2023 00:00,280309,10.45,AR0035,ALLSTAR BUSINESS SOLUTIONS LTD,27/11/2023 00:00:00,31/12/2023 00:00:00,P09-2024
P&V,SOUTH AREA RANGERS,TRANSPORT RELATED EXPENDITURE,VEHICLE FUEL,3335,FUEL CARD--Nov 2023,12/06/2023 00:00,280309,345.43,AR0035,ALLSTAR BUSINESS SOLUTIONS LTD,27/11/2023 00:00:00,31/12/2023 00:00:00,P09-2024
P&V,SOUTH AREA RANGERS,TRANSPORT RELATED EXPENDITURE,VEHICLE FUEL,3335,fuel card- Dec 2023,31/12/2023 00:00:00,281049,340.32,AR0035,ALLSTAR BUSINESS SOLUTIONS LTD,27/11/2023 00:00:00,31/12/2023 00:00:00,P09-2024
P&V,SOUTH AREA RANGERS,TRANSPORT RELATED EXPENDITURE,VEHICLE FUEL,3335,fuel card- Dec 2023,31/12/2023 00:00:00,281049,10.45,AR0035,ALLSTAR BUSINESS SOLUTIONS LTD,27/11/2023 00:00:00,31/12/2023 00:00:00,P09-2024
,LV LEISURE CENTRE CAMPSITE,TRANSPORT RELATED EXPENDITURE,VEHICLE FUEL,3335,FUEL CARD--Nov 2023,12/06/2023 00:00,280309,2.09,AR0035,ALLSTAR BUSINESS SOLUTIONS LTD,27/11/2023 00:00:00,31/12/2023 00:00:00,P09-2024
,LV LEISURE CENTRE CAMPSITE,TRANSPORT RELATED EXPENDITURE,VEHICLE FUEL,3335,fuel card- Dec 2023,31/12/2023 00:00:00,281049,71.83,AR0035,ALLSTAR BUSINESS SOLUTIONS LTD,27/11/2023 00:00:00,31/12/2023 00:00:00,P09-2024
,LV LEISURE CENTRE CAMPSITE,TRANSPORT RELATED EXPENDITURE,VEHICLE FUEL,3335,fuel card- Dec 2023,31/12/2023 00:00:00,281049,2.09,AR0035,ALLSTAR BUSINESS SOLUTIONS LTD,27/11/2023 00:00:00,31/12/2023 00:00:00,P09-2024
P&V,NORTH AREA RANGERS,TRANSPORT RELATED EXPENDITURE,VEHICLE REPAIRS & MAINTENANCE,3338,Repairs,31/12/2023 00:00:00,281048,35.75,AR0035,ALLSTAR BUSINESS SOLUTIONS LTD,27/11/2023 00:00:00,31/12/2023 00:00:00,P09-2024
P&V,SOUTH AREA RANGERS,TRANSPORT RELATED EXPENDITURE,VEHICLE REPAIRS & MAINTENANCE,3338,P124167-SERVICE-Parts for Repairs - LT71HPN,31/12/2023 00:00:00,280815,325,DR0326,DRIVING FORCE,27/11/2023 00:00:00,31/12/2023 00:00:00,P09-2024
P&V,SOUTH AREA RANGERS,TRANSPORT RELATED EXPENDITURE,VEHICLE REPAIRS & MAINTENANCE,3338,P124167-SERVICE-Repairs to Vehicle LT71HPN,31/12/2023 00:00:00,280815,1520,DR0326,DRIVING FORCE,27/11/2023 00:00:00,31/12/2023 00:00:00,P09-2024
P&V,RIVER LEE COUNTRY PARK,TRANSPORT RELATED EXPENDITURE,VEHICLE REPAIRS & MAINTENANCE,3338,P124330-SERVICE-Light Board for Trailer,31/12/2023 00:00:00,280525,112.38,TO0071,GT TOWING,27/11/2023 00:00:00,31/12/2023 00:00:00,P09-2024
P&V,RIVER LEE COUNTRY PARK,TRANSPORT RELATED EXPENDITURE,VEHICLE REPAIRS & MAINTENANCE,3338,P124410-SERVICE-Vehicle Recovery - EY20TJZ,19/12/2023 00:00:00,280571,145,AB0153,ABBEY SERVICE CENTRE,27/11/2023 00:00:00,31/12/2023 00:00:00,P09-2024
P&V,RIVER LEE COUNTRY PARK,TRANSPORT RELATED EXPENDITURE,VEHICLE REPAIRS & MAINTENANCE,3338,P123378-SERVICE-Gator Repairs,31/12/2023 00:00:00,280831,2008.06,TU0006,P TUCKWELL LTD,27/11/2023 00:00:00,31/12/2023 00:00:00,P09-2024
P&V,RIVER LEE COUNTRY PARK,TRANSPORT RELATED EXPENDITURE,VEHICLE REPAIRS & MAINTENANCE,3338,P124428-SERVICE-Trailer,31/12/2023 00:00:00,280843,102.5,TO0071,GT TOWING,27/11/2023 00:00:00,31/12/2023 00:00:00,P09-2024
P&V,VOLUNTEERS (L&E),TRANSPORT RELATED EXPENDITURE,TRAVELLING EXPENSES,3344,J Wright-TRAVEL EXPENSE,12/12/2023 00:00,280567,71,WR0363,JONATHAN WRIGHT,27/11/2023 00:00:00,31/12/2023 00:00:00,P09-2024
P&V,VOLUNTEERS (L&E),TRANSPORT RELATED EXPENDITURE,TRAVELLING EXPENSES,3344,Travel Expense-020923-291123,19/12/2023 00:00:00,280778,188.1,CH0762,MRS BRENDA CHANTER,27/11/2023 00:00:00,31/12/2023 00:00:00,P09-2024
P&V,MYDDELTON HOUSE,SUPPLIES AND SERVICES,EQUIPMENT & MATERIALS,4111,P124369-SERVICE-Materials,19/12/2023 00:00:00,280579,17.46,AM0406,AMAZON PAYMENTS UK LIMITED,27/11/2023 00:00:00,31/12/2023 00:00:00,P09-2024
,LEE VALLEY MARINA SPRINGFIELD,SUPPLIES AND SERVICES,EQUIPMENT & MATERIALS,4111,Springfield-various materials,12/12/2023 00:00,280347,-344.89,SA0008,SAFETEC DIRECT LTD,27/11/2023 00:00:00,31/12/2023 00:00:00,P09-2024
,LEE VALLEY MARINA SPRINGFIELD,SUPPLIES AND SERVICES,EQUIPMENT & MATERIALS,4111,Springfield-various materials,12/12/2023 00:00,280347,66.98,SA0008,SAFETEC DIRECT LTD,27/11/2023 00:00:00,31/12/2023 00:00:00,P09-2024
,LEE VALLEY MARINA SPRINGFIELD,SUPPLIES AND SERVICES,EQUIPMENT & MATERIALS,4111,Springfield-various materials,12/12/2023 00:00,280347,277.91,SA0008,SAFETEC DIRECT LTD,27/11/2023 00:00:00,31/12/2023 00:00:00,P09-2024
,LEE VALLEY MARINA SPRINGFIELD,SUPPLIES AND SERVICES,EQUIPMENT & MATERIALS,4111,P124244-SERVICE-To supply items as per quote,12/12/2023 00:00,280347,344.89,SA0008,SAFETEC DIRECT LTD,27/11/2023 00:00:00,31/12/2023 00:00:00,P09-2024
,LEE VALLEY MARINA SPRINGFIELD,SUPPLIES AND SERVICES,EQUIPMENT & MATERIALS,4111,P124274-SERVICE-Fire Signs & equipment,12/12/2023 00:00,280398,98.1,TJ0009,T.J.FIRE & SECURITY,27/11/2023 00:00:00,31/12/2023 00:00:00,P09-2024
,STANSTEAD RECHARGEABLE WORKS,SUPPLIES AND SERVICES,EQUIPMENT & MATERIALS,4111,P124028-SERVICE-blacking,13/12/2023 00:00:00,280397,11.2,AQ0033,AQUAFAX LIMITED,27/11/2023 00:00:00,31/12/2023 00:00:00,P09-2024
,LEE VALLEY CAMPSITE,SUPPLIES AND SERVICES,EQUIPMENT & MATERIALS,4111,P123911-SERVICE-Equipment oil primer,12/05/2023 00:00,279806,3.74,AM0406,AMAZON PAYMENTS UK LIMITED,27/11/2023 00:00:00,31/12/2023 00:00:00,P09-2024
,LEE VALLEY CAMPSITE,SUPPLIES AND SERVICES,EQUIPMENT & MATERIALS,4111,P123911-SERVICE-Caravan leg winder,12/05/2023 00:00,279807,7.42,AM0406,AMAZON PAYMENTS UK LIMITED,27/11/2023 00:00:00,31/12/2023 00:00:00,P09-2024
,LEE VALLEY CAMPSITE,SUPPLIES AND SERVICES,EQUIPMENT & MATERIALS,4111,P123911-SERVICE-Feeler gauges,12/05/2023 00:00,279875,2.65,AM0406,AMAZON PAYMENTS UK LIMITED,27/11/2023 00:00:00,31/12/2023 00:00:00,P09-2024
,LEE VALLEY CAMPSITE,SUPPLIES AND SERVICES,EQUIPMENT & MATERIALS,4111,P123911-SERVICE-Air filters x2,12/05/2023 00:00,279876,15.28,AM0406,AMAZON PAYMENTS UK LIMITED,27/11/2023 00:00:00,31/12/2023 00:00:00,P09-2024
,LEE VALLEY CAMPSITE,SUPPLIES AND SERVICES,EQUIPMENT & MATERIALS,4111,P123911-SERVICE-Toilet door lock,12/05/2023 00:00,279877,9.15,AM0406,AMAZON PAYMENTS UK LIMITED,27/11/2023 00:00:00,31/12/2023 00:00:00,P09-2024
,LEE VALLEY CAMPSITE,SUPPLIES AND SERVICES,EQUIPMENT & MATERIALS,4111,P123911-SERVICE-Air filters x2,12/05/2023 00:00,279878,1.7,AM0406,AMAZON PAYMENTS UK LIMITED,27/11/2023 00:00:00,31/12/2023 00:00:00,P09-2024
,LEE VALLEY CAMPSITE,SUPPLIES AND SERVICES,EQUIPMENT & MATERIALS,4111,P123911-SERVICE-Feeler gauges,12/05/2023 00:00,279878,1.84,AM0406,AMAZON PAYMENTS UK LIMITED,27/11/2023 00:00:00,31/12/2023 00:00:00,P09-2024
,LEE VALLEY CAMPSITE,SUPPLIES AND SERVICES,EQUIPMENT & MATERIALS,4111,P124339-SERVICE-grid/paving/drainage grass protectors,19/12/2023 00:00:00,280510,260.4,AM0406,AMAZON PAYMENTS UK LIMITED,27/11/2023 00:00:00,31/12/2023 00:00:00,P09-2024
,LEE VALLEY CARAVAN PARK,SUPPLIES AND SERVICES,EQUIPMENT & MATERIALS,4111,P122223-SERVICE-Annual Service,12/12/2023 00:00,278415,305.64,TJ0009,T.J.FIRE & SECURITY,27/11/2023 00:00:00,31/12/2023 00:00:00,P09-2024
,LEE VALLEY CARAVAN PARK,SUPPLIES AND SERVICES,EQUIPMENT & MATERIALS,4111,P124166-SERVICE-Replacement lights and lamps,12/04/2023 00:00,280030,290,BR0018,BRADSHAW ELECTRICAL LIMITED,27/11/2023 00:00:00,31/12/2023 00:00:00,P09-2024
,LEE VALLEY CARAVAN PARK,SUPPLIES AND SERVICES,EQUIPMENT & MATERIALS,4111,P124232-SERVICE-Outdoor screws,12/04/2023 00:00,280042,18.02,SC0057,SCREWFIX DIRECT LTD,27/11/2023 00:00:00,31/12/2023 00:00:00,P09-2024
,LEE VALLEY CARAVAN PARK,SUPPLIES AND SERVICES,EQUIPMENT & MATERIALS,4111,P124235-SERVICE-Adhedive/paint scuttle,12/04/2023 00:00,280094,34.16,SC0057,SCREWFIX DIRECT LTD,27/11/2023 00:00:00,31/12/2023 00:00:00,P09-2024
,LEE VALLEY CARAVAN PARK,SUPPLIES AND SERVICES,EQUIPMENT & MATERIALS,4111,P124267-SERVICE-Blinds and Heaters for Wigwams,12/05/2023 00:00,280285,82.43,AM0406,AMAZON PAYMENTS UK LIMITED,27/11/2023 00:00:00,31/12/2023 00:00:00,P09-2024
,LEE VALLEY CARAVAN PARK,SUPPLIES AND SERVICES,EQUIPMENT & MATERIALS,4111,P124267-SERVICE-Blinds and Heaters for Wigwams,12/05/2023 00:00,280286,4.41,AM0406,AMAZON PAYMENTS UK LIMITED,27/11/2023 00:00:00,31/12/2023 00:00:00,P09-2024
,LEE VALLEY CARAVAN PARK,SUPPLIES AND SERVICES,EQUIPMENT & MATERIALS,4111,P124267-SERVICE-Blinds and Heaters for Wigwams,12/06/2023 00:00,280304,42.48,AM0406,AMAZON PAYMENTS UK LIMITED,27/11/2023 00:00:00,31/12/2023 00:00:00,P09-2024
,LEE VALLEY CARAVAN PARK,SUPPLIES AND SERVICES,EQUIPMENT & MATERIALS,4111,"P124310-SERVICE-Paint, screws, cutting discs",12/06/2023 00:00,280335,54.97,SC0057,SCREWFIX DIRECT LTD,27/11/2023 00:00:00,31/12/2023 00:00:00,P09-2024
,LEE VALLEY CARAVAN PARK,SUPPLIES AND SERVICES,EQUIPMENT & MATERIALS,4111,P124311-SERVICE-Blinds for Wigwam,12/12/2023 00:00,280381,13.06,AM0406,AMAZON PAYMENTS UK LIMITED,27/11/2023 00:00:00,31/12/2023 00:00:00,P09-2024
,LEE VALLEY CARAVAN PARK,SUPPLIES AND SERVICES,EQUIPMENT & MATERIALS,4111,P124311-SERVICE-Blinds for Wigwam,12/12/2023 00:00,280483,46.46,AM0406,AMAZON PAYMENTS UK LIMITED,27/11/2023 00:00:00,31/12/2023 00:00:00,P09-2024
,LEE VALLEY CARAVAN PARK,SUPPLIES AND SERVICES,EQUIPMENT & MATERIALS,4111,P124499-SERVICE-Female coupler,31/12/2023 00:00:00,281075,2.74,SC0057,SCREWFIX DIRECT LTD,27/11/2023 00:00:00,31/12/2023 00:00:00,P09-2024
,LEE VALLEY CARAVAN PARK,SUPPLIES AND SERVICES,EQUIPMENT & MATERIALS,4111,P124508-SERVICE-comb 5 key safe,31/12/2023 00:00:00,281076,14.99,SC0057,SCREWFIX DIRECT LTD,27/11/2023 00:00:00,31/12/2023 00:00:00,P09-2024
P&V,MYDDELTON HOUSE GARDENS,SUPPLIES AND SERVICES,EQUIPMENT & MATERIALS,4111,P123923-SERVICE-amazon gardens supplies,30/11/2023 00:00:00,279738,14.29,AM0406,AMAZON PAYMENTS UK LIMITED,27/11/2023 00:00:00,31/12/2023 00:00:00,P09-2024
P&V,MYDDELTON HOUSE GARDENS,SUPPLIES AND SERVICES,EQUIPMENT & MATERIALS,4111,P123923-SERVICE-amazon gardens supplies,30/11/2023 00:00:00,279740,14.29,AM0406,AMAZON PAYMENTS UK LIMITED,27/11/2023 00:00:00,31/12/2023 00:00:00,P09-2024
P&V,MYDDELTON HOUSE GARDENS,SUPPLIES AND SERVICES,EQUIPMENT & MATERIALS,4111,P123923-SERVICE-amazon gardens supplies,30/11/2023 00:00:00,279760,14.29,AM0406,AMAZON PAYMENTS UK LIMITED,27/11/2023 00:00:00,31/12/2023 00:00:00,P09-2024
P&V,MYDDELTON HOUSE GARDENS,SUPPLIES AND SERVICES,EQUIPMENT & MATERIALS,4111,P123923-SERVICE-amazon gardens supplies,30/11/2023 00:00:00,279761,45.62,AM0406,AMAZON PAYMENTS UK LIMITED,27/11/2023 00:00:00,31/12/2023 00:00:00,P09-2024
P&V,MYDDELTON HOUSE GARDENS,SUPPLIES AND SERVICES,EQUIPMENT & MATERIALS,4111,P123923-SERVICE-amazon gardens supplies,30/11/2023 00:00:00,279789,16.32,AM0406,AMAZON PAYMENTS UK LIMITED,27/11/2023 00:00:00,31/12/2023 00:00:00,P09-2024
P&V,MYDDELTON HOUSE GARDENS,SUPPLIES AND SERVICES,EQUIPMENT & MATERIALS,4111,P123923-SERVICE-amazon gardens supplies,30/11/2023 00:00:00,279790,19.48,AM0406,AMAZON PAYMENTS UK LIMITED,27/11/2023 00:00:00,31/12/2023 00:00:00,P09-2024
P&V,MYDDELTON HOUSE GARDENS,SUPPLIES AND SERVICES,EQUIPMENT & MATERIALS,4111,P123674-SERVICE-gardens supplies 2023 amazon,19/12/2023 00:00:00,280035,-41.65,AM0406,AMAZON PAYMENTS UK LIMITED,27/11/2023 00:00:00,31/12/2023 00:00:00,P09-2024
P&V,MYDDELTON HOUSE GARDENS,SUPPLIES AND SERVICES,EQUIPMENT & MATERIALS,4111,P123923-SERVICE-amazon gardens supplies,19/12/2023 00:00:00,280070,21.03,AM0406,AMAZON PAYMENTS UK LIMITED,27/11/2023 00:00:00,31/12/2023 00:00:00,P09-2024
P&V,MYDDELTON HOUSE GARDENS,SUPPLIES AND SERVICES,EQUIPMENT & MATERIALS,4111,P123923-SERVICE-amazon gardens supplies,19/12/2023 00:00:00,280071,16.66,AM0406,AMAZON PAYMENTS UK LIMITED,27/11/2023 00:00:00,31/12/2023 00:00:00,P09-2024
P&V,MYDDELTON HOUSE GARDENS,SUPPLIES AND SERVICES,EQUIPMENT & MATERIALS,4111,P123923-SERVICE-amazon gardens supplies,19/12/2023 00:00:00,280214,23.87,AM0406,AMAZON PAYMENTS UK LIMITED,27/11/2023 00:00:00,31/12/2023 00:00:00,P09-2024
P&V,MYDDELTON HOUSE GARDENS,SUPPLIES AND SERVICES,EQUIPMENT & MATERIALS,4111,P123923-SERVICE-amazon gardens supplies,19/12/2023 00:00:00,280215,17.99,AM0406,AMAZON PAYMENTS UK LIMITED,27/11/2023 00:00:00,31/12/2023 00:00:00,P09-2024
P&V,MYDDELTON HOUSE GARDENS,SUPPLIES AND SERVICES,EQUIPMENT & MATERIALS,4111,P123923-SERVICE-amazon gardens supplies,19/12/2023 00:00:00,280281,66.64,AM0406,AMAZON PAYMENTS UK LIMITED,27/11/2023 00:00:00,31/12/2023 00:00:00,P09-2024
P&V,NORTH AREA RANGERS,SUPPLIES AND SERVICES,EQUIPMENT & MATERIALS,4111,P122992-SERVICE-10x Husqvarna Classic Forest Helmets,19/12/2023 00:00:00,280537,-70.58,SA0682,SAM TURNER & SONS LTD,27/11/2023 00:00:00,31/12/2023 00:00:00,P09-2024
P&V,NORTH AREA RANGERS,SUPPLIES AND SERVICES,EQUIPMENT & MATERIALS,4111,P124111-SERVICE-30x Rails 3600x87x38mm,12/12/2023 00:00,280538,184.2,TI0164,414 TIMBER & FENCING,27/11/2023 00:00:00,31/12/2023 00:00:00,P09-2024
P&V,NORTH AREA RANGERS,SUPPLIES AND SERVICES,EQUIPMENT & MATERIALS,4111,P124111-SERVICE-10x Timber Posts 4x4x1.8m,12/12/2023 00:00,280538,94.2,TI0164,414 TIMBER & FENCING,27/11/2023 00:00:00,31/12/2023 00:00:00,P09-2024
P&V,NORTH AREA RANGERS,SUPPLIES AND SERVICES,EQUIPMENT & MATERIALS,4111,P123987-SERVICE-50x Round Posts 2.40m x 75mm,12/12/2023 00:00,280539,269.5,TI0164,414 TIMBER & FENCING,27/11/2023 00:00:00,31/12/2023 00:00:00,P09-2024
P&V,NORTH AREA RANGERS,SUPPLIES AND SERVICES,EQUIPMENT & MATERIALS,4111,P124398-SERVICE-150x Machine Round Posts 1.8m x 75mm,19/12/2023 00:00:00,280837,480.68,TI0164,414 TIMBER & FENCING,27/11/2023 00:00:00,31/12/2023 00:00:00,P09-2024
P&V,SOUTH AREA RANGERS,SUPPLIES AND SERVICES,EQUIPMENT & MATERIALS,4111,P124283-SERVICE-Sthil Clearing Saw Blade Fixing Kit,31/12/2023 00:00:00,281024,15.79,AP0245,APS LIMITED,27/11/2023 00:00:00,31/12/2023 00:00:00,P09-2024
P&V,RIVER LEE COUNTRY PARK,SUPPLIES AND SERVICES,EQUIPMENT & MATERIALS,4111,P124160-SERVICE-2x 6mm Granite Dust Bulk Bags (Two bags),12/06/2023 00:00,280348,90.66,JE0011,SAINT-GOBAIN BUILDING DISTRIBUTION,27/11/2023 00:00:00,31/12/2023 00:00:00,P09-2024
P&V,RIVER LEE COUNTRY PARK,SUPPLIES AND SERVICES,EQUIPMENT & MATERIALS,4111,P124160-SERVICE-2x Type One Bulk Bags (Two bag),12/06/2023 00:00,280348,105.04,JE0011,SAINT-GOBAIN BUILDING DISTRIBUTION,27/11/2023 00:00:00,31/12/2023 00:00:00,P09-2024
P&V,RIVER LEE COUNTRY PARK,SUPPLIES AND SERVICES,EQUIPMENT & MATERIALS,4111,P124227-SERVICE-2x Stihl SynthPlus Chain Oil 5 Litre for Chai,12/12/2023 00:00,280352,41.6,LS0469,L & S ENGINEERS LTD,27/11/2023 00:00:00,31/12/2023 00:00:00,P09-2024
P&V,RIVER LEE COUNTRY PARK,SUPPLIES AND SERVICES,EQUIPMENT & MATERIALS,4111,P124227-SERVICE-DELIVERY TO ADDRESS BELOW,12/12/2023 00:00,280352,6.25,LS0469,L & S ENGINEERS LTD,27/11/2023 00:00:00,31/12/2023 00:00:00,P09-2024
P&V,RIVER LEE COUNTRY PARK,SUPPLIES AND SERVICES,EQUIPMENT & MATERIALS,4111,"P124227-SERVICE-1x Compression Spring for Stihl 084, FS460C",12/12/2023 00:00,280352,0.99,LS0469,L & S ENGINEERS LTD,27/11/2023 00:00:00,31/12/2023 00:00:00,P09-2024
P&V,RIVER LEE COUNTRY PARK,SUPPLIES AND SERVICES,EQUIPMENT & MATERIALS,4111,P124227-SERVICE-1x Stihl 2-Stroke Oil 5ltr for TS400 Disc Cut,12/12/2023 00:00,280352,29.95,LS0469,L & S ENGINEERS LTD,27/11/2023 00:00:00,31/12/2023 00:00:00,P09-2024
P&V,RIVER LEE COUNTRY PARK,SUPPLIES AND SERVICES,EQUIPMENT & MATERIALS,4111,"P124227-SERVICE-1x Lever for Stihl FS240C, FS240RC",12/12/2023 00:00,280352,2.91,LS0469,L & S ENGINEERS LTD,27/11/2023 00:00:00,31/12/2023 00:00:00,P09-2024
P&V,RIVER LEE COUNTRY PARK,SUPPLIES AND SERVICES,EQUIPMENT & MATERIALS,4111,"P124227-SERVICE-1x Lever for Stihl FS360C, FS410C",12/12/2023 00:00,280352,2.62,LS0469,L & S ENGINEERS LTD,27/11/2023 00:00:00,31/12/2023 00:00:00,P09-2024
P&V,RIVER LEE COUNTRY PARK,SUPPLIES AND SERVICES,EQUIPMENT & MATERIALS,4111,P124406-SERVICE-2x Respirator,19/12/2023 00:00:00,280587,43.36,JE0011,SAINT-GOBAIN BUILDING DISTRIBUTION,27/11/2023 00:00:00,31/12/2023 00:00:00,P09-2024
P&V,RIVER LEE COUNTRY PARK,SUPPLIES AND SERVICES,EQUIPMENT & MATERIALS,4111,P124406-SERVICE-2x Gas Vapour Cartridge,19/12/2023 00:00:00,280587,20,JE0011,SAINT-GOBAIN BUILDING DISTRIBUTION,27/11/2023 00:00:00,31/12/2023 00:00:00,P09-2024
P&V,RIVER LEE COUNTRY PARK,SUPPLIES AND SERVICES,EQUIPMENT & MATERIALS,4111,P121655-SERVICE-Materials & Equipment as required,13/12/2023 00:00:00,280588,32.7,JE0011,SAINT-GOBAIN BUILDING DISTRIBUTION,27/11/2023 00:00:00,31/12/2023 00:00:00,P09-2024
,LV LEISURE CENTRE CAMPSITE,SUPPLIES AND SERVICES,EQUIPMENT & MATERIALS,4111,P124256-SERVICE-REPAIR DISABLED PULL CORD,12/04/2023 00:00,280029,125,BR0018,BRADSHAW ELECTRICAL LIMITED,27/11/2023 00:00:00,31/12/2023 00:00:00,P09-2024
,LV LEISURE CENTRE CAMPSITE,SUPPLIES AND SERVICES,EQUIPMENT & MATERIALS,4111,P124390-SERVICE-stanley Knife,13/12/2023 00:00:00,280554,14.64,SC0057,SCREWFIX DIRECT LTD,27/11/2023 00:00:00,31/12/2023 00:00:00,P09-2024
,LV LEISURE CENTRE CAMPSITE,SUPPLIES AND SERVICES,EQUIPMENT & MATERIALS,4111,P124391-SERVICE-PPE & TOOLS,13/12/2023 00:00:00,280555,136.45,SC0057,SCREWFIX DIRECT LTD,27/11/2023 00:00:00,31/12/2023 00:00:00,P09-2024
,LV LEISURE CENTRE CAMPSITE,SUPPLIES AND SERVICES,EQUIPMENT & MATERIALS,4111,P124462-SERVICE-2 stroke oil,20/12/2023 00:00:00,280740,45.1,SC0057,SCREWFIX DIRECT LTD,27/11/2023 00:00:00,31/12/2023 00:00:00,P09-2024
,LV LEISURE CENTRE CAMPSITE,SUPPLIES AND SERVICES,EQUIPMENT & MATERIALS,4111,P124468-SERVICE-Oil filled radiator,20/12/2023 00:00:00,280845,49.98,SC0057,SCREWFIX DIRECT LTD,27/11/2023 00:00:00,31/12/2023 00:00:00,P09-2024
,LV LEISURE CENTRE CAMPSITE,SUPPLIES AND SERVICES,EQUIPMENT & MATERIALS,4111,P124466-SERVICE-Gap foam Adhesive hose clips,20/12/2023 00:00:00,280846,44.29,SC0057,SCREWFIX DIRECT LTD,27/11/2023 00:00:00,31/12/2023 00:00:00,P09-2024
,LV LEISURE CENTRE CAMPSITE,SUPPLIES AND SERVICES,EQUIPMENT & MATERIALS,4111,P124467-SERVICE-Circular saw blade,20/12/2023 00:00:00,280847,13.24,SC0057,SCREWFIX DIRECT LTD,27/11/2023 00:00:00,31/12/2023 00:00:00,P09-2024
,LV LEISURE CENTRE CAMPSITE,SUPPLIES AND SERVICES,EQUIPMENT & MATERIALS,4111,P124447-SERVICE-blue and pink for caravans,31/12/2023 00:00:00,280860,51.8,TO0079,TOWSURE PRODUCTS LIMITED,27/11/2023 00:00:00,31/12/2023 00:00:00,P09-2024
,LV LEISURE CENTRE GOLF COURSE,SUPPLIES AND SERVICES,EQUIPMENT & MATERIALS,4111,P122811-SERVICE-ED GYard No Fire Exit Sign,12/05/2023 00:00,279776,85,SL0528,SLAM SIGNS LTD,27/11/2023 00:00:00,31/12/2023 00:00:00,P09-2024
,LV LEISURE CENTRE GOLF COURSE,SUPPLIES AND SERVICES,EQUIPMENT & MATERIALS,4111,P124096-SERVICE-5K A5 Folded Scorecards,12/05/2023 00:00,280080,144.95,SO0582,SOLOPRESS,27/11/2023 00:00:00,31/12/2023 00:00:00,P09-2024
,LV LEISURE CENTRE GOLF COURSE,SUPPLIES AND SERVICES,EQUIPMENT & MATERIALS,4111,P124266-SERVICE-18 x Golf Tee Signs,31/12/2023 00:00:00,280852,349,SL0528,SLAM SIGNS LTD,27/11/2023 00:00:00,31/12/2023 00:00:00,P09-2024
,LEE VALLEY CAMPSITE,SUPPLIES AND SERVICES,EQUIPMENT MAINTENANCE,4112,P123911-SERVICE-Stihl gear lubricant,12/05/2023 00:00,279804,10.83,AM0406,AMAZON PAYMENTS UK LIMITED,27/11/2023 00:00:00,31/12/2023 00:00:00,P09-2024
,LEE VALLEY CAMPSITE,SUPPLIES AND SERVICES,EQUIPMENT MAINTENANCE,4112,P123911-SERVICE-Spark plug for Stihl,12/05/2023 00:00,279805,4.99,AM0406,AMAZON PAYMENTS UK LIMITED,27/11/2023 00:00:00,31/12/2023 00:00:00,P09-2024
,LEE VALLEY CAMPSITE,SUPPLIES AND SERVICES,EQUIPMENT MAINTENANCE,4112,P123911-SERVICE-left gutter stop end,12/05/2023 00:00,279809,6.8,AM0406,AMAZON PAYMENTS UK LIMITED,27/11/2023 00:00:00,31/12/2023 00:00:00,P09-2024
,LEE VALLEY CAMPSITE,SUPPLIES AND SERVICES,EQUIPMENT MAINTENANCE,4112,P123911-SERVICE-2x microwaves for Cabins  stock,12/05/2023 00:00,279809,3.33,AM0406,AMAZON PAYMENTS UK LIMITED,27/11/2023 00:00:00,31/12/2023 00:00:00,P09-2024
,LEE VALLEY CAMPSITE,SUPPLIES AND SERVICES,EQUIPMENT MAINTENANCE,4112,P123911-SERVICE-2x microwaves for Cabins  stock,12/05/2023 00:00,279874,41.66,AM0406,AMAZON PAYMENTS UK LIMITED,27/11/2023 00:00:00,31/12/2023 00:00:00,P09-2024
,LEE VALLEY CAMPSITE,SUPPLIES AND SERVICES,EQUIPMENT MAINTENANCE,4112,P123911-SERVICE-2x microwaves for Cabins  stock,12/05/2023 00:00,279875,39.01,AM0406,AMAZON PAYMENTS UK LIMITED,27/11/2023 00:00:00,31/12/2023 00:00:00,P09-2024
,LEE VALLEY CAMPSITE,SUPPLIES AND SERVICES,EQUIPMENT MAINTENANCE,4112,P124177-SERVICE-new pump1 and clean,20/12/2023 00:00:00,280279,180,CO0550,CONVERT WATER LTD,27/11/2023 00:00:00,31/12/2023 00:00:00,P09-2024
,LEE VALLEY CAMPSITE,SUPPLIES AND SERVICES,EQUIPMENT MAINTENANCE,4112,P124258-SERVICE-Site maintenace  GA requirements,20/12/2023 00:00:00,280568,656.92,LE0012,LEASIDE TIMBER & BUILDERS MERCHANTS LTD,27/11/2023 00:00:00,31/12/2023 00:00:00,P09-2024
,LEE VALLEY CARAVAN PARK,SUPPLIES AND SERVICES,EQUIPMENT MAINTENANCE,4112,P122223-SERVICE-Annual Fire Extingisher Servicing,12/12/2023 00:00,278415,86.98,TJ0009,T.J.FIRE & SECURITY,27/11/2023 00:00:00,31/12/2023 00:00:00,P09-2024
,LEE VALLEY CARAVAN PARK,SUPPLIES AND SERVICES,EQUIPMENT MAINTENANCE,4112,P123875-SERVICE-Replacement Barrier Mechanism,12/04/2023 00:00,280019,3670,HA0466,HARLING SECURITY SOLUTIONS LTD,27/11/2023 00:00:00,31/12/2023 00:00:00,P09-2024
,LEE VALLEY CARAVAN PARK,SUPPLIES AND SERVICES,EQUIPMENT MAINTENANCE,4112,P124233-SERVICE-Callout to access barrier fault,12/04/2023 00:00,280086,385,AU0245,AUTO-MATE SYSTEMS LIMITED,27/11/2023 00:00:00,31/12/2023 00:00:00,P09-2024
,LEE VALLEY CARAVAN PARK,SUPPLIES AND SERVICES,EQUIPMENT MAINTENANCE,4112,P124240-SERVICE-Bl;locked drain by HH47,12/04/2023 00:00,280102,180,CO0550,CONVERT WATER LTD,27/11/2023 00:00:00,31/12/2023 00:00:00,P09-2024
,LEE VALLEY CARAVAN PARK,SUPPLIES AND SERVICES,EQUIPMENT MAINTENANCE,4112,P124292-SERVICE-New discharge pump,12/05/2023 00:00,280278,3843,CO0550,CONVERT WATER LTD,27/11/2023 00:00:00,31/12/2023 00:00:00,P09-2024
,LEE VALLEY CARAVAN PARK,SUPPLIES AND SERVICES,EQUIPMENT MAINTENANCE,4112,P124478-SERVICE-DW Tractor Parts,31/12/2023 00:00:00,280543,1002.83,LE0279,REESINK TURFCARE UK LIMITED,27/11/2023 00:00:00,31/12/2023 00:00:00,P09-2024
,LEE VALLEY CARAVAN PARK,SUPPLIES AND SERVICES,EQUIPMENT MAINTENANCE,4112,P124366-SERVICE-pump down nr HH103,13/12/2023 00:00:00,280569,180,CO0550,CONVERT WATER LTD,27/11/2023 00:00:00,31/12/2023 00:00:00,P09-2024
,LEE VALLEY CARAVAN PARK,SUPPLIES AND SERVICES,EQUIPMENT MAINTENANCE,4112,P124458-SERVICE-Hot tub sampling,19/12/2023 00:00:00,280745,121.72,KI0090,KINGFISHER ENVIRONMENTAL SERVICES LTD,27/11/2023 00:00:00,31/12/2023 00:00:00,P09-2024
,LEE VALLEY CARAVAN PARK,SUPPLIES AND SERVICES,EQUIPMENT MAINTENANCE,4112,P124287-SERVICE-Mens shower mixers,31/12/2023 00:00:00,281070,840,SO0400,SOUTHERN GREEN SERVICES LIMITED,27/11/2023 00:00:00,31/12/2023 00:00:00,P09-2024
,LEE VALLEY CARAVAN PARK,SUPPLIES AND SERVICES,EQUIPMENT MAINTENANCE,4112,P124286-SERVICE-Ladies shower mixers,31/12/2023 00:00:00,281071,840,SO0400,SOUTHERN GREEN SERVICES LIMITED,27/11/2023 00:00:00,31/12/2023 00:00:00,P09-2024
,LEE VALLEY CARAVAN PARK,SUPPLIES AND SERVICES,EQUIPMENT MAINTENANCE,4112,P124510-SERVICE-Callout failed pump,31/12/2023 00:00:00,281078,1046,CO0550,CONVERT WATER LTD,27/11/2023 00:00:00,31/12/2023 00:00:00,P09-2024
P&V,NORTH AREA RANGERS,SUPPLIES AND SERVICES,EQUIPMENT MAINTENANCE,4112,P124205-SERVICE-Chainsaw Service - Sthil MS260 (0031),31/12/2023 00:00:00,281084,90.21,AP0245,APS LIMITED,27/11/2023 00:00:00,31/12/2023 00:00:00,P09-2024
P&V,SOUTH AREA RANGERS,SUPPLIES AND SERVICES,EQUIPMENT MAINTENANCE,4112,P124081-SERVICE-Sthil Bio Plus Chainsaw Oil - 5Lt,12/05/2023 00:00,280261,32.91,AP0245,APS LIMITED,27/11/2023 00:00:00,31/12/2023 00:00:00,P09-2024
,LV LEISURE CENTRE CAMPSITE,SUPPLIES AND SERVICES,EQUIPMENT MAINTENANCE,4112,P124294-SERVICE-bulbs repair cushman,13/12/2023 00:00:00,280378,20,AM0406,AMAZON PAYMENTS UK LIMITED,27/11/2023 00:00:00,31/12/2023 00:00:00,P09-2024
,LV LEISURE CENTRE CAMPSITE,SUPPLIES AND SERVICES,EQUIPMENT MAINTENANCE,4112,P124294-SERVICE-bulbs repair cushman,13/12/2023 00:00:00,280379,17.7,AM0406,AMAZON PAYMENTS UK LIMITED,27/11/2023 00:00:00,31/12/2023 00:00:00,P09-2024
,LV LEISURE CENTRE CAMPSITE,SUPPLIES AND SERVICES,EQUIPMENT MAINTENANCE,4112,P124294-SERVICE-bulbs repair cushman,13/12/2023 00:00:00,280380,19.16,AM0406,AMAZON PAYMENTS UK LIMITED,27/11/2023 00:00:00,31/12/2023 00:00:00,P09-2024
,LV LEISURE CENTRE CAMPSITE,SUPPLIES AND SERVICES,EQUIPMENT MAINTENANCE,4112,P124078-SERVICE-repair compactor,13/12/2023 00:00:00,280491,350.75,PD0171,PDE WASTE TECHNOLOGIES,27/11/2023 00:00:00,31/12/2023 00:00:00,P09-2024
,LV LEISURE CENTRE CAMPSITE,SUPPLIES AND SERVICES,EQUIPMENT MAINTENANCE,4112,P123179-SERVICE-code 2,19/12/2023 00:00:00,280509,8230,BR0018,BRADSHAW ELECTRICAL LIMITED,27/11/2023 00:00:00,31/12/2023 00:00:00,P09-2024
,LV LEISURE CENTRE CAMPSITE,SUPPLIES AND SERVICES,EQUIPMENT MAINTENANCE,4112,P124469-SERVICE-Barrier sunday call out,20/12/2023 00:00:00,280819,120,BR0018,BRADSHAW ELECTRICAL LIMITED,27/11/2023 00:00:00,31/12/2023 00:00:00,P09-2024
,LV LEISURE CENTRE CAMPSITE,SUPPLIES AND SERVICES,EQUIPMENT MAINTENANCE,4112,P122865-SERVICE-repair entry barrier,31/12/2023 00:00:00,280861,145,DE0013,DENNIS SECURITY CENTRE,27/11/2023 00:00:00,31/12/2023 00:00:00,P09-2024
R&B,INFORMATION TECHNOLOGY,SUPPLIES AND SERVICES,IT CORE SYSTEMS,4113,P121421-SERVICE-CIPHR Payroll April 2023 - March 2024 @ 569.,12/12/2023 00:00,280273,1196,CI0721,CIPHR,27/11/2023 00:00:00,31/12/2023 00:00:00,P09-2024
R&B,INFORMATION TECHNOLOGY,SUPPLIES AND SERVICES,IT CORE SYSTEMS,4113,P123573-SERVICE-ArcGIS Online Migration Proposal,12/12/2023 00:00,280340,52654.95,ES0361,ESRI (UK) LTD,27/11/2023 00:00:00,31/12/2023 00:00:00,P09-2024
R&B,INFORMATION TECHNOLOGY,SUPPLIES AND SERVICES,IT CORE SYSTEMS,4113,P121421-SERVICE-CIPHR Payroll April 2023 - March 2024 @ 569.,31/12/2023 00:00:00,280999,1196,CI0721,CIPHR,27/11/2023 00:00:00,31/12/2023 00:00:00,P09-2024
R&B,INFORMATION TECHNOLOGY,SUPPLIES AND SERVICES,IT NETWORK & TELECOMS COSTS,4114,MD Hse regrade,12/04/2023 00:00,280087,29.5,ZE0007,ZEN INTERNET LTD,27/11/2023 00:00:00,31/12/2023 00:00:00,P09-2024
R&B,INFORMATION TECHNOLOGY,SUPPLIES AND SERVICES,IT NETWORK & TELECOMS COSTS,4114,P121559-SERVICE-Campsites Circuits 1GB for Public WiFi - Apri,12/12/2023 00:00,280526,835,PP0200,PPSNET LIMITED,27/11/2023 00:00:00,31/12/2023 00:00:00,P09-2024
R&B,INFORMATION TECHNOLOGY,SUPPLIES AND SERVICES,IT NETWORK & TELECOMS COSTS,4114,P123560-SERVICE-MPLS for all sites October 23 - March 24,13/12/2023 00:00:00,280540,8757.36,PP0200,PPSNET LIMITED,27/11/2023 00:00:00,31/12/2023 00:00:00,P09-2024
R&B,INFORMATION TECHNOLOGY,SUPPLIES AND SERVICES,IT NETWORK & TELECOMS COSTS,4114,IT-fibre pro,19/12/2023 00:00:00,280592,38,ZE0007,ZEN INTERNET LTD,27/11/2023 00:00:00,31/12/2023 00:00:00,P09-2024
R&B,INFORMATION TECHNOLOGY,SUPPLIES AND SERVICES,IT NETWORK & TELECOMS COSTS,4114,MONTHLY SERV CHARGE,19/12/2023 00:00:00,280632,31.32,ZE0007,ZEN INTERNET LTD,27/11/2023 00:00:00,31/12/2023 00:00:00,P09-2024
R&B,INFORMATION TECHNOLOGY,SUPPLIES AND SERVICES,IT NETWORK & TELECOMS COSTS,4114,IT-Monthly Unlimited Zen Fibre,31/12/2023 00:00:00,281077,29.5,ZE0007,ZEN INTERNET LTD,27/11/2023 00:00:00,31/12/2023 00:00:00,P09-2024
R&B,INFORMATION TECHNOLOGY,SUPPLIES AND SERVICES,IT HARDWARE & SOFTWARE COSTS,4116,P124195-SERVICE-Dell laptop battery,12/04/2023 00:00,280072,29.99,AM0406,AMAZON PAYMENTS UK LIMITED,27/11/2023 00:00:00,31/12/2023 00:00:00,P09-2024
R&B,INFORMATION TECHNOLOGY,SUPPLIES AND SERVICES,IT HARDWARE & SOFTWARE COSTS,4116,P124242-SERVICE-Switch for billiard room,12/05/2023 00:00,280218,218.49,BR0650,BROADBANDBUYER.COM,27/11/2023 00:00:00,31/12/2023 00:00:00,P09-2024
R&B,INFORMATION TECHNOLOGY,SUPPLIES AND SERVICES,IT HARDWARE & SOFTWARE COSTS,4116,P124003-SERVICE-Mimecast S1 remaining 6 months payment includ,12/12/2023 00:00,280560,853,IQ0022,IQUAL,27/11/2023 00:00:00,31/12/2023 00:00:00,P09-2024
R&B,INFORMATION TECHNOLOGY,SUPPLIES AND SERVICES,IT HARDWARE & SOFTWARE COSTS,4116,"P122462-SERVICE-Maintenance, Support and Managed Service Cont",31/12/2023 00:00:00,281000,742.29,WI0209,WIFI SPARK LIMITED,27/11/2023 00:00:00,31/12/2023 00:00:00,P09-2024
R&B,INFORMATION TECHNOLOGY,SUPPLIES AND SERVICES,IT MAINTENANCE AGREEMENTS,4119,P121793-SERVICE-Digiticket monthly ticketing service,12/12/2023 00:00,280310,486,DI0304,DIGITAL TICKETING SYSTEMS LTD (DIGITICKETS),27/11/2023 00:00:00,31/12/2023 00:00:00,P09-2024
R&B,INFORMATION TECHNOLOGY,SUPPLIES AND SERVICES,IT MAINTENANCE AGREEMENTS,4119,P123928-SERVICE-Support & Data Oct 23 - Mar24,12/12/2023 00:00,280392,171.29,CY0653,CYBERTILL,27/11/2023 00:00:00,31/12/2023 00:00:00,P09-2024
R&B,INFORMATION TECHNOLOGY,SUPPLIES AND SERVICES,IT MAINTENANCE AGREEMENTS,4119,P124342-SERVICE-TeamViewer Annual Subscription 09 December 20,12/12/2023 00:00,280557,1265.3,TE0645,TEAMVIEWER,27/11/2023 00:00:00,31/12/2023 00:00:00,P09-2024
R&B,INFORMATION TECHNOLOGY,SUPPLIES AND SERVICES,IT MAINTENANCE AGREEMENTS,4119,P124020-SERVICE-Gemaparks Gema parks Campsite monthly subs De,31/12/2023 00:00:00,280844,670.67,NE0218,NETGUIDES LIMITED,27/11/2023 00:00:00,31/12/2023 00:00:00,P09-2024
,LEE VALLEY CARAVAN PARK,EXPENDITURE FROM RENEWALS FUND,EXPENDITURE FROM RENEWALS FUND,4121,"P124353-SERVICE-Drainage, Electric Trenches & WiFi Trench",31/12/2023 00:00:00,280725,4640,MO0041,CAPSER,27/11/2023 00:00:00,31/12/2023 00:00:00,P09-2024
,LEE VALLEY CARAVAN PARK,EXPENDITURE FROM RENEWALS FUND,EXPENDITURE FROM RENEWALS FUND,4121,DW-new development,31/12/2023 00:00:00,280725,1140,MO0041,CAPSER,27/11/2023 00:00:00,31/12/2023 00:00:00,P09-2024
,LEE VALLEY CARAVAN PARK,EXPENDITURE FROM RENEWALS FUND,EXPENDITURE FROM RENEWALS FUND,4121,DW-new development,31/12/2023 00:00:00,280725,-4640,MO0041,CAPSER,27/11/2023 00:00:00,31/12/2023 00:00:00,P09-2024
,LEE VALLEY CARAVAN PARK,EXPENDITURE FROM RENEWALS FUND,EXPENDITURE FROM RENEWALS FUND,4121,DW-new development,31/12/2023 00:00:00,280725,3500,MO0041,CAPSER,27/11/2023 00:00:00,31/12/2023 00:00:00,P09-2024
,LEE VALLEY CARAVAN PARK,EXPENDITURE FROM RENEWALS FUND,EXPENDITURE FROM RENEWALS FUND,4121,"P124357-SERVICE-Bungalow Topsoil, Post & Hot Tub Base",31/12/2023 00:00:00,280730,2255,MO0041,CAPSER,27/11/2023 00:00:00,31/12/2023 00:00:00,P09-2024
,LEE VALLEY CARAVAN PARK,EXPENDITURE FROM RENEWALS FUND,EXPENDITURE FROM RENEWALS FUND,4121,DW-parking for 127,31/12/2023 00:00:00,280730,-2255,MO0041,CAPSER,27/11/2023 00:00:00,31/12/2023 00:00:00,P09-2024
,LEE VALLEY CARAVAN PARK,EXPENDITURE FROM RENEWALS FUND,EXPENDITURE FROM RENEWALS FUND,4121,DW-parking for 127,31/12/2023 00:00:00,280730,1750,MO0041,CAPSER,27/11/2023 00:00:00,31/12/2023 00:00:00,P09-2024
,LEE VALLEY CARAVAN PARK,EXPENDITURE FROM RENEWALS FUND,EXPENDITURE FROM RENEWALS FUND,4121,DW-parking for 127,31/12/2023 00:00:00,280730,505,MO0041,CAPSER,27/11/2023 00:00:00,31/12/2023 00:00:00,P09-2024
P&V,MYDDELTON HOUSE GARDENS,SUPPLIES AND SERVICES,MATERIALS (GROUNDS MAINT),4125,P124202-SERVICE-garden supplies,19/12/2023 00:00:00,280485,13.65,AM0406,AMAZON PAYMENTS UK LIMITED,27/11/2023 00:00:00,31/12/2023 00:00:00,P09-2024
P&V,MYDDELTON HOUSE GARDENS,SUPPLIES AND SERVICES,MATERIALS (GROUNDS MAINT),4125,P124202-SERVICE-garden supplies,19/12/2023 00:00:00,280486,23.04,AM0406,AMAZON PAYMENTS UK LIMITED,27/11/2023 00:00:00,31/12/2023 00:00:00,P09-2024
,LV LEISURE CENTRE CAMPSITE,SUPPLIES AND SERVICES,MATERIALS (GROUNDS MAINT),4125,P124472-SERVICE-EZGO BUGGY Engine Check,31/12/2023 00:00:00,281023,214,GE0440,GTEC'S,27/11/2023 00:00:00,31/12/2023 00:00:00,P09-2024
,LEE VALLEY CARAVAN PARK,SUPPLIES AND SERVICES,MATERIALS (PLANTS & SHRUBS),4126,P124239-SERVICE-2 perennials,12/04/2023 00:00,280118,10.82,CL0093,CLOCKHOUSE NURSERY,27/11/2023 00:00:00,31/12/2023 00:00:00,P09-2024
P&V,MYDDELTON HOUSE GARDENS,SUPPLIES AND SERVICES,MATERIALS (PLANTS & SHRUBS),4126,P123951-SERVICE-plants/tools nov 23,13/12/2023 00:00:00,280041,63.92,CL0093,CLOCKHOUSE NURSERY,27/11/2023 00:00:00,31/12/2023 00:00:00,P09-2024
P&V,MYDDELTON HOUSE GARDENS,SUPPLIES AND SERVICES,MATERIALS (PLANTS & SHRUBS),4126,P123777-SERVICE-gardens order oct 23,13/12/2023 00:00:00,280041,48.16,CL0093,CLOCKHOUSE NURSERY,27/11/2023 00:00:00,31/12/2023 00:00:00,P09-2024
,STANSTEAD RECHARGEABLE WORKS,SUPPLIES AND SERVICES,MATERIALS (ENG OTHER),4130,P124089-SERVICE-rudder stock & bearing,12/04/2023 00:00,280120,17.9,MI0200,MIDLAND CHANDLERS LIMITED,27/11/2023 00:00:00,31/12/2023 00:00:00,P09-2024
,STANSTEAD RECHARGEABLE WORKS,SUPPLIES AND SERVICES,MATERIALS (ENG OTHER),4130,P124384-SERVICE-workshop equipment Dec 23,19/12/2023 00:00:00,280607,26.64,AM0406,AMAZON PAYMENTS UK LIMITED,27/11/2023 00:00:00,31/12/2023 00:00:00,P09-2024
,STANSTEAD RECHARGEABLE WORKS,SUPPLIES AND SERVICES,MATERIALS (ENG OTHER),4130,P124384-SERVICE-workshop equipment Dec 23,19/12/2023 00:00:00,280608,7.07,AM0406,AMAZON PAYMENTS UK LIMITED,27/11/2023 00:00:00,31/12/2023 00:00:00,P09-2024
,STANSTEAD RECHARGEABLE WORKS,SUPPLIES AND SERVICES,MATERIALS (ENG OTHER),4130,P124394-SERVICE-die grinder for workshop,19/12/2023 00:00:00,280614,219.12,AM0406,AMAZON PAYMENTS UK LIMITED,27/11/2023 00:00:00,31/12/2023 00:00:00,P09-2024
,STANSTEAD RECHARGEABLE WORKS,SUPPLIES AND SERVICES,MATERIALS (ENG OTHER),4130,P124384-SERVICE-workshop equipment Dec 23,19/12/2023 00:00:00,280615,12.49,AM0406,AMAZON PAYMENTS UK LIMITED,27/11/2023 00:00:00,31/12/2023 00:00:00,P09-2024
,STANSTEAD RECHARGEABLE WORKS,SUPPLIES AND SERVICES,MATERIALS (ENG OTHER),4130,P124384-SERVICE-workshop equipment Dec 23,19/12/2023 00:00:00,280616,9.16,AM0406,AMAZON PAYMENTS UK LIMITED,27/11/2023 00:00:00,31/12/2023 00:00:00,P09-2024
,STANSTEAD RECHARGEABLE WORKS,SUPPLIES AND SERVICES,MATERIALS (ENG OTHER),4130,P124384-SERVICE-workshop equipment Dec 23,19/12/2023 00:00:00,280617,9.58,AM0406,AMAZON PAYMENTS UK LIMITED,27/11/2023 00:00:00,31/12/2023 00:00:00,P09-2024
,STANSTEAD RECHARGEABLE WORKS,SUPPLIES AND SERVICES,MATERIALS (ENG OTHER),4130,P124384-SERVICE-workshop equipment Dec 23,19/12/2023 00:00:00,280750,20.45,AM0406,AMAZON PAYMENTS UK LIMITED,27/11/2023 00:00:00,31/12/2023 00:00:00,P09-2024
,STANSTEAD RECHARGEABLE WORKS,SUPPLIES AND SERVICES,MATERIALS (ENG OTHER),4130,P124190-SERVICE-gas welding bottle JJ,19/12/2023 00:00:00,280771,78.75,WE0257,PERFECT WELDING LTD,27/11/2023 00:00:00,31/12/2023 00:00:00,P09-2024
,STANSTEAD RECHARGEABLE WORKS,SUPPLIES AND SERVICES,MATERIALS (ENG OTHER),4130,"P124024-SERVICE-cutting discs, DPC Metal, tips & nozzles",19/12/2023 00:00:00,280772,101.5,WE0257,PERFECT WELDING LTD,27/11/2023 00:00:00,31/12/2023 00:00:00,P09-2024
,STANSTEAD RECHARGEABLE WORKS,SUPPLIES AND SERVICES,MATERIALS (ENG OTHER),4130,P124437-SERVICE-decking boards for MC  10 sheets,31/12/2023 00:00:00,281006,476.11,TI0068,A10 TIMBER COMPANY,27/11/2023 00:00:00,31/12/2023 00:00:00,P09-2024
,LEE VALLEY CARAVAN PARK,SUPPLIES AND SERVICES,MATERIALS (MEDICAL),4132,P123903-SERVICE-Various first aid replacement items,12/12/2023 00:00,280382,38.6,FI0215,VALUE PRODUCTS LTD,27/11/2023 00:00:00,31/12/2023 00:00:00,P09-2024
P&V,LEE VALLEY FARM HOLYFIELDHALL,SUPPLIES AND SERVICES,FEED,4133,P124273-SERVICE-Selcoplus,12/04/2023 00:00,280037,3894.78,BO0246,FOR FARMERS UK LTD,27/11/2023 00:00:00,31/12/2023 00:00:00,P09-2024
P&V,LEE VALLEY FARM HOLYFIELDHALL,SUPPLIES AND SERVICES,FEED,4133,P124440-SERVICE-Prime Rearer,19/12/2023 00:00:00,280337,2120.98,BO0246,FOR FARMERS UK LTD,27/11/2023 00:00:00,31/12/2023 00:00:00,P09-2024
P&V,LEE VALLEY FARM HOLYFIELDHALL,SUPPLIES AND SERVICES,FEED,4133,P124442-SERVICE-Minline Beef,19/12/2023 00:00:00,280595,432,BO0246,FOR FARMERS UK LTD,27/11/2023 00:00:00,31/12/2023 00:00:00,P09-2024
P&V,LEE VALLEY FARM HOLYFIELDHALL,SUPPLIES AND SERVICES,FERTILIZER,4137,P124110-SERVICE-Urea Fert,12/04/2023 00:00,279794,10488,HA0013,HARLOW AGRICULTURAL MERCHANTS,27/11/2023 00:00:00,31/12/2023 00:00:00,P09-2024
P&V,LEE VALLEY FARM HOLYFIELDHALL,SUPPLIES AND SERVICES,DAIRY SUNDRIES,4138,P121501-SERVICE-Plumbing Fittings,19/12/2023 00:00:00,280351,96.62,WO0076,E J WOOLLARD LTD,27/11/2023 00:00:00,31/12/2023 00:00:00,P09-2024
,LV CAMPSITE CARAVAN SALES,SUPPLIES AND SERVICES,DECKING PURCHASES,4173,P123842-SERVICE-DW 123 Decking,12/05/2023 00:00,279827,6608,WI0352,WILDWOOD OF MAYFIELD LTD,27/11/2023 00:00:00,31/12/2023 00:00:00,P09-2024
,LEE VALLEY CAMPSITE,SUPPLIES AND SERVICES,MISCELLANEOUS CARAVAN COSTS,4174,Sewardstone-gutter move,31/12/2023 00:00:00,280727,300,MO0041,CAPSER,27/11/2023 00:00:00,31/12/2023 00:00:00,P09-2024
,LEE VALLEY CAMPSITE,SUPPLIES AND SERVICES,MISCELLANEOUS CARAVAN COSTS,4174,Sewardstone-gutter move,31/12/2023 00:00:00,280727,250,MO0041,CAPSER,27/11/2023 00:00:00,31/12/2023 00:00:00,P09-2024
,LEE VALLEY CAMPSITE,SUPPLIES AND SERVICES,MISCELLANEOUS CARAVAN COSTS,4174,P124354-SERVICE-3 x Gutter Move HH 1 Metre,31/12/2023 00:00:00,280727,550,MO0041,CAPSER,27/11/2023 00:00:00,31/12/2023 00:00:00,P09-2024
,LEE VALLEY CAMPSITE,SUPPLIES AND SERVICES,MISCELLANEOUS CARAVAN COSTS,4174,Sewardstone-gutter move,31/12/2023 00:00:00,280727,-550,MO0041,CAPSER,27/11/2023 00:00:00,31/12/2023 00:00:00,P09-2024
,LEE VALLEY CAMPSITE,SUPPLIES AND SERVICES,MISCELLANEOUS CARAVAN COSTS,4174,move caraven onto pitch 123,31/12/2023 00:00:00,280729,250,MO0041,CAPSER,27/11/2023 00:00:00,31/12/2023 00:00:00,P09-2024
,LV CAMPSITE CARAVAN SALES,SUPPLIES AND SERVICES,MISCELLANEOUS CARAVAN COSTS,4174,"P124212-SERVICE-DW Rotary Isolator HH 123, 124, 126",13/12/2023 00:00:00,280028,495,BR0018,BRADSHAW ELECTRICAL LIMITED,27/11/2023 00:00:00,31/12/2023 00:00:00,P09-2024
,LV CAMPSITE CARAVAN SALES,SUPPLIES AND SERVICES,MISCELLANEOUS CARAVAN COSTS,4174,DW-new evelopment,31/12/2023 00:00:00,280726,-2300,MO0041,CAPSER,27/11/2023 00:00:00,31/12/2023 00:00:00,P09-2024
,LV CAMPSITE CARAVAN SALES,SUPPLIES AND SERVICES,MISCELLANEOUS CARAVAN COSTS,4174,P124352-SERVICE-Remove Unit 125 Transfer to SC,31/12/2023 00:00:00,280726,250,MO0041,CAPSER,27/11/2023 00:00:00,31/12/2023 00:00:00,P09-2024
,LV CAMPSITE CARAVAN SALES,SUPPLIES AND SERVICES,MISCELLANEOUS CARAVAN COSTS,4174,DW-new evelopment,31/12/2023 00:00:00,280726,-250,MO0041,CAPSER,27/11/2023 00:00:00,31/12/2023 00:00:00,P09-2024
,LV CAMPSITE CARAVAN SALES,SUPPLIES AND SERVICES,MISCELLANEOUS CARAVAN COSTS,4174,P124352-SERVICE-Site 123 124 125 126 127,31/12/2023 00:00:00,280726,1250,MO0041,CAPSER,27/11/2023 00:00:00,31/12/2023 00:00:00,P09-2024
,LV CAMPSITE CARAVAN SALES,SUPPLIES AND SERVICES,MISCELLANEOUS CARAVAN COSTS,4174,DW-new evelopment,31/12/2023 00:00:00,280726,200,MO0041,CAPSER,27/11/2023 00:00:00,31/12/2023 00:00:00,P09-2024
,LV CAMPSITE CARAVAN SALES,SUPPLIES AND SERVICES,MISCELLANEOUS CARAVAN COSTS,4174,DW-new evelopment,31/12/2023 00:00:00,280726,50,MO0041,CAPSER,27/11/2023 00:00:00,31/12/2023 00:00:00,P09-2024
,LV CAMPSITE CARAVAN SALES,SUPPLIES AND SERVICES,MISCELLANEOUS CARAVAN COSTS,4174,P124352-SERVICE-Suupply Stands For Caravans,31/12/2023 00:00:00,280726,260,MO0041,CAPSER,27/11/2023 00:00:00,31/12/2023 00:00:00,P09-2024
,LV CAMPSITE CARAVAN SALES,SUPPLIES AND SERVICES,MISCELLANEOUS CARAVAN COSTS,4174,P124352-SERVICE-Plumb 123 124 125 126 127,31/12/2023 00:00:00,280726,2300,MO0041,CAPSER,27/11/2023 00:00:00,31/12/2023 00:00:00,P09-2024
,LV CAMPSITE CARAVAN SALES,SUPPLIES AND SERVICES,MISCELLANEOUS CARAVAN COSTS,4174,DW-new evelopment,31/12/2023 00:00:00,280726,2300,MO0041,CAPSER,27/11/2023 00:00:00,31/12/2023 00:00:00,P09-2024
,LV CAMPSITE CARAVAN SALES,SUPPLIES AND SERVICES,MISCELLANEOUS CARAVAN COSTS,4174,move caraven onto pitch 123,31/12/2023 00:00:00,280729,400,MO0041,CAPSER,27/11/2023 00:00:00,31/12/2023 00:00:00,P09-2024
,LV CAMPSITE CARAVAN SALES,SUPPLIES AND SERVICES,MISCELLANEOUS CARAVAN COSTS,4174,P124356-SERVICE-Move Old 123 x 2 & Reconnect,31/12/2023 00:00:00,280729,650,MO0041,CAPSER,27/11/2023 00:00:00,31/12/2023 00:00:00,P09-2024
,LV CAMPSITE CARAVAN SALES,SUPPLIES AND SERVICES,MISCELLANEOUS CARAVAN COSTS,4174,move caraven onto pitch 123,31/12/2023 00:00:00,280729,-650,MO0041,CAPSER,27/11/2023 00:00:00,31/12/2023 00:00:00,P09-2024
,LEE VALLEY CARAVAN PARK,SUPPLIES AND SERVICES,MISCELLANEOUS CARAVAN COSTS,4174,P124351-SERVICE-Amelia Base Dug Up,19/12/2023 00:00:00,280724,500,MO0041,CAPSER,27/11/2023 00:00:00,31/12/2023 00:00:00,P09-2024
,LEE VALLEY CARAVAN PARK,SUPPLIES AND SERVICES,MISCELLANEOUS CARAVAN COSTS,4174,DW-Amela Base Dug up,19/12/2023 00:00:00,280724,-500,MO0041,CAPSER,27/11/2023 00:00:00,31/12/2023 00:00:00,P09-2024
,LEE VALLEY CARAVAN PARK,SUPPLIES AND SERVICES,MISCELLANEOUS CARAVAN COSTS,4174,DW-Amela Base Dug up,19/12/2023 00:00:00,280724,250,MO0041,CAPSER,27/11/2023 00:00:00,31/12/2023 00:00:00,P09-2024
,LEE VALLEY CARAVAN PARK,SUPPLIES AND SERVICES,MISCELLANEOUS CARAVAN COSTS,4174,DW-Amela Base Dug up,19/12/2023 00:00:00,280724,250,MO0041,CAPSER,27/11/2023 00:00:00,31/12/2023 00:00:00,P09-2024
,LEE VALLEY MARINA SPRINGFIELD,SUPPLIES AND SERVICES,CLOTHING & UNIFORMS,4225,P124215-SERVICE-8 x 64000 T-Shirt Black Size Medium with left,31/12/2023 00:00:00,280830,250,DI0017,DIRECT BOOT & SHOE SUPPLIES,27/11/2023 00:00:00,31/12/2023 00:00:00,P09-2024
,LEE VALLEY MARINA SPRINGFIELD,SUPPLIES AND SERVICES,CLOTHING & UNIFORMS,4225,P124215-SERVICE-2 x UC620 Uneek Black/Grey size Large with le,31/12/2023 00:00:00,280830,136,DI0017,DIRECT BOOT & SHOE SUPPLIES,27/11/2023 00:00:00,31/12/2023 00:00:00,P09-2024
,LEE VALLEY MARINA SPRINGFIELD,SUPPLIES AND SERVICES,CLOTHING & UNIFORMS,4225,P124215-SERVICE-To Supply the following Uniform,31/12/2023 00:00:00,280830,250,DI0017,DIRECT BOOT & SHOE SUPPLIES,27/11/2023 00:00:00,31/12/2023 00:00:00,P09-2024
,LEE VALLEY MARINA STANSTEAD,SUPPLIES AND SERVICES,CLOTHING & UNIFORMS,4225,"P124262-SERVICE-gloves, balaclava, top TZ",12/12/2023 00:00,280254,44.93,DI0017,DIRECT BOOT & SHOE SUPPLIES,27/11/2023 00:00:00,31/12/2023 00:00:00,P09-2024
,LEE VALLEY MARINA STANSTEAD,SUPPLIES AND SERVICES,CLOTHING & UNIFORMS,4225,P124260-SERVICE-w/s WP and thermal gloves,12/12/2023 00:00,280282,24.96,AM0406,AMAZON PAYMENTS UK LIMITED,27/11/2023 00:00:00,31/12/2023 00:00:00,P09-2024
,LEE VALLEY MARINA STANSTEAD,SUPPLIES AND SERVICES,CLOTHING & UNIFORMS,4225,P124260-SERVICE-w/s WP and thermal gloves,12/12/2023 00:00,280283,24.98,AM0406,AMAZON PAYMENTS UK LIMITED,27/11/2023 00:00:00,31/12/2023 00:00:00,P09-2024
,LEE VALLEY MARINA STANSTEAD,SUPPLIES AND SERVICES,CLOTHING & UNIFORMS,4225,P124260-SERVICE-w/s WP and thermal gloves,12/12/2023 00:00,280284,10.61,AM0406,AMAZON PAYMENTS UK LIMITED,27/11/2023 00:00:00,31/12/2023 00:00:00,P09-2024
,LEE VALLEY MARINA STANSTEAD,SUPPLIES AND SERVICES,CLOTHING & UNIFORMS,4225,P124261-SERVICE-nitrile disposable grip gloves x 2  RD L,12/12/2023 00:00,280336,20.82,SC0057,SCREWFIX DIRECT LTD,27/11/2023 00:00:00,31/12/2023 00:00:00,P09-2024
,LEE VALLEY MARINA STANSTEAD,SUPPLIES AND SERVICES,CLOTHING & UNIFORMS,4225,P124291-SERVICE-yello high viz JJ,12/12/2023 00:00,280409,33.45,DI0017,DIRECT BOOT & SHOE SUPPLIES,27/11/2023 00:00:00,31/12/2023 00:00:00,P09-2024
,LEE VALLEY MARINA STANSTEAD,SUPPLIES AND SERVICES,CLOTHING & UNIFORMS,4225,P124323-SERVICE-w/s items  (gloves/eng eqip),19/12/2023 00:00:00,280488,11.91,AM0406,AMAZON PAYMENTS UK LIMITED,27/11/2023 00:00:00,31/12/2023 00:00:00,P09-2024
,LEE VALLEY MARINA STANSTEAD,SUPPLIES AND SERVICES,CLOTHING & UNIFORMS,4225,P124323-SERVICE-w/s items  (gloves/eng eqip),19/12/2023 00:00:00,280489,16.64,AM0406,AMAZON PAYMENTS UK LIMITED,27/11/2023 00:00:00,31/12/2023 00:00:00,P09-2024
,LEE VALLEY MARINA STANSTEAD,SUPPLIES AND SERVICES,CLOTHING & UNIFORMS,4225,P124323-SERVICE-w/s items  (gloves/eng eqip),19/12/2023 00:00:00,280490,22.24,AM0406,AMAZON PAYMENTS UK LIMITED,27/11/2023 00:00:00,31/12/2023 00:00:00,P09-2024
,LEE VALLEY CAMPSITE,SUPPLIES AND SERVICES,CLOTHING & UNIFORMS,4225,P124229-SERVICE-SC Staff Uniform,31/12/2023 00:00:00,280103,60,DI0017,DIRECT BOOT & SHOE SUPPLIES,27/11/2023 00:00:00,31/12/2023 00:00:00,P09-2024
,LEE VALLEY CARAVAN PARK,SUPPLIES AND SERVICES,CLOTHING & UNIFORMS,4225,P124229-SERVICE-DW Staff Uniform,31/12/2023 00:00:00,280103,27.5,DI0017,DIRECT BOOT & SHOE SUPPLIES,27/11/2023 00:00:00,31/12/2023 00:00:00,P09-2024
P&V,NORTH AREA RANGERS,SUPPLIES AND SERVICES,CLOTHING & UNIFORMS,4225,P124282-SERVICE-Chainsaw PPE - Olivia C - Boots size 8,20/12/2023 00:00:00,280393,222.23,TU0006,P TUCKWELL LTD,27/11/2023 00:00:00,31/12/2023 00:00:00,P09-2024
P&V,NORTH AREA RANGERS,SUPPLIES AND SERVICES,CLOTHING & UNIFORMS,4225,P124282-SERVICE-Chainsaw Trousers,20/12/2023 00:00:00,280393,214.81,TU0006,P TUCKWELL LTD,27/11/2023 00:00:00,31/12/2023 00:00:00,P09-2024
P&V,SOUTH AREA RANGERS,SUPPLIES AND SERVICES,CLOTHING & UNIFORMS,4225,P123937-SERVICE-5x Ladies Micrp Fleece - 89781 - Black - Larg,12/04/2023 00:00,280060,141.75,EN0283,ENGELBERT STRAUSS LIMITED,27/11/2023 00:00:00,31/12/2023 00:00:00,P09-2024
P&V,SOUTH AREA RANGERS,SUPPLIES AND SERVICES,CLOTHING & UNIFORMS,4225,P123937-SERVICE-1x 3in1 Men's Functional Jacket - 77720 - Bla,12/04/2023 00:00,280060,165.5,EN0283,ENGELBERT STRAUSS LIMITED,27/11/2023 00:00:00,31/12/2023 00:00:00,P09-2024
P&V,SOUTH AREA RANGERS,SUPPLIES AND SERVICES,CLOTHING & UNIFORMS,4225,P123937-SERVICE-2x Men's Micro Fleece - 89581 - Black - Small,12/04/2023 00:00,280060,60.7,EN0283,ENGELBERT STRAUSS LIMITED,27/11/2023 00:00:00,31/12/2023 00:00:00,P09-2024
P&V,SOUTH AREA RANGERS,SUPPLIES AND SERVICES,CLOTHING & UNIFORMS,4225,P123937-SERVICE-2x 3in1 Ladies Functional Jacket - 77730 - Bl,12/04/2023 00:00,280060,331,EN0283,ENGELBERT STRAUSS LIMITED,27/11/2023 00:00:00,31/12/2023 00:00:00,P09-2024
P&V,SOUTH AREA RANGERS,SUPPLIES AND SERVICES,CLOTHING & UNIFORMS,4225,P124081-SERVICE-Sthil Advance X-Vent Helmet,12/05/2023 00:00,280261,71.33,AP0245,APS LIMITED,27/11/2023 00:00:00,31/12/2023 00:00:00,P09-2024
P&V,RIVER LEE COUNTRY PARK,SUPPLIES AND SERVICES,CLOTHING & UNIFORMS,4225,P123937-SERVICE-1x 3in1 Men's Functional Jacket - 77720 - Bla,12/04/2023 00:00,280060,172.8,EN0283,ENGELBERT STRAUSS LIMITED,27/11/2023 00:00:00,31/12/2023 00:00:00,P09-2024
P&V,RIVER LEE COUNTRY PARK,SUPPLIES AND SERVICES,CLOTHING & UNIFORMS,4225,P123937-SERVICE-Screen costs per colour/size,12/04/2023 00:00,280060,42.5,EN0283,ENGELBERT STRAUSS LIMITED,27/11/2023 00:00:00,31/12/2023 00:00:00,P09-2024
P&V,RIVER LEE COUNTRY PARK,SUPPLIES AND SERVICES,CLOTHING & UNIFORMS,4225,P123937-SERVICE-Service Charge per order,12/04/2023 00:00,280060,9.9,EN0283,ENGELBERT STRAUSS LIMITED,27/11/2023 00:00:00,31/12/2023 00:00:00,P09-2024
P&V,RIVER LEE COUNTRY PARK,SUPPLIES AND SERVICES,CLOTHING & UNIFORMS,4225,P123937-SERVICE-3x  Flexi-Stretch Waterproof Trouser - 77658,12/04/2023 00:00,280060,65.7,EN0283,ENGELBERT STRAUSS LIMITED,27/11/2023 00:00:00,31/12/2023 00:00:00,P09-2024
P&V,RIVER LEE COUNTRY PARK,SUPPLIES AND SERVICES,CLOTHING & UNIFORMS,4225,P123937-SERVICE-2x Men's Polo Shirts - 22216 - Navy - Large,12/04/2023 00:00,280060,56.7,EN0283,ENGELBERT STRAUSS LIMITED,27/11/2023 00:00:00,31/12/2023 00:00:00,P09-2024
P&V,RIVER LEE COUNTRY PARK,SUPPLIES AND SERVICES,CLOTHING & UNIFORMS,4225,P123937-SERVICE-6x Ladies Polo Shirts - 22206 - Navy - Large,12/04/2023 00:00,280060,167.1,EN0283,ENGELBERT STRAUSS LIMITED,27/11/2023 00:00:00,31/12/2023 00:00:00,P09-2024
P&V,RIVER LEE COUNTRY PARK,SUPPLIES AND SERVICES,CLOTHING & UNIFORMS,4225,"P123973-SERVICE-Chainsaw Scabbard 12-14"" & 16-18""",12/04/2023 00:00,280083,3.48,TU0006,P TUCKWELL LTD,27/11/2023 00:00:00,31/12/2023 00:00:00,P09-2024
P&V,RIVER LEE COUNTRY PARK,SUPPLIES AND SERVICES,CLOTHING & UNIFORMS,4225,P123973-SERVICE-Delivery,12/04/2023 00:00,280083,10,TU0006,P TUCKWELL LTD,27/11/2023 00:00:00,31/12/2023 00:00:00,P09-2024
P&V,RIVER LEE COUNTRY PARK,SUPPLIES AND SERVICES,CLOTHING & UNIFORMS,4225,P123973-SERVICE-2x Safety Boots,12/04/2023 00:00,280083,154.2,TU0006,P TUCKWELL LTD,27/11/2023 00:00:00,31/12/2023 00:00:00,P09-2024
P&V,RIVER LEE COUNTRY PARK,SUPPLIES AND SERVICES,CLOTHING & UNIFORMS,4225,P123973-SERVICE-2x Chainsaw Wellies,12/04/2023 00:00,280083,181.9,TU0006,P TUCKWELL LTD,27/11/2023 00:00:00,31/12/2023 00:00:00,P09-2024
P&V,RIVER LEE COUNTRY PARK,SUPPLIES AND SERVICES,CLOTHING & UNIFORMS,4225,P123973-SERVICE-1x Chainsaw Braces,12/04/2023 00:00,280083,20.06,TU0006,P TUCKWELL LTD,27/11/2023 00:00:00,31/12/2023 00:00:00,P09-2024
P&V,SPORT AND LEISURE,SUPPLIES AND SERVICES,CLOTHING & UNIFORMS,4225,P124158-SERVICE-Embrodiery on own garments,19/12/2023 00:00:00,280829,76.8,DI0017,DIRECT BOOT & SHOE SUPPLIES,27/11/2023 00:00:00,31/12/2023 00:00:00,P09-2024
P&V,VOLUNTEERS (L&E),SUPPLIES AND SERVICES,CLOTHING & UNIFORMS,4225,P123902-SERVICE-2 x 32 inch Regular TR505 Uneek Cargo Trouser,12/12/2023 00:00,280048,26,DI0017,DIRECT BOOT & SHOE SUPPLIES,27/11/2023 00:00:00,31/12/2023 00:00:00,P09-2024
P&V,VOLUNTEERS (L&E),SUPPLIES AND SERVICES,CLOTHING & UNIFORMS,4225,P123902-SERVICE-1 x L UN019 Black Full Zip Fleeces with Sewn,12/12/2023 00:00,280048,18.5,DI0017,DIRECT BOOT & SHOE SUPPLIES,27/11/2023 00:00:00,31/12/2023 00:00:00,P09-2024
P&V,VOLUNTEERS (L&E),SUPPLIES AND SERVICES,CLOTHING & UNIFORMS,4225,P123902-SERVICE-5 x M UN019 Black Full Zip Fleeces with Sewn,12/12/2023 00:00,280048,92.5,DI0017,DIRECT BOOT & SHOE SUPPLIES,27/11/2023 00:00:00,31/12/2023 00:00:00,P09-2024
P&V,VOLUNTEERS (L&E),SUPPLIES AND SERVICES,CLOTHING & UNIFORMS,4225,P123902-SERVICE-4 x S UN019 Black Full Zip Fleeces with Sewn,12/12/2023 00:00,280048,74,DI0017,DIRECT BOOT & SHOE SUPPLIES,27/11/2023 00:00:00,31/12/2023 00:00:00,P09-2024
P&V,VOLUNTEERS (L&E),SUPPLIES AND SERVICES,CLOTHING & UNIFORMS,4225,P123902-SERVICE-Size 9 MMB6 Classic D-Ring Safety Boot,12/12/2023 00:00,280048,12.5,DI0017,DIRECT BOOT & SHOE SUPPLIES,27/11/2023 00:00:00,31/12/2023 00:00:00,P09-2024
P&V,VOLUNTEERS (L&E),SUPPLIES AND SERVICES,CLOTHING & UNIFORMS,4225,P123902-SERVICE-38inch Small TR505 Uneek Cargo Trouser BLACK,12/12/2023 00:00,280048,13,DI0017,DIRECT BOOT & SHOE SUPPLIES,27/11/2023 00:00:00,31/12/2023 00:00:00,P09-2024
P&V,VOLUNTEERS (L&E),SUPPLIES AND SERVICES,CLOTHING & UNIFORMS,4225,P123902-SERVICE-34 inch Regular trousers TR505 Uneek Cargo Tr,12/12/2023 00:00,280048,13,DI0017,DIRECT BOOT & SHOE SUPPLIES,27/11/2023 00:00:00,31/12/2023 00:00:00,P09-2024
P&V,VOLUNTEERS (L&E),SUPPLIES AND SERVICES,CLOTHING & UNIFORMS,4225,P123902-SERVICE-6 x M BLACK UN015 V-Neck Sweatshirt with sewn,12/12/2023 00:00,280048,131.94,DI0017,DIRECT BOOT & SHOE SUPPLIES,27/11/2023 00:00:00,31/12/2023 00:00:00,P09-2024
P&V,VOLUNTEERS (L&E),SUPPLIES AND SERVICES,CLOTHING & UNIFORMS,4225,P123902-SERVICE-30inch Regular TR505 Uneek Cargo Trouser BLAC,12/12/2023 00:00,280048,13,DI0017,DIRECT BOOT & SHOE SUPPLIES,27/11/2023 00:00:00,31/12/2023 00:00:00,P09-2024
P&V,VOLUNTEERS (L&E),SUPPLIES AND SERVICES,CLOTHING & UNIFORMS,4225,P123902-SERVICE-1 x XXL BLACK UN015 V-Neck Sweatshirt with se,12/12/2023 00:00,280048,21.99,DI0017,DIRECT BOOT & SHOE SUPPLIES,27/11/2023 00:00:00,31/12/2023 00:00:00,P09-2024
P&V,VOLUNTEERS (L&E),SUPPLIES AND SERVICES,CLOTHING & UNIFORMS,4225,P123902-SERVICE-3 x XL UN019 Black Full Zip Fleeces with Sewn,12/12/2023 00:00,280048,55.5,DI0017,DIRECT BOOT & SHOE SUPPLIES,27/11/2023 00:00:00,31/12/2023 00:00:00,P09-2024
P&V,VOLUNTEERS (L&E),SUPPLIES AND SERVICES,CLOTHING & UNIFORMS,4225,P123902-SERVICE-2 x XL BLACK UN015 V-Neck Sweatshirt with sew,12/12/2023 00:00,280048,43.98,DI0017,DIRECT BOOT & SHOE SUPPLIES,27/11/2023 00:00:00,31/12/2023 00:00:00,P09-2024
P&V,VOLUNTEERS (L&E),SUPPLIES AND SERVICES,CLOTHING & UNIFORMS,4225,P123902-SERVICE-2 x L BLACK UN015 V-Neck Sweatshirt with sewn,12/12/2023 00:00,280048,43.98,DI0017,DIRECT BOOT & SHOE SUPPLIES,27/11/2023 00:00:00,31/12/2023 00:00:00,P09-2024
P&V,VOLUNTEERS (L&E),SUPPLIES AND SERVICES,CLOTHING & UNIFORMS,4225,P123902-SERVICE-48inch Regular TR505 Uneek Cargo Trouser BLAC,12/12/2023 00:00,280048,13,DI0017,DIRECT BOOT & SHOE SUPPLIES,27/11/2023 00:00:00,31/12/2023 00:00:00,P09-2024
P&V,VOLUNTEERS (L&E),SUPPLIES AND SERVICES,CLOTHING & UNIFORMS,4225,P123902-SERVICE-2 x Size XL KK403 Mens Kustom Kit Polo with S,12/12/2023 00:00,280048,35.98,DI0017,DIRECT BOOT & SHOE SUPPLIES,27/11/2023 00:00:00,31/12/2023 00:00:00,P09-2024
P&V,VOLUNTEERS (L&E),SUPPLIES AND SERVICES,CLOTHING & UNIFORMS,4225,P123902-SERVICE-3 x Size M KK403 Mens Kustom Kit Polo with Se,12/12/2023 00:00,280048,53.97,DI0017,DIRECT BOOT & SHOE SUPPLIES,27/11/2023 00:00:00,31/12/2023 00:00:00,P09-2024
P&V,VOLUNTEERS (L&E),SUPPLIES AND SERVICES,CLOTHING & UNIFORMS,4225,P123902-SERVICE-3 x Size S KK403 Mens Kustom Kit Polo with Se,12/12/2023 00:00,280048,53.97,DI0017,DIRECT BOOT & SHOE SUPPLIES,27/11/2023 00:00:00,31/12/2023 00:00:00,P09-2024
P&V,VOLUNTEERS (L&E),SUPPLIES AND SERVICES,CLOTHING & UNIFORMS,4225,P123902-SERVICE-2 x Size 16 Womens KK703 Kustom Kit Polo with,12/12/2023 00:00,280048,35.98,DI0017,DIRECT BOOT & SHOE SUPPLIES,27/11/2023 00:00:00,31/12/2023 00:00:00,P09-2024
P&V,VOLUNTEERS (L&E),SUPPLIES AND SERVICES,CLOTHING & UNIFORMS,4225,P123902-SERVICE-2 x Size 10 Womens KK703 Kustom Kit Polo with,12/12/2023 00:00,280048,35.98,DI0017,DIRECT BOOT & SHOE SUPPLIES,27/11/2023 00:00:00,31/12/2023 00:00:00,P09-2024
P&V,VOLUNTEERS (L&E),SUPPLIES AND SERVICES,CLOTHING & UNIFORMS,4225,P123902-SERVICE-1 x Small BLACK UN015 V-Neck Sweatshirt with,12/12/2023 00:00,280048,21.99,DI0017,DIRECT BOOT & SHOE SUPPLIES,27/11/2023 00:00:00,31/12/2023 00:00:00,P09-2024
,LV LEISURE CENTRE CAMPSITE,SUPPLIES AND SERVICES,CLOTHING & UNIFORMS,4225,P124229-SERVICE-EC Staff Uniform,31/12/2023 00:00:00,280103,351.5,DI0017,DIRECT BOOT & SHOE SUPPLIES,27/11/2023 00:00:00,31/12/2023 00:00:00,P09-2024
,LV LEISURE CENTRE CAMPSITE,SUPPLIES AND SERVICES,CLOTHING & UNIFORMS,4225,P124270-SERVICE-EC Extra Staff Uniform,31/12/2023 00:00:00,280253,67.95,DI0017,DIRECT BOOT & SHOE SUPPLIES,27/11/2023 00:00:00,31/12/2023 00:00:00,P09-2024
,LV LEISURE CENTRE CAMPSITE,SUPPLIES AND SERVICES,CLOTHING & UNIFORMS,4225,P124270-SERVICE-EC Extra Staff Uniform,31/12/2023 00:00:00,280566,35,DI0017,DIRECT BOOT & SHOE SUPPLIES,27/11/2023 00:00:00,31/12/2023 00:00:00,P09-2024
,LEE VALLEY MARINA STANSTEAD,SUPPLIES AND SERVICES,OFFICE EXPENSES,4311,P124249-SERVICE-office sundries - xmas lights,12/12/2023 00:00,280399,33.97,AM0406,AMAZON PAYMENTS UK LIMITED,27/11/2023 00:00:00,31/12/2023 00:00:00,P09-2024
,LEE VALLEY MARINA STANSTEAD,SUPPLIES AND SERVICES,OFFICE EXPENSES,4311,P124323-SERVICE-extra signage costs,31/12/2023 00:00:00,280487,3.62,AM0406,AMAZON PAYMENTS UK LIMITED,27/11/2023 00:00:00,31/12/2023 00:00:00,P09-2024
,LEE VALLEY MARINA STANSTEAD,SUPPLIES AND SERVICES,OFFICE EXPENSES,4311,P124411-SERVICE-100 AA batteries,19/12/2023 00:00:00,280749,17.77,AM0406,AMAZON PAYMENTS UK LIMITED,27/11/2023 00:00:00,31/12/2023 00:00:00,P09-2024
,LEE VALLEY CAMPSITE,SUPPLIES AND SERVICES,OFFICE EXPENSES,4311,P123911-SERVICE-Fluoerescent stars,12/05/2023 00:00,279808,4.16,AM0406,AMAZON PAYMENTS UK LIMITED,27/11/2023 00:00:00,31/12/2023 00:00:00,P09-2024
,LEE VALLEY CAMPSITE,SUPPLIES AND SERVICES,OFFICE EXPENSES,4311,P123125-SERVICE-Stationery,20/12/2023 00:00:00,280624,74.4,TH0008,JKL SOLUTIONS LTD,27/11/2023 00:00:00,31/12/2023 00:00:00,P09-2024
P&V,WILDLIFE DISCOVERY CENTRE,SUPPLIES AND SERVICES,OFFICE EXPENSES,4311,P124434-SERVICE-1x Hazard Warning Tape Adhesive - STA22473471,31/12/2023 00:00:00,280997,4.82,TH0008,JKL SOLUTIONS LTD,27/11/2023 00:00:00,31/12/2023 00:00:00,P09-2024
P&V,RIVER LEE COUNTRY PARK,SUPPLIES AND SERVICES,OFFICE EXPENSES,4311,P124206-SERVICE-1x Nescafe Gold Blend Coffee - NL82020,12/12/2023 00:00,280231,28.37,TH0008,JKL SOLUTIONS LTD,27/11/2023 00:00:00,31/12/2023 00:00:00,P09-2024
P&V,RIVER LEE COUNTRY PARK,SUPPLIES AND SERVICES,OFFICE EXPENSES,4311,P124206-SERVICE-1x Plastic Tape Dispenser - KF01294,12/12/2023 00:00,280231,2.44,TH0008,JKL SOLUTIONS LTD,27/11/2023 00:00:00,31/12/2023 00:00:00,P09-2024
P&V,RIVER LEE COUNTRY PARK,SUPPLIES AND SERVICES,OFFICE EXPENSES,4311,P124206-SERVICE-1x Easy Tear Sellotape (19x33mm) - KF27013,12/12/2023 00:00,280231,2.87,TH0008,JKL SOLUTIONS LTD,27/11/2023 00:00:00,31/12/2023 00:00:00,P09-2024
P&V,RIVER LEE COUNTRY PARK,SUPPLIES AND SERVICES,OFFICE EXPENSES,4311,P124207-SERVICE-1x Yorshire Tea Bags Pk1040 - 764634,12/04/2023 00:00,280239,31.74,GR0020,GREENHAM TRADING LIMITED,27/11/2023 00:00:00,31/12/2023 00:00:00,P09-2024
P&V,RIVER LEE COUNTRY PARK,SUPPLIES AND SERVICES,OFFICE EXPENSES,4311,P124313-SERVICE-1x Magnetic White Drywipe Board - KF04146,31/12/2023 00:00:00,281038,119.27,TH0008,JKL SOLUTIONS LTD,27/11/2023 00:00:00,31/12/2023 00:00:00,P09-2024
P&V,SPORT AND LEISURE,SUPPLIES AND SERVICES,OFFICE EXPENSES,4311,P124228-SERVICE-Stationery,12/04/2023 00:00,280232,20.15,TH0008,JKL SOLUTIONS LTD,27/11/2023 00:00:00,31/12/2023 00:00:00,P09-2024
,LV LEISURE CENTRE CAMPSITE,SUPPLIES AND SERVICES,OFFICE EXPENSES,4311,P124219-SERVICE-office supplies,19/12/2023 00:00:00,280233,48.02,TH0008,JKL SOLUTIONS LTD,27/11/2023 00:00:00,31/12/2023 00:00:00,P09-2024
,LV LEISURE CENTRE CAMPSITE,SUPPLIES AND SERVICES,OFFICE EXPENSES,4311,P124295-SERVICE-stock take,12/05/2023 00:00,280262,165,VE0038,VENNERS LTD,27/11/2023 00:00:00,31/12/2023 00:00:00,P09-2024
R&B,INFORMATION TECHNOLOGY,SUPPLIES AND SERVICES,PHOTOCOPYING,4314,IT-QUARTERLY CHARGE-04/12/23-03/03/24,12/12/2023 00:00,280377,1566.78,KO0071,KONICA MINOLTA BUSINESS SOLUTIONS ( UK) LTD,27/11/2023 00:00:00,31/12/2023 00:00:00,P09-2024
R&B,INFORMATION TECHNOLOGY,SUPPLIES AND SERVICES,PHOTOCOPYING,4314,IT-Various locationi copy machines,19/12/2023 00:00:00,280751,617.69,KO0071,KONICA MINOLTA BUSINESS SOLUTIONS ( UK) LTD,27/11/2023 00:00:00,31/12/2023 00:00:00,P09-2024
CEO,LEGAL SERVICES,SUPPLIES AND SERVICES,SUBSCRIPTIONS,4334,LR FORM OCI OFFICIAL COPY,12/04/2023 00:00,280135,2.24,SE0705,SEARCHFLOW LIMITED,27/11/2023 00:00:00,31/12/2023 00:00:00,P09-2024
CEO,LEGAL SERVICES,SUPPLIES AND SERVICES,SUBSCRIPTIONS,4334,P123984-SERVICE-Conveyancing Searches,12/04/2023 00:00,280135,8.24,SE0705,SEARCHFLOW LIMITED,27/11/2023 00:00:00,31/12/2023 00:00:00,P09-2024
CEO,LEGAL SERVICES,SUPPLIES AND SERVICES,SUBSCRIPTIONS,4334,LR FORM OCI OFFICIAL COPY,12/04/2023 00:00,280135,-8.24,SE0705,SEARCHFLOW LIMITED,27/11/2023 00:00:00,31/12/2023 00:00:00,P09-2024
CEO,LEGAL SERVICES,SUPPLIES AND SERVICES,SUBSCRIPTIONS,4334,LR FORM OCI OFFICIAL COPY,12/04/2023 00:00,280135,6,SE0705,SEARCHFLOW LIMITED,27/11/2023 00:00:00,31/12/2023 00:00:00,P09-2024
CEO,LEGAL SERVICES,SUPPLIES AND SERVICES,SUBSCRIPTIONS,4334,LR FORM OC1 Request,31/12/2023 00:00:00,280836,6,SE0705,SEARCHFLOW LIMITED,27/11/2023 00:00:00,31/12/2023 00:00:00,P09-2024
CEO,LEGAL SERVICES,SUPPLIES AND SERVICES,SUBSCRIPTIONS,4334,LR FORM OC1 Request,31/12/2023 00:00:00,280836,-8.24,SE0705,SEARCHFLOW LIMITED,27/11/2023 00:00:00,31/12/2023 00:00:00,P09-2024
CEO,LEGAL SERVICES,SUPPLIES AND SERVICES,SUBSCRIPTIONS,4334,P123984-SERVICE-Conveyancing Searches,31/12/2023 00:00:00,280836,8.24,SE0705,SEARCHFLOW LIMITED,27/11/2023 00:00:00,31/12/2023 00:00:00,P09-2024
CEO,LEGAL SERVICES,SUPPLIES AND SERVICES,SUBSCRIPTIONS,4334,LR FORM OC1 Request,31/12/2023 00:00:00,280836,2.24,SE0705,SEARCHFLOW LIMITED,27/11/2023 00:00:00,31/12/2023 00:00:00,P09-2024
CEO,LEGAL SERVICES,SUPPLIES AND SERVICES,SUBSCRIPTIONS,4334,SEARCHFLOW LIMITED,31/12/2023 00:00:00,281015,-1249.55,SE0705,SEARCHFLOW LIMITED,27/11/2023 00:00:00,31/12/2023 00:00:00,P09-2024
CEO,LEGAL SERVICES,SUPPLIES AND SERVICES,SUBSCRIPTIONS,4334,SEARCHFLOW LIMITED,31/12/2023 00:00:00,281015,15,SE0705,SEARCHFLOW LIMITED,27/11/2023 00:00:00,31/12/2023 00:00:00,P09-2024
CEO,LEGAL SERVICES,SUPPLIES AND SERVICES,SUBSCRIPTIONS,4334,SEARCHFLOW LIMITED,31/12/2023 00:00:00,281015,1234.55,SE0705,SEARCHFLOW LIMITED,27/11/2023 00:00:00,31/12/2023 00:00:00,P09-2024
CEO,LEGAL SERVICES,SUPPLIES AND SERVICES,SUBSCRIPTIONS,4334,"P124485-SERVICE-Searches on Land North Railway, Mollison Ave",31/12/2023 00:00:00,281015,1249.55,SE0705,SEARCHFLOW LIMITED,27/11/2023 00:00:00,31/12/2023 00:00:00,P09-2024
CEO,LEGAL SERVICES,SUPPLIES AND SERVICES,SUBSCRIPTIONS,4334,P123984-SERVICE-Conveyancing Searches,31/12/2023 00:00:00,281016,193.35,SE0705,SEARCHFLOW LIMITED,27/11/2023 00:00:00,31/12/2023 00:00:00,P09-2024
P&V,LEE VALLEY FARM HOLYFIELDHALL,SUPPLIES AND SERVICES,SUBSCRIPTIONS,4334,P124441-SERVICE-Subscription,19/12/2023 00:00:00,280505,820.1,NF0042,NFU,27/11/2023 00:00:00,31/12/2023 00:00:00,P09-2024
P&V,RIVER LEE COUNTRY PARK,SUPPLIES AND SERVICES,POSTAGE & MAILING,4445,STAMPS,12/06/2023 00:00,280295,10,FI0001,DIRECTOR OF FINANCE - CASH,27/11/2023 00:00:00,31/12/2023 00:00:00,P09-2024
R&B,INFORMATION TECHNOLOGY,SUPPLIES AND SERVICES,TELEPHONES (OFFICE),4481,P123882-SERVICE-Monthly SIP - Oct 23 - Mar 24,12/12/2023 00:00,280307,192.2,FR0131,VOICEFLEX LTD,27/11/2023 00:00:00,31/12/2023 00:00:00,P09-2024
R&B,INFORMATION TECHNOLOGY,SUPPLIES AND SERVICES,TELEPHONES (OFFICE),4481,P124301-SERVICE-CallSwitch Licence & Calls Oct 2023,12/06/2023 00:00,280361,846.65,IQ0022,IQUAL,27/11/2023 00:00:00,31/12/2023 00:00:00,P09-2024
R&B,INFORMATION TECHNOLOGY,SUPPLIES AND SERVICES,TELEPHONES (OFFICE),4481,IT-TELEPHONE CHG-Nov 2023,12/12/2023 00:00,280401,1125.09,ID0002,DAISY COMMUNICATIONS LTD,27/11/2023 00:00:00,31/12/2023 00:00:00,P09-2024
R&B,INFORMATION TECHNOLOGY,SUPPLIES AND SERVICES,TELEPHONES (MOBILE),4484,IT-MONTHLY MOBILE CHARGES,31/12/2023 00:00:00,281047,967.97,VO0010,VODAFONE  LIMITED (CORPORATE),27/11/2023 00:00:00,31/12/2023 00:00:00,P09-2024
R&B,INFORMATION TECHNOLOGY,SUPPLIES AND SERVICES,TELEPHONES (MOBILE),4484,IT-MONTHLY MOBILE CHARGES,31/12/2023 00:00:00,281047,0.24,VO0010,VODAFONE  LIMITED (CORPORATE),27/11/2023 00:00:00,31/12/2023 00:00:00,P09-2024
P&V,RIVER LEE COUNTRY PARK,SUPPLIES AND SERVICES,HOSPITALITY,4505,HOSPITALITY,12/06/2023 00:00,280295,5.3,FI0001,DIRECTOR OF FINANCE - CASH,27/11/2023 00:00:00,31/12/2023 00:00:00,P09-2024
P&V,RIVER LEE COUNTRY PARK,SUPPLIES AND SERVICES,HOSPITALITY,4505,HOSPITALITY,12/06/2023 00:00,280295,4,FI0001,DIRECTOR OF FINANCE - CASH,27/11/2023 00:00:00,31/12/2023 00:00:00,P09-2024
P&V,RIVER LEE COUNTRY PARK,SUPPLIES AND SERVICES,HOSPITALITY,4505,HOSPITALITY,12/06/2023 00:00,280295,7.2,FI0001,DIRECTOR OF FINANCE - CASH,27/11/2023 00:00:00,31/12/2023 00:00:00,P09-2024
P&V,WILDLIFE DISCOVERY CENTRE,SUPPLIES AND SERVICES,VOLUNTEERS EXPENSES,4506,VOLUNTTER REFRESHENTS (WDC),12/06/2023 00:00,280295,2.4,FI0001,DIRECTOR OF FINANCE - CASH,27/11/2023 00:00:00,31/12/2023 00:00:00,P09-2024
P&V,WILDLIFE DISCOVERY CENTRE,SUPPLIES AND SERVICES,VOLUNTEERS EXPENSES,4506,VOLUNTEER REFRESHMENTS (WDC),12/06/2023 00:00,280295,2.97,FI0001,DIRECTOR OF FINANCE - CASH,27/11/2023 00:00:00,31/12/2023 00:00:00,P09-2024
P&V,RIVER LEE COUNTRY PARK,SUPPLIES AND SERVICES,VOLUNTEERS EXPENSES,4506,VOLUNTEER REFRESHMENTS,12/06/2023 00:00,280295,8.23,FI0001,DIRECTOR OF FINANCE - CASH,27/11/2023 00:00:00,31/12/2023 00:00:00,P09-2024
P&V,RIVER LEE COUNTRY PARK,SUPPLIES AND SERVICES,VOLUNTEERS EXPENSES,4506,VOLUNTEER REFRESHMENTS,12/06/2023 00:00,280295,3.36,FI0001,DIRECTOR OF FINANCE - CASH,27/11/2023 00:00:00,31/12/2023 00:00:00,P09-2024
P&V,RIVER LEE COUNTRY PARK,SUPPLIES AND SERVICES,VOLUNTEERS EXPENSES,4506,VOLUNTEER REFRESHMENTS,12/06/2023 00:00,280295,5.08,FI0001,DIRECTOR OF FINANCE - CASH,27/11/2023 00:00:00,31/12/2023 00:00:00,P09-2024
P&V,RIVER LEE COUNTRY PARK,SUPPLIES AND SERVICES,VOLUNTEERS EXPENSES,4506,VOLUNTEER REFRESHMENTS,12/06/2023 00:00,280295,8.4,FI0001,DIRECTOR OF FINANCE - CASH,27/11/2023 00:00:00,31/12/2023 00:00:00,P09-2024
P&V,RIVER LEE COUNTRY PARK,SUPPLIES AND SERVICES,VOLUNTEERS EXPENSES,4506,VOLUNTEER REFRESHMENTS,12/06/2023 00:00,280295,2.39,FI0001,DIRECTOR OF FINANCE - CASH,27/11/2023 00:00:00,31/12/2023 00:00:00,P09-2024
P&V,RIVER LEE COUNTRY PARK,SUPPLIES AND SERVICES,VOLUNTEERS EXPENSES,4506,VOLUNTEER REFRESHMENTS,12/06/2023 00:00,280295,4.3,FI0001,DIRECTOR OF FINANCE - CASH,27/11/2023 00:00:00,31/12/2023 00:00:00,P09-2024
,LEE VALLEY CAMPSITE,SUPPLIES AND SERVICES,MARKETING,4603,P124094-SERVICE-SC Out & About Renewal,12/05/2023 00:00,280208,125,WA0063,WARNERS GROUP PUBLICATIONS PLC,27/11/2023 00:00:00,31/12/2023 00:00:00,P09-2024
,LEE VALLEY CARAVAN PARK,SUPPLIES AND SERVICES,MARKETING,4603,P124094-SERVICE-DW Out & About Renewal,12/05/2023 00:00,280208,125,WA0063,WARNERS GROUP PUBLICATIONS PLC,27/11/2023 00:00:00,31/12/2023 00:00:00,P09-2024
P&V,YOUTH AND SCHOOLS,SUPPLIES AND SERVICES,MARKETING,4603,P124123-SERVICE-School Travel organiser,13/12/2023 00:00:00,280529,375,YA0015,YANDELL PUBLISHING LIMITED,27/11/2023 00:00:00,31/12/2023 00:00:00,P09-2024
P&V,ALMOST WILD CAMPSITE,SUPPLIES AND SERVICES,MARKETING,4603,P124094-SERVICE-AWC Out & About Renewal,12/05/2023 00:00,280208,125,WA0063,WARNERS GROUP PUBLICATIONS PLC,27/11/2023 00:00:00,31/12/2023 00:00:00,P09-2024
,LV LEISURE CENTRE CAMPSITE,SUPPLIES AND SERVICES,MARKETING,4603,P124094-SERVICE-EC Out & About Renewal,12/05/2023 00:00,280208,125,WA0063,WARNERS GROUP PUBLICATIONS PLC,27/11/2023 00:00:00,31/12/2023 00:00:00,P09-2024
P&V,LEE VALLEY FARM HOLYFIELDHALL,SUPPLIES AND SERVICES,PEST CONTROL,4625,P123697-SERVICE-Rats & Mice Control,19/12/2023 00:00:00,280503,125,VE0006,VERMINATE CITY & RURAL PEST CONTROL LTD,27/11/2023 00:00:00,31/12/2023 00:00:00,P09-2024
P&V,NORTH AREA RANGERS,SUPPLIES AND SERVICES,PEST CONTROL,4625,P122082-SERVICE-Pest Control - North Sites - Oct,12/04/2023 00:00,279483,73.33,VE0006,VERMINATE CITY & RURAL PEST CONTROL LTD,27/11/2023 00:00:00,31/12/2023 00:00:00,P09-2024
P&V,NORTH AREA RANGERS,SUPPLIES AND SERVICES,PEST CONTROL,4625,P122060-SERVICE-Pest Control - Ware Town Centre - Nov,12/04/2023 00:00,279484,70,VE0006,VERMINATE CITY & RURAL PEST CONTROL LTD,27/11/2023 00:00:00,31/12/2023 00:00:00,P09-2024
P&V,NORTH AREA RANGERS,SUPPLIES AND SERVICES,PEST CONTROL,4625,P122082-SERVICE-Pest Control - North Sites - Jan,31/12/2023 00:00:00,280497,73.33,VE0006,VERMINATE CITY & RURAL PEST CONTROL LTD,27/11/2023 00:00:00,31/12/2023 00:00:00,P09-2024
P&V,NORTH AREA RANGERS,SUPPLIES AND SERVICES,PEST CONTROL,4625,P122060-SERVICE-Pest Control - Ware Town Centre - Dec,31/12/2023 00:00:00,280498,70,VE0006,VERMINATE CITY & RURAL PEST CONTROL LTD,27/11/2023 00:00:00,31/12/2023 00:00:00,P09-2024
P&V,SOUTH AREA RANGERS,SUPPLIES AND SERVICES,PEST CONTROL,4625,P122058-SERVICE-Pest Control - Tottenham Marshes - Dec,19/12/2023 00:00:00,280502,70,VE0006,VERMINATE CITY & RURAL PEST CONTROL LTD,27/11/2023 00:00:00,31/12/2023 00:00:00,P09-2024
P&V,ABBEY GARDENS,SUPPLIES AND SERVICES,PEST CONTROL,4625,P122082-SERVICE-Pest Control - North Sites - Oct,12/04/2023 00:00,279483,36.67,VE0006,VERMINATE CITY & RURAL PEST CONTROL LTD,27/11/2023 00:00:00,31/12/2023 00:00:00,P09-2024
P&V,ABBEY GARDENS,SUPPLIES AND SERVICES,PEST CONTROL,4625,P122082-SERVICE-Pest Control - North Sites - Feb,31/12/2023 00:00:00,280497,36.67,VE0006,VERMINATE CITY & RURAL PEST CONTROL LTD,27/11/2023 00:00:00,31/12/2023 00:00:00,P09-2024
P&V,ABBEY GARDENS,SUPPLIES AND SERVICES,PEST CONTROL,4625,P122082-SERVICE-Pest Control - North Sites - Jan,31/12/2023 00:00:00,280497,36.67,VE0006,VERMINATE CITY & RURAL PEST CONTROL LTD,27/11/2023 00:00:00,31/12/2023 00:00:00,P09-2024
P&V,RIVER LEE COUNTRY PARK,SUPPLIES AND SERVICES,PEST CONTROL,4625,P122082-SERVICE-Pest Control - North Sites - Oct,12/04/2023 00:00,279483,73.33,VE0006,VERMINATE CITY & RURAL PEST CONTROL LTD,27/11/2023 00:00:00,31/12/2023 00:00:00,P09-2024
P&V,RIVER LEE COUNTRY PARK,SUPPLIES AND SERVICES,PEST CONTROL,4625,P122082-SERVICE-Pest Control - North Sites - Jan,31/12/2023 00:00:00,280497,73.33,VE0006,VERMINATE CITY & RURAL PEST CONTROL LTD,27/11/2023 00:00:00,31/12/2023 00:00:00,P09-2024
P&V,FORMER LV LIDO SITE,SUPPLIES AND SERVICES,PEST CONTROL,4625,P122082-SERVICE-Pest Control - North Sites - Oct,12/04/2023 00:00,279483,36.67,VE0006,VERMINATE CITY & RURAL PEST CONTROL LTD,27/11/2023 00:00:00,31/12/2023 00:00:00,P09-2024
,LEE VALLEY MARINA SPRINGFIELD,SUPPLIES AND SERVICES,MERCHANT PROCESSING CHARGES,4641,Monthly fee,19/12/2023 00:00:00,280339,30,WO0338,WORLDPAY,27/11/2023 00:00:00,31/12/2023 00:00:00,P09-2024
,LEE VALLEY MARINA SPRINGFIELD,SUPPLIES AND SERVICES,MERCHANT PROCESSING CHARGES,4641,Monthly Fee,31/12/2023 00:00:00,281082,30,WO0338,WORLDPAY,27/11/2023 00:00:00,31/12/2023 00:00:00,P09-2024
,LEE VALLEY MARINA STANSTEAD,SUPPLIES AND SERVICES,MERCHANT PROCESSING CHARGES,4641,Monthly fee,19/12/2023 00:00:00,280339,30,WO0338,WORLDPAY,27/11/2023 00:00:00,31/12/2023 00:00:00,P09-2024
,LEE VALLEY MARINA STANSTEAD,SUPPLIES AND SERVICES,MERCHANT PROCESSING CHARGES,4641,Monthly Fee,31/12/2023 00:00:00,281082,30,WO0338,WORLDPAY,27/11/2023 00:00:00,31/12/2023 00:00:00,P09-2024
R&B,FINANCE & RESOURCES MANAGEMENT,SUPPLIES AND SERVICES,DEBT RECOVERY FEES,4646,P121343-SERVICE-DEBT RECOVERY FEES 2023/2024,31/12/2023 00:00:00,281056,318.58,LE0069,LEGAL RECOVERIES AND COLLECTIONS LIMITED,27/11/2023 00:00:00,31/12/2023 00:00:00,P09-2024
,LEE VALLEY CAMPSITE,SUPPLIES AND SERVICES,SECURITY,4650,P124169-SERVICE-radio and license,12/04/2023 00:00,280098,852.7,DI0253,DIRECT COMMUNICATIONS RADIO SERVICES LTD,27/11/2023 00:00:00,31/12/2023 00:00:00,P09-2024
,LEE VALLEY CARAVAN PARK,SUPPLIES AND SERVICES,SECURITY,4650,P124238-SERVICE-1 year service contract,12/04/2023 00:00,280017,1320,HA0466,HARLING SECURITY SOLUTIONS LTD,27/11/2023 00:00:00,31/12/2023 00:00:00,P09-2024
,LEE VALLEY CARAVAN PARK,SUPPLIES AND SERVICES,SECURITY,4650,P124237-SERVICE-Callout to top barrier,12/04/2023 00:00,280018,287,HA0466,HARLING SECURITY SOLUTIONS LTD,27/11/2023 00:00:00,31/12/2023 00:00:00,P09-2024
,LV LEISURE CENTRE CAMPSITE,SUPPLIES AND SERVICES,SECURITY,4650,P124151-SERVICE-ROLLOR SHUTTER CALL OUT,12/04/2023 00:00,280020,198,HA0466,HARLING SECURITY SOLUTIONS LTD,27/11/2023 00:00:00,31/12/2023 00:00:00,P09-2024
,LV LEISURE CENTRE CAMPSITE,SUPPLIES AND SERVICES,SECURITY,4650,P124161-SERVICE-Compound shutter repairs,13/12/2023 00:00:00,280551,600,HA0466,HARLING SECURITY SOLUTIONS LTD,27/11/2023 00:00:00,31/12/2023 00:00:00,P09-2024
CEO,LVLC SERVICE CHARGE,SUPPLIES AND SERVICES,SECURITY,4650,P121975-SERVICE-Security,13/12/2023 00:00:00,280394,1046.32,PA0059,PARKGUARD LTD,27/11/2023 00:00:00,31/12/2023 00:00:00,P09-2024
CEO,PR/COMMUNICATIONS,SUPPLIES AND SERVICES,ARTWORK,4664,P123926-SERVICE-Picketts Lock customer noticeboard map - chan,12/12/2023 00:00,280032,40,TO0631,TOP FLOOR CREATIVE,27/11/2023 00:00:00,31/12/2023 00:00:00,P09-2024
CEO,PR/COMMUNICATIONS,SUPPLIES AND SERVICES,ARTWORK,4664,"P122885-SERVICE-Destination marketing - poster, pull up banne",12/12/2023 00:00,280032,840,TO0631,TOP FLOOR CREATIVE,27/11/2023 00:00:00,31/12/2023 00:00:00,P09-2024
CEO,LEGAL SERVICES,SUPPLIES AND SERVICES,OFFSITE ARCHIVED STORAGE,4667,P124399-SERVICE-Off site storage November 2023,13/12/2023 00:00:00,280404,496.6,DA0154,RESTORE PLC,27/11/2023 00:00:00,31/12/2023 00:00:00,P09-2024
,LEE VALLEY WATERWORKS CENTRE,SUPPLIES AND SERVICES,ENTERTAINMENT & OTHER LICENCES,4711,P124296-SERVICE-TV Licence - WaterWorks Centre,12/06/2023 00:00,280303,159,TV0065,TV LICENSING,27/11/2023 00:00:00,31/12/2023 00:00:00,P09-2024
P&V,LEE VALLEY FARM HOLYFIELDHALL,THIRD PARTY PAYMENTS,VETERINARY SERVICES,4718,P124109-SERVICE-Vets,12/04/2023 00:00,279796,115.38,HA0443,HAMPDEN VETERINARY HOSPITAL,27/11/2023 00:00:00,31/12/2023 00:00:00,P09-2024
P&V,YOUTH AND SCHOOLS,SUPPLIES AND SERVICES,ACTIVITIES (SCHOOLS),4725,P121324-SERVICE-LEEF Small organisation membership 2023,13/12/2023 00:00:00,280331,90,LO0437,LONDON ENVIRONMENTAL EDUCATION FORUM,27/11/2023 00:00:00,31/12/2023 00:00:00,P09-2024
P&V,MYDDLETON HSE HERITAGE CENTRE,SUPPLIES AND SERVICES,NET CATERING PURCHASES,4777,P123800-SERVICE-Food/drink order wk com 23/10/2023,12/04/2023 00:00,280074,490.95,360001,BIDFOOD,27/11/2023 00:00:00,31/12/2023 00:00:00,P09-2024
P&V,MYDDLETON HSE HERITAGE CENTRE,SUPPLIES AND SERVICES,NET CATERING PURCHASES,4777,BTR-drinks/food,12/04/2023 00:00,280074,-490.95,360001,BIDFOOD,27/11/2023 00:00:00,31/12/2023 00:00:00,P09-2024
P&V,MYDDLETON HSE HERITAGE CENTRE,SUPPLIES AND SERVICES,NET CATERING PURCHASES,4777,BTR-drinks/food,12/04/2023 00:00,280074,391.86,360001,BIDFOOD,27/11/2023 00:00:00,31/12/2023 00:00:00,P09-2024
P&V,MYDDLETON HSE HERITAGE CENTRE,SUPPLIES AND SERVICES,NET CATERING PURCHASES,4777,BTR-drinks/food,12/04/2023 00:00,280074,99.09,360001,BIDFOOD,27/11/2023 00:00:00,31/12/2023 00:00:00,P09-2024
P&V,MYDDLETON HSE HERITAGE CENTRE,SUPPLIES AND SERVICES,NET CATERING PURCHASES,4777,P123800-SERVICE-Food/drink order wk com 23/10/2023,12/04/2023 00:00,280125,-45.52,360001,BIDFOOD,27/11/2023 00:00:00,31/12/2023 00:00:00,P09-2024
P&V,MYDDLETON HSE HERITAGE CENTRE,SUPPLIES AND SERVICES,NET CATERING PURCHASES,4777,BTR-food/drinks,12/06/2023 00:00,280291,-121.61,JJ0188,JJ FOOD SERVICE LIMITED,27/11/2023 00:00:00,31/12/2023 00:00:00,P09-2024
P&V,MYDDLETON HSE HERITAGE CENTRE,SUPPLIES AND SERVICES,NET CATERING PURCHASES,4777,BTR-food/drinks,12/06/2023 00:00,280291,72.76,JJ0188,JJ FOOD SERVICE LIMITED,27/11/2023 00:00:00,31/12/2023 00:00:00,P09-2024
P&V,MYDDLETON HSE HERITAGE CENTRE,SUPPLIES AND SERVICES,NET CATERING PURCHASES,4777,BTR-food/drinks,12/06/2023 00:00,280291,48.85,JJ0188,JJ FOOD SERVICE LIMITED,27/11/2023 00:00:00,31/12/2023 00:00:00,P09-2024
P&V,MYDDLETON HSE HERITAGE CENTRE,SUPPLIES AND SERVICES,NET CATERING PURCHASES,4777,P123945-SERVICE-FOOD,12/06/2023 00:00,280291,121.61,JJ0188,JJ FOOD SERVICE LIMITED,27/11/2023 00:00:00,31/12/2023 00:00:00,P09-2024
P&V,MYDDLETON HSE HERITAGE CENTRE,SUPPLIES AND SERVICES,NET CATERING PURCHASES,4777,btr-food/frinks,12/06/2023 00:00,280292,185.1,JJ0188,JJ FOOD SERVICE LIMITED,27/11/2023 00:00:00,31/12/2023 00:00:00,P09-2024
P&V,MYDDLETON HSE HERITAGE CENTRE,SUPPLIES AND SERVICES,NET CATERING PURCHASES,4777,P123945-SERVICE-FOOD,12/06/2023 00:00,280292,220.47,JJ0188,JJ FOOD SERVICE LIMITED,27/11/2023 00:00:00,31/12/2023 00:00:00,P09-2024
P&V,MYDDLETON HSE HERITAGE CENTRE,SUPPLIES AND SERVICES,NET CATERING PURCHASES,4777,btr-food/frinks,12/06/2023 00:00,280292,-220.47,JJ0188,JJ FOOD SERVICE LIMITED,27/11/2023 00:00:00,31/12/2023 00:00:00,P09-2024
P&V,MYDDLETON HSE HERITAGE CENTRE,SUPPLIES AND SERVICES,NET CATERING PURCHASES,4777,btr-food/frinks,12/06/2023 00:00,280292,35.37,JJ0188,JJ FOOD SERVICE LIMITED,27/11/2023 00:00:00,31/12/2023 00:00:00,P09-2024
P&V,MYDDLETON HSE HERITAGE CENTRE,SUPPLIES AND SERVICES,NET CATERING PURCHASES,4777,BTR-food/drinks,12/06/2023 00:00,280293,148.31,JJ0188,JJ FOOD SERVICE LIMITED,27/11/2023 00:00:00,31/12/2023 00:00:00,P09-2024
P&V,MYDDLETON HSE HERITAGE CENTRE,SUPPLIES AND SERVICES,NET CATERING PURCHASES,4777,P123945-SERVICE-FOOD,12/06/2023 00:00,280293,242.24,JJ0188,JJ FOOD SERVICE LIMITED,27/11/2023 00:00:00,31/12/2023 00:00:00,P09-2024
P&V,MYDDLETON HSE HERITAGE CENTRE,SUPPLIES AND SERVICES,NET CATERING PURCHASES,4777,BTR-food/drinks,12/06/2023 00:00,280293,-242.24,JJ0188,JJ FOOD SERVICE LIMITED,27/11/2023 00:00:00,31/12/2023 00:00:00,P09-2024
P&V,MYDDLETON HSE HERITAGE CENTRE,SUPPLIES AND SERVICES,NET CATERING PURCHASES,4777,BTR-food/drinks,12/06/2023 00:00,280293,93.93,JJ0188,JJ FOOD SERVICE LIMITED,27/11/2023 00:00:00,31/12/2023 00:00:00,P09-2024
P&V,MYDDLETON HSE HERITAGE CENTRE,SUPPLIES AND SERVICES,NET CATERING PURCHASES,4777,P123945-SERVICE-FOOD,12/06/2023 00:00,280294,138.22,JJ0188,JJ FOOD SERVICE LIMITED,27/11/2023 00:00:00,31/12/2023 00:00:00,P09-2024
P&V,MYDDLETON HSE HERITAGE CENTRE,SUPPLIES AND SERVICES,NET CATERING PURCHASES,4777,P123876-SERVICE-food/drinks order half term october,12/06/2023 00:00,280305,348.08,360001,BIDFOOD,27/11/2023 00:00:00,31/12/2023 00:00:00,P09-2024
P&V,MYDDLETON HSE HERITAGE CENTRE,SUPPLIES AND SERVICES,NET CATERING PURCHASES,4777,BTR- food/drinks,12/06/2023 00:00,280305,-348.08,360001,BIDFOOD,27/11/2023 00:00:00,31/12/2023 00:00:00,P09-2024
P&V,MYDDLETON HSE HERITAGE CENTRE,SUPPLIES AND SERVICES,NET CATERING PURCHASES,4777,BTR- food/drinks,12/06/2023 00:00,280305,18.53,360001,BIDFOOD,27/11/2023 00:00:00,31/12/2023 00:00:00,P09-2024
P&V,MYDDLETON HSE HERITAGE CENTRE,SUPPLIES AND SERVICES,NET CATERING PURCHASES,4777,BTR- food/drinks,12/06/2023 00:00,280305,329.55,360001,BIDFOOD,27/11/2023 00:00:00,31/12/2023 00:00:00,P09-2024
P&V,MYDDLETON HSE HERITAGE CENTRE,SUPPLIES AND SERVICES,NET CATERING PURCHASES,4777,P122539-SERVICE-Cofee order weeek com 10/07/2023,12/06/2023 00:00,280396,138,TU0194,TUDOR TEA & COFFEE,27/11/2023 00:00:00,31/12/2023 00:00:00,P09-2024
P&V,MYDDLETON HSE HERITAGE CENTRE,SUPPLIES AND SERVICES,NET CATERING PURCHASES,4777,P123800-SERVICE-Food/drink order wk com 23/10/2023,13/12/2023 00:00:00,280542,151.57,360001,BIDFOOD,27/11/2023 00:00:00,31/12/2023 00:00:00,P09-2024
P&V,MYDDLETON HSE HERITAGE CENTRE,SUPPLIES AND SERVICES,NET CATERING PURCHASES,4777,P123825-SERVICE-food,13/12/2023 00:00:00,280542,63.46,360001,BIDFOOD,27/11/2023 00:00:00,31/12/2023 00:00:00,P09-2024
P&V,MYDDLETON HSE HERITAGE CENTRE,SUPPLIES AND SERVICES,NET CATERING PURCHASES,4777,BTR-food & dinks,13/12/2023 00:00:00,280542,-63.46,360001,BIDFOOD,27/11/2023 00:00:00,31/12/2023 00:00:00,P09-2024
P&V,MYDDLETON HSE HERITAGE CENTRE,SUPPLIES AND SERVICES,NET CATERING PURCHASES,4777,BTR-food & dinks,13/12/2023 00:00:00,280542,19.1,360001,BIDFOOD,27/11/2023 00:00:00,31/12/2023 00:00:00,P09-2024
P&V,MYDDLETON HSE HERITAGE CENTRE,SUPPLIES AND SERVICES,NET CATERING PURCHASES,4777,BTR-food & dinks,13/12/2023 00:00:00,280542,44.36,360001,BIDFOOD,27/11/2023 00:00:00,31/12/2023 00:00:00,P09-2024
P&V,MYDDLETON HSE HERITAGE CENTRE,SUPPLIES AND SERVICES,NET CATERING PURCHASES,4777,BTR- food & drinks,19/12/2023 00:00:00,280623,-182.09,360001,BIDFOOD,27/11/2023 00:00:00,31/12/2023 00:00:00,P09-2024
P&V,MYDDLETON HSE HERITAGE CENTRE,SUPPLIES AND SERVICES,NET CATERING PURCHASES,4777,BTR- food & drinks,19/12/2023 00:00:00,280623,51.38,360001,BIDFOOD,27/11/2023 00:00:00,31/12/2023 00:00:00,P09-2024
P&V,MYDDLETON HSE HERITAGE CENTRE,SUPPLIES AND SERVICES,NET CATERING PURCHASES,4777,P124269-SERVICE-food and drinks,19/12/2023 00:00:00,280623,182.09,360001,BIDFOOD,27/11/2023 00:00:00,31/12/2023 00:00:00,P09-2024
P&V,MYDDLETON HSE HERITAGE CENTRE,SUPPLIES AND SERVICES,NET CATERING PURCHASES,4777,P123825-SERVICE-food,19/12/2023 00:00:00,280623,23.21,360001,BIDFOOD,27/11/2023 00:00:00,31/12/2023 00:00:00,P09-2024
P&V,MYDDLETON HSE HERITAGE CENTRE,SUPPLIES AND SERVICES,NET CATERING PURCHASES,4777,BTR- food & drinks,19/12/2023 00:00:00,280623,130.71,360001,BIDFOOD,27/11/2023 00:00:00,31/12/2023 00:00:00,P09-2024
P&V,MYDDELTON HOUSE,SUPPLIES AND SERVICES,TRADING AC - EXTERNAL PURCHASE,4875,P124370-SERVICE-Meeting Room Supplies,19/12/2023 00:00:00,280580,33.29,AM0406,AMAZON PAYMENTS UK LIMITED,27/11/2023 00:00:00,31/12/2023 00:00:00,P09-2024
P&V,MYDDELTON HOUSE,SUPPLIES AND SERVICES,TRADING AC - EXTERNAL PURCHASE,4875,P124370-SERVICE-Meeting Room Supplies,19/12/2023 00:00:00,280581,22.35,AM0406,AMAZON PAYMENTS UK LIMITED,27/11/2023 00:00:00,31/12/2023 00:00:00,P09-2024
,LEE VALLEY MARINA SPRINGFIELD,SUPPLIES AND SERVICES,TRADING AC - EXTERNAL PURCHASE,4875,P124188-SERVICE-Chandlery Stock,12/04/2023 00:00,280105,639.5,MI0200,MIDLAND CHANDLERS LIMITED,27/11/2023 00:00:00,31/12/2023 00:00:00,P09-2024
,LEE VALLEY MARINA SPRINGFIELD,SUPPLIES AND SERVICES,TRADING AC - EXTERNAL PURCHASE,4875,P123555-SERVICE-Coal heatlogs and gas,12/05/2023 00:00,280117,171.5,SM0664,KG SMITH & SON,27/11/2023 00:00:00,31/12/2023 00:00:00,P09-2024
,LEE VALLEY MARINA SPRINGFIELD,SUPPLIES AND SERVICES,TRADING AC - EXTERNAL PURCHASE,4875,P123330-SERVICE-Gas and coal,12/05/2023 00:00,280117,26.97,SM0664,KG SMITH & SON,27/11/2023 00:00:00,31/12/2023 00:00:00,P09-2024
,LEE VALLEY MARINA SPRINGFIELD,SUPPLIES AND SERVICES,TRADING AC - EXTERNAL PURCHASE,4875,springfield-chandlery stock,12/05/2023 00:00,280117,2099.03,SM0664,KG SMITH & SON,27/11/2023 00:00:00,31/12/2023 00:00:00,P09-2024
,LEE VALLEY MARINA SPRINGFIELD,SUPPLIES AND SERVICES,TRADING AC - EXTERNAL PURCHASE,4875,springfield-chandlery stock,12/05/2023 00:00,280117,1377,SM0664,KG SMITH & SON,27/11/2023 00:00:00,31/12/2023 00:00:00,P09-2024
,LEE VALLEY MARINA SPRINGFIELD,SUPPLIES AND SERVICES,TRADING AC - EXTERNAL PURCHASE,4875,springfield-chandlery stock,12/05/2023 00:00,280117,-3686,SM0664,KG SMITH & SON,27/11/2023 00:00:00,31/12/2023 00:00:00,P09-2024
,LEE VALLEY MARINA SPRINGFIELD,SUPPLIES AND SERVICES,TRADING AC - EXTERNAL PURCHASE,4875,springfield-chandlery stock,12/05/2023 00:00,280117,209.97,SM0664,KG SMITH & SON,27/11/2023 00:00:00,31/12/2023 00:00:00,P09-2024
,LEE VALLEY MARINA SPRINGFIELD,SUPPLIES AND SERVICES,TRADING AC - EXTERNAL PURCHASE,4875,P124072-SERVICE-Gas and coal,12/05/2023 00:00,280117,3686,SM0664,KG SMITH & SON,27/11/2023 00:00:00,31/12/2023 00:00:00,P09-2024
,LEE VALLEY MARINA SPRINGFIELD,SUPPLIES AND SERVICES,TRADING AC - EXTERNAL PURCHASE,4875,P124188-SERVICE-Chandlery Stock,12/04/2023 00:00,280119,12.37,MI0200,MIDLAND CHANDLERS LIMITED,27/11/2023 00:00:00,31/12/2023 00:00:00,P09-2024
,LEE VALLEY MARINA SPRINGFIELD,SUPPLIES AND SERVICES,TRADING AC - EXTERNAL PURCHASE,4875,P124188-SERVICE-Chandlery Stock,12/04/2023 00:00,280121,12.56,MI0200,MIDLAND CHANDLERS LIMITED,27/11/2023 00:00:00,31/12/2023 00:00:00,P09-2024
,LEE VALLEY MARINA SPRINGFIELD,SUPPLIES AND SERVICES,TRADING AC - EXTERNAL PURCHASE,4875,P124200-SERVICE-To supply Timber 7 Buffalo Board,12/04/2023 00:00,280126,1163.88,RO0323,E ROBERT TIMBER LTD,27/11/2023 00:00:00,31/12/2023 00:00:00,P09-2024
,LEE VALLEY MARINA SPRINGFIELD,SUPPLIES AND SERVICES,TRADING AC - EXTERNAL PURCHASE,4875,P124224-SERVICE-Paint,12/05/2023 00:00,280130,680.08,CR0651,CRAFTMASTER PAINTS,27/11/2023 00:00:00,31/12/2023 00:00:00,P09-2024
,LEE VALLEY MARINA SPRINGFIELD,SUPPLIES AND SERVICES,TRADING AC - EXTERNAL PURCHASE,4875,P124168-SERVICE-Hardwood logs,12/04/2023 00:00,280133,1500,HA0371,HARTS OF OAK,27/11/2023 00:00:00,31/12/2023 00:00:00,P09-2024
,LEE VALLEY MARINA SPRINGFIELD,SUPPLIES AND SERVICES,TRADING AC - EXTERNAL PURCHASE,4875,P124188-SERVICE-Chandlery Stock,12/04/2023 00:00,280220,36.31,MI0200,MIDLAND CHANDLERS LIMITED,27/11/2023 00:00:00,31/12/2023 00:00:00,P09-2024
,LEE VALLEY MARINA SPRINGFIELD,SUPPLIES AND SERVICES,TRADING AC - EXTERNAL PURCHASE,4875,P124188-SERVICE-Chandlery Stock,12/04/2023 00:00,280221,-36.31,MI0200,MIDLAND CHANDLERS LIMITED,27/11/2023 00:00:00,31/12/2023 00:00:00,P09-2024
,LEE VALLEY MARINA SPRINGFIELD,SUPPLIES AND SERVICES,TRADING AC - EXTERNAL PURCHASE,4875,P124188-SERVICE-Chandlery Stock,12/06/2023 00:00,280223,6.9,MI0200,MIDLAND CHANDLERS LIMITED,27/11/2023 00:00:00,31/12/2023 00:00:00,P09-2024
,LEE VALLEY MARINA SPRINGFIELD,SUPPLIES AND SERVICES,TRADING AC - EXTERNAL PURCHASE,4875,P124236-SERVICE-Gas and engineering supplies,12/04/2023 00:00,280224,251.74,AQ0033,AQUAFAX LIMITED,27/11/2023 00:00:00,31/12/2023 00:00:00,P09-2024
,LEE VALLEY MARINA SPRINGFIELD,SUPPLIES AND SERVICES,TRADING AC - EXTERNAL PURCHASE,4875,P124236-SERVICE-Gas and engineering supplies,12/05/2023 00:00,280225,9.96,AQ0033,AQUAFAX LIMITED,27/11/2023 00:00:00,31/12/2023 00:00:00,P09-2024
,LEE VALLEY MARINA SPRINGFIELD,SUPPLIES AND SERVICES,TRADING AC - EXTERNAL PURCHASE,4875,P124072-SERVICE-Gas and coal,12/05/2023 00:00,280259,-209.97,SM0664,KG SMITH & SON,27/11/2023 00:00:00,31/12/2023 00:00:00,P09-2024
,LEE VALLEY MARINA SPRINGFIELD,SUPPLIES AND SERVICES,TRADING AC - EXTERNAL PURCHASE,4875,P124194-SERVICE-Stove supplies,12/06/2023 00:00,280349,528.65,CA0660,CALFIRE SPARELINE LIMITED,27/11/2023 00:00:00,31/12/2023 00:00:00,P09-2024
,LEE VALLEY MARINA SPRINGFIELD,SUPPLIES AND SERVICES,TRADING AC - EXTERNAL PURCHASE,4875,P124316-SERVICE-Chandlery Stock,12/12/2023 00:00,280482,613.31,MI0200,MIDLAND CHANDLERS LIMITED,27/11/2023 00:00:00,31/12/2023 00:00:00,P09-2024
,LEE VALLEY MARINA SPRINGFIELD,SUPPLIES AND SERVICES,TRADING AC - EXTERNAL PURCHASE,4875,P124302-SERVICE-Electric and gas suppies,12/12/2023 00:00,280495,170.46,AQ0033,AQUAFAX LIMITED,27/11/2023 00:00:00,31/12/2023 00:00:00,P09-2024
,LEE VALLEY MARINA SPRINGFIELD,SUPPLIES AND SERVICES,TRADING AC - EXTERNAL PURCHASE,4875,P124316-SERVICE-Chandlery Stock,13/12/2023 00:00:00,280556,10.55,MI0200,MIDLAND CHANDLERS LIMITED,27/11/2023 00:00:00,31/12/2023 00:00:00,P09-2024
,LEE VALLEY MARINA SPRINGFIELD,SUPPLIES AND SERVICES,TRADING AC - EXTERNAL PURCHASE,4875,P121901-SERVICE-To supply items as requested,13/12/2023 00:00:00,280590,10.42,BQ0164,TRADE UK ACCOUNT,27/11/2023 00:00:00,31/12/2023 00:00:00,P09-2024
,LEE VALLEY MARINA SPRINGFIELD,SUPPLIES AND SERVICES,TRADING AC - EXTERNAL PURCHASE,4875,P124338-SERVICE-Tools and electrical suppllies,19/12/2023 00:00:00,280606,275.47,CE0510,CENTURION EUROPE LIMITED,27/11/2023 00:00:00,31/12/2023 00:00:00,P09-2024
,LEE VALLEY MARINA SPRINGFIELD,SUPPLIES AND SERVICES,TRADING AC - EXTERNAL PURCHASE,4875,P124200-SERVICE-To supply Timber 7 Buffalo Board,31/12/2023 00:00:00,280841,543.31,RO0323,E ROBERT TIMBER LTD,27/11/2023 00:00:00,31/12/2023 00:00:00,P09-2024
,LEE VALLEY MARINA SPRINGFIELD,SUPPLIES AND SERVICES,TRADING AC - EXTERNAL PURCHASE,4875,P124444-SERVICE-Chandlery Stock,20/12/2023 00:00:00,280865,435.43,MI0200,MIDLAND CHANDLERS LIMITED,27/11/2023 00:00:00,31/12/2023 00:00:00,P09-2024
,LEE VALLEY MARINA SPRINGFIELD,SUPPLIES AND SERVICES,TRADING AC - EXTERNAL PURCHASE,4875,P124297-SERVICE-Coal and Gas,31/12/2023 00:00:00,280872,2017,SM0664,KG SMITH & SON,27/11/2023 00:00:00,31/12/2023 00:00:00,P09-2024
,LEE VALLEY MARINA SPRINGFIELD,SUPPLIES AND SERVICES,TRADING AC - EXTERNAL PURCHASE,4875,Springfield-chandlery stock,31/12/2023 00:00:00,280872,783,SM0664,KG SMITH & SON,27/11/2023 00:00:00,31/12/2023 00:00:00,P09-2024
,LEE VALLEY MARINA SPRINGFIELD,SUPPLIES AND SERVICES,TRADING AC - EXTERNAL PURCHASE,4875,Springfield-chandlery stock,31/12/2023 00:00:00,280872,432,SM0664,KG SMITH & SON,27/11/2023 00:00:00,31/12/2023 00:00:00,P09-2024
,LEE VALLEY MARINA SPRINGFIELD,SUPPLIES AND SERVICES,TRADING AC - EXTERNAL PURCHASE,4875,P124297-SERVICE-Coal,31/12/2023 00:00:00,280872,1215,SM0664,KG SMITH & SON,27/11/2023 00:00:00,31/12/2023 00:00:00,P09-2024
,LEE VALLEY MARINA SPRINGFIELD,SUPPLIES AND SERVICES,TRADING AC - EXTERNAL PURCHASE,4875,Springfield-chandlery stock,31/12/2023 00:00:00,280872,-1215,SM0664,KG SMITH & SON,27/11/2023 00:00:00,31/12/2023 00:00:00,P09-2024
,LEE VALLEY MARINA SPRINGFIELD,SUPPLIES AND SERVICES,TRADING AC - EXTERNAL PURCHASE,4875,P124460-SERVICE-Chandlery Stock,31/12/2023 00:00:00,280995,160.55,MI0200,MIDLAND CHANDLERS LIMITED,27/11/2023 00:00:00,31/12/2023 00:00:00,P09-2024
,LEE VALLEY MARINA SPRINGFIELD,SUPPLIES AND SERVICES,TRADING AC - EXTERNAL PURCHASE,4875,P124459-SERVICE-Gas and engineering supplies,31/12/2023 00:00:00,280996,299.02,AQ0033,AQUAFAX LIMITED,27/11/2023 00:00:00,31/12/2023 00:00:00,P09-2024
,LEE VALLEY MARINA SPRINGFIELD,SUPPLIES AND SERVICES,TRADING AC - EXTERNAL PURCHASE,4875,P124459-SERVICE-Gas and engineering supplies,31/12/2023 00:00:00,281013,1.27,AQ0033,AQUAFAX LIMITED,27/11/2023 00:00:00,31/12/2023 00:00:00,P09-2024
,LEE VALLEY MARINA SPRINGFIELD,SUPPLIES AND SERVICES,TRADING AC - EXTERNAL PURCHASE,4875,P124344-SERVICE-Batteries,31/12/2023 00:00:00,281036,51.73,EC0394,MANBAT LTD T/AS,27/11/2023 00:00:00,31/12/2023 00:00:00,P09-2024
,LEE VALLEY MARINA SPRINGFIELD,SUPPLIES AND SERVICES,TRADING AC - EXTERNAL PURCHASE,4875,P124344-SERVICE-Batteries,31/12/2023 00:00:00,281036,1491.81,EC0394,MANBAT LTD T/AS,27/11/2023 00:00:00,31/12/2023 00:00:00,P09-2024
,STANSTEAD RECHARGEABLE WORKS,SUPPLIES AND SERVICES,TRADING AC - EXTERNAL PURCHASE,4875,P124198-SERVICE-chandlery stock,12/04/2023 00:00,280078,27.21,MI0200,MIDLAND CHANDLERS LIMITED,27/11/2023 00:00:00,31/12/2023 00:00:00,P09-2024
,STANSTEAD RECHARGEABLE WORKS,SUPPLIES AND SERVICES,TRADING AC - EXTERNAL PURCHASE,4875,P124170-SERVICE-Batteries,12/04/2023 00:00,280100,914.04,ST0706,STAR BATTERIES LTD,27/11/2023 00:00:00,31/12/2023 00:00:00,P09-2024
,STANSTEAD RECHARGEABLE WORKS,SUPPLIES AND SERVICES,TRADING AC - EXTERNAL PURCHASE,4875,P124192-SERVICE-chandlery stock,12/04/2023 00:00,280104,126.9,CE0510,CENTURION EUROPE LIMITED,27/11/2023 00:00:00,31/12/2023 00:00:00,P09-2024
,STANSTEAD RECHARGEABLE WORKS,SUPPLIES AND SERVICES,TRADING AC - EXTERNAL PURCHASE,4875,P124198-SERVICE-chandlery stock,12/04/2023 00:00,280106,998.01,MI0200,MIDLAND CHANDLERS LIMITED,27/11/2023 00:00:00,31/12/2023 00:00:00,P09-2024
,STANSTEAD RECHARGEABLE WORKS,SUPPLIES AND SERVICES,TRADING AC - EXTERNAL PURCHASE,4875,P124197-SERVICE-chandlery stock,12/04/2023 00:00,280107,820.78,AQ0033,AQUAFAX LIMITED,27/11/2023 00:00:00,31/12/2023 00:00:00,P09-2024
,STANSTEAD RECHARGEABLE WORKS,SUPPLIES AND SERVICES,TRADING AC - EXTERNAL PURCHASE,4875,P124197-SERVICE-chandlery stock,12/04/2023 00:00,280122,36.9,AQ0033,AQUAFAX LIMITED,27/11/2023 00:00:00,31/12/2023 00:00:00,P09-2024
,STANSTEAD RECHARGEABLE WORKS,SUPPLIES AND SERVICES,TRADING AC - EXTERNAL PURCHASE,4875,P124197-SERVICE-chandlery stock,12/04/2023 00:00,280123,10.72,AQ0033,AQUAFAX LIMITED,27/11/2023 00:00:00,31/12/2023 00:00:00,P09-2024
,STANSTEAD RECHARGEABLE WORKS,SUPPLIES AND SERVICES,TRADING AC - EXTERNAL PURCHASE,4875,P124092-SERVICE-logs,12/04/2023 00:00,280131,240,HA0371,HARTS OF OAK,27/11/2023 00:00:00,31/12/2023 00:00:00,P09-2024
,STANSTEAD RECHARGEABLE WORKS,SUPPLIES AND SERVICES,TRADING AC - EXTERNAL PURCHASE,4875,P124199-SERVICE-logs,12/04/2023 00:00,280132,240,HA0371,HARTS OF OAK,27/11/2023 00:00:00,31/12/2023 00:00:00,P09-2024
,STANSTEAD RECHARGEABLE WORKS,SUPPLIES AND SERVICES,TRADING AC - EXTERNAL PURCHASE,4875,P124198-SERVICE-chandlery stock,13/12/2023 00:00:00,280222,30.03,MI0200,MIDLAND CHANDLERS LIMITED,27/11/2023 00:00:00,31/12/2023 00:00:00,P09-2024
,STANSTEAD RECHARGEABLE WORKS,SUPPLIES AND SERVICES,TRADING AC - EXTERNAL PURCHASE,4875,P123824-SERVICE-calor gas,13/12/2023 00:00:00,280258,1125,SM0664,KG SMITH & SON,27/11/2023 00:00:00,31/12/2023 00:00:00,P09-2024
,STANSTEAD RECHARGEABLE WORKS,SUPPLIES AND SERVICES,TRADING AC - EXTERNAL PURCHASE,4875,"P124392-SERVICE-back order, original PO completed",19/12/2023 00:00:00,280268,14.62,AQ0033,AQUAFAX LIMITED,27/11/2023 00:00:00,31/12/2023 00:00:00,P09-2024
,STANSTEAD RECHARGEABLE WORKS,SUPPLIES AND SERVICES,TRADING AC - EXTERNAL PURCHASE,4875,P123640-SERVICE-chandlery stock,13/12/2023 00:00:00,280269,18.64,AQ0033,AQUAFAX LIMITED,27/11/2023 00:00:00,31/12/2023 00:00:00,P09-2024
,STANSTEAD RECHARGEABLE WORKS,SUPPLIES AND SERVICES,TRADING AC - EXTERNAL PURCHASE,4875,P124198-SERVICE-chandlery stock,13/12/2023 00:00:00,280270,20.82,MI0200,MIDLAND CHANDLERS LIMITED,27/11/2023 00:00:00,31/12/2023 00:00:00,P09-2024
,STANSTEAD RECHARGEABLE WORKS,SUPPLIES AND SERVICES,TRADING AC - EXTERNAL PURCHASE,4875,P124225-SERVICE-red dieel 2200 ltrs,13/12/2023 00:00:00,280313,1735.8,SP0543,SPEEDY FUELS LIMITED,27/11/2023 00:00:00,31/12/2023 00:00:00,P09-2024
,STANSTEAD RECHARGEABLE WORKS,SUPPLIES AND SERVICES,TRADING AC - EXTERNAL PURCHASE,4875,P123575-SERVICE-chandlery stock,13/12/2023 00:00:00,280332,2.42,MI0200,MIDLAND CHANDLERS LIMITED,27/11/2023 00:00:00,31/12/2023 00:00:00,P09-2024
,STANSTEAD RECHARGEABLE WORKS,SUPPLIES AND SERVICES,TRADING AC - EXTERNAL PURCHASE,4875,P124198-SERVICE-chandlery stock,13/12/2023 00:00:00,280333,6.9,MI0200,MIDLAND CHANDLERS LIMITED,27/11/2023 00:00:00,31/12/2023 00:00:00,P09-2024
,STANSTEAD RECHARGEABLE WORKS,SUPPLIES AND SERVICES,TRADING AC - EXTERNAL PURCHASE,4875,P124289-SERVICE-gelcoT Rngers,13/12/2023 00:00:00,280346,47.87,MI0200,MIDLAND CHANDLERS LIMITED,27/11/2023 00:00:00,31/12/2023 00:00:00,P09-2024
,STANSTEAD RECHARGEABLE WORKS,SUPPLIES AND SERVICES,TRADING AC - EXTERNAL PURCHASE,4875,P124319-SERVICE-chandlery stock,13/12/2023 00:00:00,280481,465.89,MI0200,MIDLAND CHANDLERS LIMITED,27/11/2023 00:00:00,31/12/2023 00:00:00,P09-2024
,STANSTEAD RECHARGEABLE WORKS,SUPPLIES AND SERVICES,TRADING AC - EXTERNAL PURCHASE,4875,P124174-SERVICE-solid fuels and gas,13/12/2023 00:00:00,280492,3575.4,SM0664,KG SMITH & SON,27/11/2023 00:00:00,31/12/2023 00:00:00,P09-2024
,STANSTEAD RECHARGEABLE WORKS,SUPPLIES AND SERVICES,TRADING AC - EXTERNAL PURCHASE,4875,Stanstead- solid fues and gas,13/12/2023 00:00:00,280492,-3575.4,SM0664,KG SMITH & SON,27/11/2023 00:00:00,31/12/2023 00:00:00,P09-2024
,STANSTEAD RECHARGEABLE WORKS,SUPPLIES AND SERVICES,TRADING AC - EXTERNAL PURCHASE,4875,Stanstead- solid fues and gas,13/12/2023 00:00:00,280492,2946.9,SM0664,KG SMITH & SON,27/11/2023 00:00:00,31/12/2023 00:00:00,P09-2024
,STANSTEAD RECHARGEABLE WORKS,SUPPLIES AND SERVICES,TRADING AC - EXTERNAL PURCHASE,4875,Stanstead- solid fues and gas,13/12/2023 00:00:00,280492,628.5,SM0664,KG SMITH & SON,27/11/2023 00:00:00,31/12/2023 00:00:00,P09-2024
,STANSTEAD RECHARGEABLE WORKS,SUPPLIES AND SERVICES,TRADING AC - EXTERNAL PURCHASE,4875,P124319-SERVICE-chandlery stock,13/12/2023 00:00:00,280494,6.33,MI0200,MIDLAND CHANDLERS LIMITED,27/11/2023 00:00:00,31/12/2023 00:00:00,P09-2024
,STANSTEAD RECHARGEABLE WORKS,SUPPLIES AND SERVICES,TRADING AC - EXTERNAL PURCHASE,4875,P124321-SERVICE-chandlery stock,19/12/2023 00:00:00,280577,267.68,CE0510,CENTURION EUROPE LIMITED,27/11/2023 00:00:00,31/12/2023 00:00:00,P09-2024
,STANSTEAD RECHARGEABLE WORKS,SUPPLIES AND SERVICES,TRADING AC - EXTERNAL PURCHASE,4875,P124320-SERVICE-chandlery stock,19/12/2023 00:00:00,280618,267.13,AQ0033,AQUAFAX LIMITED,27/11/2023 00:00:00,31/12/2023 00:00:00,P09-2024
,STANSTEAD RECHARGEABLE WORKS,SUPPLIES AND SERVICES,TRADING AC - EXTERNAL PURCHASE,4875,P124288-SERVICE-logs,19/12/2023 00:00:00,280731,330,HA0371,HARTS OF OAK,27/11/2023 00:00:00,31/12/2023 00:00:00,P09-2024
,STANSTEAD RECHARGEABLE WORKS,SUPPLIES AND SERVICES,TRADING AC - EXTERNAL PURCHASE,4875,P124320-SERVICE-chandlery stock,19/12/2023 00:00:00,280746,403.99,AQ0033,AQUAFAX LIMITED,27/11/2023 00:00:00,31/12/2023 00:00:00,P09-2024
,STANSTEAD RECHARGEABLE WORKS,SUPPLIES AND SERVICES,TRADING AC - EXTERNAL PURCHASE,4875,P124387-SERVICE-red diesel @ 78.15 per ltr,19/12/2023 00:00:00,280834,1719.3,SP0543,SPEEDY FUELS LIMITED,27/11/2023 00:00:00,31/12/2023 00:00:00,P09-2024
,LEE VALLEY CAMPSITE,SUPPLIES AND SERVICES,TRADING AC - EXTERNAL PURCHASE,4875,P123845-SERVICE-Coffee machine stock,12/12/2023 00:00,280395,84.95,TU0194,TUDOR TEA & COFFEE,27/11/2023 00:00:00,31/12/2023 00:00:00,P09-2024
,LEE VALLEY CARAVAN PARK,SUPPLIES AND SERVICES,TRADING AC - EXTERNAL PURCHASE,4875,P124312-SERVICE-Replacement Tyre for Kubta,20/12/2023 00:00:00,280552,30,FA0294,FARM TYRE SERVICES,27/11/2023 00:00:00,31/12/2023 00:00:00,P09-2024
P&V,WILDLIFE DISCOVERY CENTRE,SUPPLIES AND SERVICES,TRADING AC - EXTERNAL PURCHASE,4875,WDC -REFRESHMENTS,12/06/2023 00:00,280295,2.82,FI0001,DIRECTOR OF FINANCE - CASH,27/11/2023 00:00:00,31/12/2023 00:00:00,P09-2024
P&V,WILDLIFE DISCOVERY CENTRE,SUPPLIES AND SERVICES,TRADING AC - EXTERNAL PURCHASE,4875,WDC-WATER,12/06/2023 00:00,280295,1.33,FI0001,DIRECTOR OF FINANCE - CASH,27/11/2023 00:00:00,31/12/2023 00:00:00,P09-2024
P&V,WILDLIFE DISCOVERY CENTRE,SUPPLIES AND SERVICES,TRADING AC - EXTERNAL PURCHASE,4875,WDC SALES - MILK,12/06/2023 00:00,280295,4.8,FI0001,DIRECTOR OF FINANCE - CASH,27/11/2023 00:00:00,31/12/2023 00:00:00,P09-2024
P&V,WILDLIFE DISCOVERY CENTRE,SUPPLIES AND SERVICES,TRADING AC - EXTERNAL PURCHASE,4875,WDC- STATIONERY,12/06/2023 00:00,280295,5,FI0001,DIRECTOR OF FINANCE - CASH,27/11/2023 00:00:00,31/12/2023 00:00:00,P09-2024
P&V,WILDLIFE DISCOVERY CENTRE,SUPPLIES AND SERVICES,TRADING AC - EXTERNAL PURCHASE,4875,WATER(WDC SALES),12/06/2023 00:00,280295,5.3,FI0001,DIRECTOR OF FINANCE - CASH,27/11/2023 00:00:00,31/12/2023 00:00:00,P09-2024
P&V,WILDLIFE DISCOVERY CENTRE,SUPPLIES AND SERVICES,TRADING AC - EXTERNAL PURCHASE,4875,P124434-SERVICE-4x Go Gold Blend White Coffee Pk8 - NL52547,31/12/2023 00:00:00,280997,34.32,TH0008,JKL SOLUTIONS LTD,27/11/2023 00:00:00,31/12/2023 00:00:00,P09-2024
P&V,WILDLIFE DISCOVERY CENTRE,SUPPLIES AND SERVICES,TRADING AC - EXTERNAL PURCHASE,4875,P124434-SERVICE-1x Nescafe Orig One Cup Stick Pk200 - NL72756,31/12/2023 00:00:00,280997,24.67,TH0008,JKL SOLUTIONS LTD,27/11/2023 00:00:00,31/12/2023 00:00:00,P09-2024
P&V,WILDLIFE DISCOVERY CENTRE,SUPPLIES AND SERVICES,TRADING AC - EXTERNAL PURCHASE,4875,P124434-SERVICE-1x Milk in Stick 10ml (240Pk) - BZ74721,31/12/2023 00:00:00,280997,11.18,TH0008,JKL SOLUTIONS LTD,27/11/2023 00:00:00,31/12/2023 00:00:00,P09-2024
P&V,WILDLIFE DISCOVERY CENTRE,SUPPLIES AND SERVICES,TRADING AC - EXTERNAL PURCHASE,4875,P124434-SERVICE-1x Tetley Envelope Teabags (Pk200) - TL11161,31/12/2023 00:00:00,280997,17.74,TH0008,JKL SOLUTIONS LTD,27/11/2023 00:00:00,31/12/2023 00:00:00,P09-2024
P&V,WILDLIFE DISCOVERY CENTRE,SUPPLIES AND SERVICES,TRADING AC - EXTERNAL PURCHASE,4875,P124434-SERVICE-2x Hot Chocolate Sachets 28g Pk50 - KS04386,31/12/2023 00:00:00,280997,44.12,TH0008,JKL SOLUTIONS LTD,27/11/2023 00:00:00,31/12/2023 00:00:00,P09-2024
P&V,WILDLIFE DISCOVERY CENTRE,SUPPLIES AND SERVICES,TRADING AC - EXTERNAL PURCHASE,4875,P124434-SERVICE-4x Nescafe & Go Latte Cup Pk8 - NL26692,31/12/2023 00:00:00,280997,34.08,TH0008,JKL SOLUTIONS LTD,27/11/2023 00:00:00,31/12/2023 00:00:00,P09-2024
P&V,WILDLIFE DISCOVERY CENTRE,SUPPLIES AND SERVICES,TRADING AC - EXTERNAL PURCHASE,4875,P124434-SERVICE-10x 35cl Rippled Wall Hot Cups Pk25 - RY04637,31/12/2023 00:00:00,280997,44.4,TH0008,JKL SOLUTIONS LTD,27/11/2023 00:00:00,31/12/2023 00:00:00,P09-2024
P&V,WILDLIFE DISCOVERY CENTRE,SUPPLIES AND SERVICES,TRADING AC - EXTERNAL PURCHASE,4875,P124434-SERVICE-4x Nescafe and Go Cappuccino Pk8 - NL52543,31/12/2023 00:00:00,280997,34.32,TH0008,JKL SOLUTIONS LTD,27/11/2023 00:00:00,31/12/2023 00:00:00,P09-2024
P&V,WILDLIFE DISCOVERY CENTRE,SUPPLIES AND SERVICES,TRADING AC - EXTERNAL PURCHASE,4875,P124434-SERVICE-2x Napkin 2-Ply 330x330mm White Pk100 - CPD99,31/12/2023 00:00:00,280997,4.04,TH0008,JKL SOLUTIONS LTD,27/11/2023 00:00:00,31/12/2023 00:00:00,P09-2024
,LV LEISURE CENTRE CAMPSITE,SUPPLIES AND SERVICES,TRADING AC - EXTERNAL PURCHASE,4875,P124416-SERVICE-Coffee machine cups,19/12/2023 00:00:00,280620,67.5,RI0176,RIJO 42 INGREDIENTS LIMITED,27/11/2023 00:00:00,31/12/2023 00:00:00,P09-2024
,LV LEISURE CENTRE CAMPSITE,SUPPLIES AND SERVICES,TRADING AC - EXTERNAL PURCHASE,4875,P124422-SERVICE-office supplies,19/12/2023 00:00:00,280848,59.88,TH0008,JKL SOLUTIONS LTD,27/11/2023 00:00:00,31/12/2023 00:00:00,P09-2024
,LV LEISURE CENTRE CAMPSITE,SUPPLIES AND SERVICES,TRADING AC - EXTERNAL PURCHASE,4875,P124436-SERVICE-drinking water signs,20/12/2023 00:00:00,280858,6.7,FI0215,VALUE PRODUCTS LTD,27/11/2023 00:00:00,31/12/2023 00:00:00,P09-2024
,LV LEISURE CENTRE CAMPSITE,SUPPLIES AND SERVICES,TRADING AC - EXTERNAL PURCHASE,4875,P124433-SERVICE-Assembly point signs a+b,19/12/2023 00:00:00,280859,101.84,FI0215,VALUE PRODUCTS LTD,27/11/2023 00:00:00,31/12/2023 00:00:00,P09-2024
,LEE VALLEY CAMPSITE,SUPPLIES AND SERVICES,BOTTLED GAS,4877,P124101-SERVICE-stocke bottled gas,20/12/2023 00:00:00,280757,869.76,FL0147,FLOGAS BRITAIN LIMITED,27/11/2023 00:00:00,31/12/2023 00:00:00,P09-2024
,LEE VALLEY CAMPSITE,SUPPLIES AND SERVICES,BOTTLED GAS,4877,P124101-SERVICE-stocke bottled gas,20/12/2023 00:00:00,280758,724.8,FL0147,FLOGAS BRITAIN LIMITED,27/11/2023 00:00:00,31/12/2023 00:00:00,P09-2024
,LEE VALLEY CAMPSITE,SUPPLIES AND SERVICES,BOTTLED GAS,4877,P124488-SERVICE-20x Extra Cannisters Site stock,31/12/2023 00:00:00,281020,1449.6,FL0147,FLOGAS BRITAIN LIMITED,27/11/2023 00:00:00,31/12/2023 00:00:00,P09-2024
P&V,MYDDELTON HOUSE,SUPPLIES AND SERVICES,UNRECONCILED COMPANY CARD EXP,4880,G FLAVIEN - DEC 2023 CREDIT CARD STATEMENT,12/06/2023 00:00,280302,199.93,NA0007,NATWEST CARD CENTRE,27/11/2023 00:00:00,31/12/2023 00:00:00,P09-2024
CEO,PR/COMMUNICATIONS,SUPPLIES AND SERVICES,UNRECONCILED COMPANY CARD EXP,4880,S BROMBERG - DEC 2023 CREDIT CARD STATEMENT,12/06/2023 00:00,280302,364.61,NA0007,NATWEST CARD CENTRE,27/11/2023 00:00:00,31/12/2023 00:00:00,P09-2024
R&B,DEMOCRATIC REPRESENTATION & MA,SUPPLIES AND SERVICES,UNRECONCILED COMPANY CARD EXP,4880,S BERTSCHIN - DEC 2023 CREDIT CARD STATEMENT,12/06/2023 00:00,280302,176.4,NA0007,NATWEST CARD CENTRE,27/11/2023 00:00:00,31/12/2023 00:00:00,P09-2024
R&B,INFORMATION TECHNOLOGY,SUPPLIES AND SERVICES,UNRECONCILED COMPANY CARD EXP,4880,L BLUNDELL - DEC 2023 CREDIT CARD STATEMENT,12/06/2023 00:00,280302,245.6,NA0007,NATWEST CARD CENTRE,27/11/2023 00:00:00,31/12/2023 00:00:00,P09-2024
R&B,INFORMATION TECHNOLOGY,SUPPLIES AND SERVICES,UNRECONCILED COMPANY CARD EXP,4880,S CLARK - DEC 2023 CREDIT CARD STATEMENT,12/06/2023 00:00,280302,27.38,NA0007,NATWEST CARD CENTRE,27/11/2023 00:00:00,31/12/2023 00:00:00,P09-2024
,LEE VALLEY MARINA SPRINGFIELD,SUPPLIES AND SERVICES,UNRECONCILED COMPANY CARD EXP,4880,T BEAN - DEC 2023 CREDIT CARD STATEMENT,12/06/2023 00:00,280302,116.05,NA0007,NATWEST CARD CENTRE,27/11/2023 00:00:00,31/12/2023 00:00:00,P09-2024
,LEE VALLEY MARINA STANSTEAD,SUPPLIES AND SERVICES,UNRECONCILED COMPANY CARD EXP,4880,J MANTON - DEC 2023 CREDIT CARD STATEMENT,12/06/2023 00:00,280302,104.95,NA0007,NATWEST CARD CENTRE,27/11/2023 00:00:00,31/12/2023 00:00:00,P09-2024
P&V,LEE VALLEY FARM HOLYFIELDHALL,SUPPLIES AND SERVICES,UNRECONCILED COMPANY CARD EXP,4880,J PAINTER - DEC 2023 CREDIT CARD STATEMENT,12/06/2023 00:00,280302,545.75,NA0007,NATWEST CARD CENTRE,27/11/2023 00:00:00,31/12/2023 00:00:00,P09-2024
,LEE VALLEY CAMPSITE,SUPPLIES AND SERVICES,UNRECONCILED COMPANY CARD EXP,4880,C CARTER - DEC 2023 CREDIT CARD STATEMENT,12/06/2023 00:00,280302,582,NA0007,NATWEST CARD CENTRE,27/11/2023 00:00:00,31/12/2023 00:00:00,P09-2024
,LEE VALLEY CARAVAN PARK,SUPPLIES AND SERVICES,UNRECONCILED COMPANY CARD EXP,4880,I RUSSELL - DEC 2023 CREDIT CARD STATEMENT,12/06/2023 00:00,280302,1180.89,NA0007,NATWEST CARD CENTRE,27/11/2023 00:00:00,31/12/2023 00:00:00,P09-2024
P&V,OPERATIONAL MANAGEMENT (L&E),SUPPLIES AND SERVICES,UNRECONCILED COMPANY CARD EXP,4880,J HETHERINGTON - DEC 2023 CREDIT CARD STATEMENT,12/06/2023 00:00,280302,349.69,NA0007,NATWEST CARD CENTRE,27/11/2023 00:00:00,31/12/2023 00:00:00,P09-2024
P&V,SPORT AND LEISURE,SUPPLIES AND SERVICES,UNRECONCILED COMPANY CARD EXP,4880,A SACKETT- DEC 2023 CREDIT CARD STATEMENT,12/06/2023 00:00,280302,1315.46,NA0007,NATWEST CARD CENTRE,27/11/2023 00:00:00,31/12/2023 00:00:00,P09-2024
P&V,EVENTS MANAGEMENT (PR),SUPPLIES AND SERVICES,UNRECONCILED COMPANY CARD EXP,4880,S STONE - DEC 2023 CREDIT CARD STATEMENT,12/06/2023 00:00,280302,159.07,NA0007,NATWEST CARD CENTRE,27/11/2023 00:00:00,31/12/2023 00:00:00,P09-2024
P&V,VOLUNTEERS (L&E),SUPPLIES AND SERVICES,UNRECONCILED COMPANY CARD EXP,4880,J WHITEHEAD - DEC 2023 CREDIT CARD STATEMENT,12/06/2023 00:00,280302,61.84,NA0007,NATWEST CARD CENTRE,27/11/2023 00:00:00,31/12/2023 00:00:00,P09-2024
,LV LEISURE CENTRE CAMPSITE,SUPPLIES AND SERVICES,UNRECONCILED COMPANY CARD EXP,4880,L SMITH - DEC 2023 CREDIT CARD STATEMENT,12/06/2023 00:00,280302,372.01,NA0007,NATWEST CARD CENTRE,27/11/2023 00:00:00,31/12/2023 00:00:00,P09-2024
R&B,FINANCE,SUPPLIES AND SERVICES,OTHER EXPENSES,4899,VAT only,12/06/2023 00:00,280306,0,G40461,G4S INVESTIGATION SOLUTIONS (UK) LTD t/a,27/11/2023 00:00:00,31/12/2023 00:00:00,P09-2024
CEO,MAJOR EVENTS,SUPPLIES AND SERVICES,OTHER EXPENSES,4899,P124230-SERVICE-Courier equipment from VeloPark to Myd House,13/12/2023 00:00:00,280341,145,LE0055,LEE COURIERS LTD,27/11/2023 00:00:00,31/12/2023 00:00:00,P09-2024
CEO,MAJOR EVENTS,SUPPLIES AND SERVICES,OTHER EXPENSES,4899,"P123524-SERVICE-TCL onsite event support 9th, 10th, 11th Nove",13/12/2023 00:00:00,280356,2398,DA0198,DAKTRONICS UK LIMITED,27/11/2023 00:00:00,31/12/2023 00:00:00,P09-2024
CEO,MAJOR EVENTS,SUPPLIES AND SERVICES,OTHER EXPENSES,4899,P123688-SERVICE-TCL - Ironmonery removal at VeloPark,19/12/2023 00:00:00,280868,1380,RE0094,REACT 2 IT (BUILDING & REFURBISHMENT) LTD,27/11/2023 00:00:00,31/12/2023 00:00:00,P09-2024
,LEE VALLEY WATERWORKS CENTRE,SUPPLIES AND SERVICES,OTHER EXPENSES,4899,P124243-SERVICE-SugarFairtrade Sugar Drum with Handle - 3Kg,12/05/2023 00:00,280212,8.32,AM0406,AMAZON PAYMENTS UK LIMITED,27/11/2023 00:00:00,31/12/2023 00:00:00,P09-2024
,LEE VALLEY WATERWORKS CENTRE,SUPPLIES AND SERVICES,OTHER EXPENSES,4899,P124243-SERVICE-Kenco Coffee Refill 150g Pk6,12/05/2023 00:00,280213,24,AM0406,AMAZON PAYMENTS UK LIMITED,27/11/2023 00:00:00,31/12/2023 00:00:00,P09-2024
,LEE VALLEY WATERWORKS CENTRE,SUPPLIES AND SERVICES,OTHER EXPENSES,4899,P124243-SERVICE-Yorkshire Tea Bags (1040),12/05/2023 00:00,280280,27.2,AM0406,AMAZON PAYMENTS UK LIMITED,27/11/2023 00:00:00,31/12/2023 00:00:00,P09-2024
,LEE VALLEY CAMPSITE,SUPPLIES AND SERVICES,OTHER EXPENSES,4899,P121707-SERVICE-Site Stocktakes apr23-mar24,12/12/2023 00:00,280263,165,VE0038,VENNERS LTD,27/11/2023 00:00:00,31/12/2023 00:00:00,P09-2024
,LEE VALLEY CARAVAN PARK,SUPPLIES AND SERVICES,OTHER EXPENSES,4899,P124187-SERVICE-6 signs,12/05/2023 00:00,280289,78,SI0434,SIGNS & IMAGING ( SOUTHEAST) LIMITED,27/11/2023 00:00:00,31/12/2023 00:00:00,P09-2024
P&V,COMMUNITY ACCESS FUND,SUPPLIES AND SERVICES,OTHER EXPENSES,4899,IC-facility hire-IC Centre Community,13/12/2023 00:00:00,278883,5022,GR0097,GREENWICH LEISURE LTD,27/11/2023 00:00:00,31/12/2023 00:00:00,P09-2024
P&V,COMMUNITY ACCESS FUND,SUPPLIES AND SERVICES,OTHER EXPENSES,4899,P123841-SERVICE-Q2 CAF payments VeloPark,12/04/2023 00:00,280216,1080,GR0097,GREENWICH LEISURE LTD,27/11/2023 00:00:00,31/12/2023 00:00:00,P09-2024
P&V,COMMUNITY ACCESS FUND,SUPPLIES AND SERVICES,OTHER EXPENSES,4899,P123727-SERVICE-Q2 CAF WWC,13/12/2023 00:00:00,280358,320,GR0097,GREENWICH LEISURE LTD,27/11/2023 00:00:00,31/12/2023 00:00:00,P09-2024
P&V,COMMUNITY ACCESS FUND,SUPPLIES AND SERVICES,OTHER EXPENSES,4899,P123727-SERVICE-Q2 CAF WWC,13/12/2023 00:00:00,280359,160,GR0097,GREENWICH LEISURE LTD,27/11/2023 00:00:00,31/12/2023 00:00:00,P09-2024
P&V,COMMUNITY ACCESS FUND,SUPPLIES AND SERVICES,OTHER EXPENSES,4899,P124388-SERVICE-Pickup Watling Park to Waterworks and return,19/12/2023 00:00:00,280589,560,DE0298,DESI COACHES LTD,27/11/2023 00:00:00,31/12/2023 00:00:00,P09-2024
P&V,COMMUNITY ACCESS FUND,SUPPLIES AND SERVICES,OTHER EXPENSES,4899,Refer to Comp 278883,13/12/2023 00:00:00,280597,-5022,GR0097,GREENWICH LEISURE LTD,27/11/2023 00:00:00,31/12/2023 00:00:00,P09-2024
P&V,COMMUNITY ACCESS FUND,SUPPLIES AND SERVICES,OTHER EXPENSES,4899,P123722-SERVICE-Ice Centre Community committment Q2,13/12/2023 00:00:00,280604,4185,GR0097,GREENWICH LEISURE LTD,27/11/2023 00:00:00,31/12/2023 00:00:00,P09-2024
P&V,COMMUNITY ACCESS FUND,SUPPLIES AND SERVICES,OTHER EXPENSES,4899,P124413-SERVICE-CAF Ceeways trip to WWC 16/12/23,19/12/2023 00:00:00,280739,350,RE0330,RECPRO SERVICES LTD,27/11/2023 00:00:00,31/12/2023 00:00:00,P09-2024
P&V,EVENTS MANAGEMENT (PR),SUPPLIES AND SERVICES,OTHER EXPENSES,4899,P124251-SERVICE-Staff refreshment TCL,19/12/2023 00:00:00,280840,28.67,GR0097,GREENWICH LEISURE LTD,27/11/2023 00:00:00,31/12/2023 00:00:00,P09-2024
P&V,AWARDS AND ACCREDITATIONS,SUPPLIES AND SERVICES,OTHER EXPENSES,4899,P124264-SERVICE-Replace 1 x Slalom gate wire and associated p,13/12/2023 00:00:00,280290,259.07,SP0439,SPENCER RIGGING LIIMITED,27/11/2023 00:00:00,31/12/2023 00:00:00,P09-2024
P&V,S106 PROJECTS,S106 EXPENDITURE (REVENUE),S106 EXPENDITURE (REVENUE),4985,P123352-SERVICE-19 Days Trees and Ground Works as Agreed on H,12/04/2023 00:00,280243,19156,AG0334,AG TREECARE LTD,27/11/2023 00:00:00,31/12/2023 00:00:00,P09-2024
P&V,"ASSET PROTECTION, MAINT, DEVEL",CAPITAL EXPENDITURE,CAPITAL EXPENDITURE,4990,P122527-SERVICE-Springfield Marina � Lighting to Workshop,19/12/2023 00:00:00,279233,11520,BR0018,BRADSHAW ELECTRICAL LIMITED,27/11/2023 00:00:00,31/12/2023 00:00:00,P09-2024
P&V,"ASSET PROTECTION, MAINT, DEVEL",CAPITAL EXPENDITURE,CAPITAL EXPENDITURE,4990,P121858-SERVICE-Repair Stage/Decking at Three Mills Green,12/06/2023 00:00,279255,800,KE0023,KENDALL & SONS LIMITED,27/11/2023 00:00:00,31/12/2023 00:00:00,P09-2024
P&V,"ASSET PROTECTION, MAINT, DEVEL",CAPITAL EXPENDITURE,CAPITAL EXPENDITURE,4990,P122341-SERVICE-Repair Handrails - Bridge N152,12/04/2023 00:00,279256,790,KE0023,KENDALL & SONS LIMITED,27/11/2023 00:00:00,31/12/2023 00:00:00,P09-2024
P&V,"ASSET PROTECTION, MAINT, DEVEL",CAPITAL EXPENDITURE,CAPITAL EXPENDITURE,4990,P122174-SERVICE-Remove Sign from Waltham Abbey Gardens,12/06/2023 00:00,279259,235,KE0023,KENDALL & SONS LIMITED,27/11/2023 00:00:00,31/12/2023 00:00:00,P09-2024
P&V,"ASSET PROTECTION, MAINT, DEVEL",CAPITAL EXPENDITURE,CAPITAL EXPENDITURE,4990,P123307-SERVICE-To remove and replace 7 metres x 1.5,19/12/2023 00:00:00,279261,978,KE0023,KENDALL & SONS LIMITED,27/11/2023 00:00:00,31/12/2023 00:00:00,P09-2024
P&V,"ASSET PROTECTION, MAINT, DEVEL",CAPITAL EXPENDITURE,CAPITAL EXPENDITURE,4990,P123237-SERVICE-Stanstead marina pontoon 3,19/12/2023 00:00:00,279263,583,KE0023,KENDALL & SONS LIMITED,27/11/2023 00:00:00,31/12/2023 00:00:00,P09-2024
P&V,"ASSET PROTECTION, MAINT, DEVEL",CAPITAL EXPENDITURE,CAPITAL EXPENDITURE,4990,P124213-SERVICE-Delivery,12/05/2023 00:00,280108,6,BR0650,BROADBANDBUYER.COM,27/11/2023 00:00:00,31/12/2023 00:00:00,P09-2024
P&V,"ASSET PROTECTION, MAINT, DEVEL",CAPITAL EXPENDITURE,CAPITAL EXPENDITURE,4990,P124213-SERVICE-Hikvision wall mount dome,12/05/2023 00:00,280108,16.74,BR0650,BROADBANDBUYER.COM,27/11/2023 00:00:00,31/12/2023 00:00:00,P09-2024
P&V,"ASSET PROTECTION, MAINT, DEVEL",CAPITAL EXPENDITURE,CAPITAL EXPENDITURE,4990,P124213-SERVICE-Hikvision Camera CCTV,12/05/2023 00:00,280108,218.9,BR0650,BROADBANDBUYER.COM,27/11/2023 00:00:00,31/12/2023 00:00:00,P09-2024
P&V,"ASSET PROTECTION, MAINT, DEVEL",CAPITAL EXPENDITURE,CAPITAL EXPENDITURE,4990,Edm Campsite-disabled park,12/04/2023 00:00,280217,1150,MO0041,CAPSER,27/11/2023 00:00:00,31/12/2023 00:00:00,P09-2024
P&V,"ASSET PROTECTION, MAINT, DEVEL",CAPITAL EXPENDITURE,CAPITAL EXPENDITURE,4990,P124144-SERVICE-Picketts Lock Campsite,12/04/2023 00:00,280217,4400,MO0041,CAPSER,27/11/2023 00:00:00,31/12/2023 00:00:00,P09-2024
P&V,"ASSET PROTECTION, MAINT, DEVEL",CAPITAL EXPENDITURE,CAPITAL EXPENDITURE,4990,Edm Campsite-disabled park,12/04/2023 00:00,280217,-4400,MO0041,CAPSER,27/11/2023 00:00:00,31/12/2023 00:00:00,P09-2024
P&V,"ASSET PROTECTION, MAINT, DEVEL",CAPITAL EXPENDITURE,CAPITAL EXPENDITURE,4990,Edm Campsite-disabled park,12/04/2023 00:00,280217,3250,MO0041,CAPSER,27/11/2023 00:00:00,31/12/2023 00:00:00,P09-2024
P&V,"ASSET PROTECTION, MAINT, DEVEL",CAPITAL EXPENDITURE,CAPITAL EXPENDITURE,4990,P123237-SERVICE-Stanstead marina pontoon 3,19/12/2023 00:00:00,280226,-583,KE0023,KENDALL & SONS LIMITED,27/11/2023 00:00:00,31/12/2023 00:00:00,P09-2024
P&V,"ASSET PROTECTION, MAINT, DEVEL",CAPITAL EXPENDITURE,CAPITAL EXPENDITURE,4990,P122341-SERVICE-Repair Handrails - Bridge N152,12/04/2023 00:00,280227,-790,KE0023,KENDALL & SONS LIMITED,27/11/2023 00:00:00,31/12/2023 00:00:00,P09-2024
P&V,"ASSET PROTECTION, MAINT, DEVEL",CAPITAL EXPENDITURE,CAPITAL EXPENDITURE,4990,P121858-SERVICE-Repair Stage/Decking at Three Mills Green,12/06/2023 00:00,280229,-800,KE0023,KENDALL & SONS LIMITED,27/11/2023 00:00:00,31/12/2023 00:00:00,P09-2024
P&V,"ASSET PROTECTION, MAINT, DEVEL",CAPITAL EXPENDITURE,CAPITAL EXPENDITURE,4990,P122174-SERVICE-Remove Sign from Waltham Abbey Gardens,12/06/2023 00:00,280230,-235,KE0023,KENDALL & SONS LIMITED,27/11/2023 00:00:00,31/12/2023 00:00:00,P09-2024
P&V,"ASSET PROTECTION, MAINT, DEVEL",CAPITAL EXPENDITURE,CAPITAL EXPENDITURE,4990,P123473-SERVICE-Stanstead Marina Laundry,12/04/2023 00:00,280236,17008,MI0308,MITIE PROPERTY SERVICES ( UK) LIMITED,27/11/2023 00:00:00,31/12/2023 00:00:00,P09-2024
P&V,"ASSET PROTECTION, MAINT, DEVEL",CAPITAL EXPENDITURE,CAPITAL EXPENDITURE,4990,P124204-SERVICE-Three Mills Green Additional Drainage Works,12/04/2023 00:00,280241,1500,HU0463,HUGH PEARL (LAND DRAINAGE) LTD,27/11/2023 00:00:00,31/12/2023 00:00:00,P09-2024
P&V,"ASSET PROTECTION, MAINT, DEVEL",CAPITAL EXPENDITURE,CAPITAL EXPENDITURE,4990,P123307-SERVICE-To remove and replace 7 metres x 1.5,19/12/2023 00:00:00,280248,-978,KE0023,KENDALL & SONS LIMITED,27/11/2023 00:00:00,31/12/2023 00:00:00,P09-2024
P&V,"ASSET PROTECTION, MAINT, DEVEL",CAPITAL EXPENDITURE,CAPITAL EXPENDITURE,4990,"P123086-SERVICE-WWC - To remove  stony areas level area, infi",12/04/2023 00:00,280249,1379,KE0023,KENDALL & SONS LIMITED,27/11/2023 00:00:00,31/12/2023 00:00:00,P09-2024
P&V,"ASSET PROTECTION, MAINT, DEVEL",CAPITAL EXPENDITURE,CAPITAL EXPENDITURE,4990,P124196-SERVICE-Asbestos  Reinspections at,13/12/2023 00:00:00,280271,150,LI0432,LIFE ENVIRONMENTAL SERVICES LTD,27/11/2023 00:00:00,31/12/2023 00:00:00,P09-2024
P&V,"ASSET PROTECTION, MAINT, DEVEL",CAPITAL EXPENDITURE,CAPITAL EXPENDITURE,4990,P124281-SERVICE-Map - LV Leisure Centre,12/06/2023 00:00,280338,32,LO0220,LOCK 67  GRAPHICS LTD,27/11/2023 00:00:00,31/12/2023 00:00:00,P09-2024
P&V,"ASSET PROTECTION, MAINT, DEVEL",CAPITAL EXPENDITURE,CAPITAL EXPENDITURE,4990,P124196-SERVICE-Asbestos  Reinspections at,13/12/2023 00:00:00,280342,175,LI0432,LIFE ENVIRONMENTAL SERVICES LTD,27/11/2023 00:00:00,31/12/2023 00:00:00,P09-2024
P&V,"ASSET PROTECTION, MAINT, DEVEL",CAPITAL EXPENDITURE,CAPITAL EXPENDITURE,4990,P123647-SERVICE-Additional material agreed by RM,31/12/2023 00:00:00,280406,50,RE0094,REACT 2 IT (BUILDING & REFURBISHMENT) LTD,27/11/2023 00:00:00,31/12/2023 00:00:00,P09-2024
P&V,"ASSET PROTECTION, MAINT, DEVEL",CAPITAL EXPENDITURE,CAPITAL EXPENDITURE,4990,P123647-SERVICE-HTC Sample Clean & Paint,31/12/2023 00:00:00,280406,390,RE0094,REACT 2 IT (BUILDING & REFURBISHMENT) LTD,27/11/2023 00:00:00,31/12/2023 00:00:00,P09-2024
P&V,"ASSET PROTECTION, MAINT, DEVEL",CAPITAL EXPENDITURE,CAPITAL EXPENDITURE,4990,P123221-SERVICE-Additional works as agreed with MS,19/12/2023 00:00:00,280407,12420,RE0094,REACT 2 IT (BUILDING & REFURBISHMENT) LTD,27/11/2023 00:00:00,31/12/2023 00:00:00,P09-2024
P&V,"ASSET PROTECTION, MAINT, DEVEL",CAPITAL EXPENDITURE,CAPITAL EXPENDITURE,4990,P123221-SERVICE-Stanstead Marina kitchen and staff area refur,19/12/2023 00:00:00,280407,17900,RE0094,REACT 2 IT (BUILDING & REFURBISHMENT) LTD,27/11/2023 00:00:00,31/12/2023 00:00:00,P09-2024
P&V,"ASSET PROTECTION, MAINT, DEVEL",CAPITAL EXPENDITURE,CAPITAL EXPENDITURE,4990,P124234-SERVICE-Investigations Billiard Room,13/12/2023 00:00:00,280408,585,RE0094,REACT 2 IT (BUILDING & REFURBISHMENT) LTD,27/11/2023 00:00:00,31/12/2023 00:00:00,P09-2024
P&V,"ASSET PROTECTION, MAINT, DEVEL",CAPITAL EXPENDITURE,CAPITAL EXPENDITURE,4990,P123006-SERVICE-Additional works as agreed by MS,19/12/2023 00:00:00,280496,3634.11,BE0663,BESTWAY INTERIORS LTD,27/11/2023 00:00:00,31/12/2023 00:00:00,P09-2024
P&V,"ASSET PROTECTION, MAINT, DEVEL",CAPITAL EXPENDITURE,CAPITAL EXPENDITURE,4990,P123006-SERVICE-Stanstead Marina Toilet Block Works,19/12/2023 00:00:00,280496,7383.49,BE0663,BESTWAY INTERIORS LTD,27/11/2023 00:00:00,31/12/2023 00:00:00,P09-2024
P&V,"ASSET PROTECTION, MAINT, DEVEL",CAPITAL EXPENDITURE,CAPITAL EXPENDITURE,4990,P124218-SERVICE-Hot Point washing Machine,31/12/2023 00:00:00,280533,290.84,CU0759,CURRYS BUSINESS,27/11/2023 00:00:00,31/12/2023 00:00:00,P09-2024
P&V,"ASSET PROTECTION, MAINT, DEVEL",CAPITAL EXPENDITURE,CAPITAL EXPENDITURE,4990,P124196-SERVICE-Asbestos  Reinspections at,13/12/2023 00:00:00,280553,150,LI0432,LIFE ENVIRONMENTAL SERVICES LTD,27/11/2023 00:00:00,31/12/2023 00:00:00,P09-2024
P&V,"ASSET PROTECTION, MAINT, DEVEL",CAPITAL EXPENDITURE,CAPITAL EXPENDITURE,4990,P123055-SERVICE-Velo LED Replacement project,13/12/2023 00:00:00,280576,4652.99,EL0411,ELCOM PROJECTS LTD,27/11/2023 00:00:00,31/12/2023 00:00:00,P09-2024
P&V,"ASSET PROTECTION, MAINT, DEVEL",CAPITAL EXPENDITURE,CAPITAL EXPENDITURE,4990,P124162-SERVICE-2 x External cameras and relocate the interna,13/12/2023 00:00:00,280591,1344,AR0503,ARENA EUROPE LTD,27/11/2023 00:00:00,31/12/2023 00:00:00,P09-2024
P&V,"ASSET PROTECTION, MAINT, DEVEL",CAPITAL EXPENDITURE,CAPITAL EXPENDITURE,4990,P124397-SERVICE-Pickets Lock accessible parking signs,13/12/2023 00:00:00,280603,408.9,SI0707,SIGNS NOW UK LTD,27/11/2023 00:00:00,31/12/2023 00:00:00,P09-2024
P&V,"ASSET PROTECTION, MAINT, DEVEL",CAPITAL EXPENDITURE,CAPITAL EXPENDITURE,4990,P123925-SERVICE-To reinstate fencing and scrim to Area 4 furt,19/12/2023 00:00:00,280605,1500,RB0221,R 'n' B ENGINEERING LTD,27/11/2023 00:00:00,31/12/2023 00:00:00,P09-2024
P&V,"ASSET PROTECTION, MAINT, DEVEL",CAPITAL EXPENDITURE,CAPITAL EXPENDITURE,4990,P123588-SERVICE-Stanstead Laundry equipment,20/12/2023 00:00:00,280826,16956.99,JH0012,GIRBAU  UK LIMITED,27/11/2023 00:00:00,31/12/2023 00:00:00,P09-2024
P&V,"ASSET PROTECTION, MAINT, DEVEL",CAPITAL EXPENDITURE,CAPITAL EXPENDITURE,4990,P124196-SERVICE-Asbestos  Reinspections at,19/12/2023 00:00:00,280838,125,LI0432,LIFE ENVIRONMENTAL SERVICES LTD,27/11/2023 00:00:00,31/12/2023 00:00:00,P09-2024
P&V,"ASSET PROTECTION, MAINT, DEVEL",CAPITAL EXPENDITURE,CAPITAL EXPENDITURE,4990,P123473-SERVICE-Stanstead Marina Laundry,31/12/2023 00:00:00,281039,21096.08,MI0308,MITIE PROPERTY SERVICES ( UK) LIMITED,27/11/2023 00:00:00,31/12/2023 00:00:00,P09-2024
R&B,INFORMATION TECHNOLOGY,CAPITAL EXPENDITURE,CAPITAL EXPENDITURE,4990,P118194-SERVICE-Finance System Upgrade - Implementation proje,31/12/2023 00:00:00,281054,105.26,CE0021,ADVANCED BUSINESS SOLUTIONS,27/11/2023 00:00:00,31/12/2023 00:00:00,P09-2024
,LEE VALLEY CAMPSITE,CAPITAL EXPENDITURE,CAPITAL EXPENDITURE,4990,Refurbishments-Sewardstone,12/06/2023 00:00,274013,29084.35,KE0023,KENDALL & SONS LIMITED,27/11/2023 00:00:00,31/12/2023 00:00:00,P09-2024
,LEE VALLEY CAMPSITE,CAPITAL EXPENDITURE,CAPITAL EXPENDITURE,4990,Refer to Comp Ref 274013,12/06/2023 00:00,280246,-29084.35,KE0023,KENDALL & SONS LIMITED,27/11/2023 00:00:00,31/12/2023 00:00:00,P09-2024
,LEE VALLEY CAMPSITE,CAPITAL EXPENDITURE,CAPITAL EXPENDITURE,4990,P124019-SERVICE-SC House Refurb Extra Electrical Work,12/05/2023 00:00,280247,9673,KE0023,KENDALL & SONS LIMITED,27/11/2023 00:00:00,31/12/2023 00:00:00,P09-2024
P&V,EAST INDIA DOCK AND BOW CREEK,CAPITAL EXPENDITURE,CAPITAL EXPENDITURE,4990,P118485-SERVICE-PEA for East India Dock Basin,12/12/2023 00:00,280521,1710,TE0626,TEMPLE GROUP LTD,27/11/2023 00:00:00,31/12/2023 00:00:00,P09-2024
P&V,NORTH AREA RANGERS,CAPITAL EXPENDITURE,CAPITAL EXPENDITURE,4990,P124156-SERVICE-Setting out works at St Paul's Field,12/04/2023 00:00,280240,625,JP0189,JPP SURVEYING LTD,27/11/2023 00:00:00,31/12/2023 00:00:00,P09-2024
P&V,NORTH AREA RANGERS,CAPITAL EXPENDITURE,CAPITAL EXPENDITURE,4990,P123464-SERVICE-Architect Brief for St Paul�s Filed Footpath,12/05/2023 00:00,280288,2551.05,LA0471,LANPRO SERVICES LIMITED,27/11/2023 00:00:00,31/12/2023 00:00:00,P09-2024
P&V,NORTH AREA RANGERS,CAPITAL EXPENDITURE,CAPITAL EXPENDITURE,4990,"P123157-SERVICE-St Pauls Field Badger Survey, NE Licence Appl",19/12/2023 00:00:00,280508,1200,MI0489,MIDDLEMARCH ENVIRONMENTAL LTD,27/11/2023 00:00:00,31/12/2023 00:00:00,P09-2024
P&V,SOUTH AREA RANGERS,CAPITAL EXPENDITURE,CAPITAL EXPENDITURE,4990,P123463-SERVICE-Consultation Brief for North Wall Road Develo,13/12/2023 00:00:00,280596,8465,LA0212,LAND USE CONSULTANTS LIMITED,27/11/2023 00:00:00,31/12/2023 00:00:00,P09-2024
P&V,BIODIVERSITY ACTION PLAN,CAPITAL EXPENDITURE,CAPITAL EXPENDITURE,4990,P118411-SERVICE-NVC Phase 2 Survey of Cheshunt Marsh as Per Q,31/12/2023 00:00:00,280855,4870,TE0626,TEMPLE GROUP LTD,27/11/2023 00:00:00,31/12/2023 00:00:00,P09-2024
P&V,BIODIVERSITY ACTION PLAN,CAPITAL EXPENDITURE,CAPITAL EXPENDITURE,4990,P122333-SERVICE-To Provide Habitat Survey Reports for WaterWo,20/12/2023 00:00:00,280856,1718.75,MI0489,MIDDLEMARCH ENVIRONMENTAL LTD,27/11/2023 00:00:00,31/12/2023 00:00:00,P09-2024
,LEE VALLEY ICE CENTRE,CAPITAL EXPENDITURE,CAPITAL EXPENDITURE,4990,P123552-SERVICE-Ice centre planting as per schedule provided,13/12/2023 00:00:00,280507,4110.84,GL0214,GLENDALE GROUNDS MANAGEMENT LIMITED,27/11/2023 00:00:00,31/12/2023 00:00:00,P09-2024
,LEE VALLEY ICE CENTRE,CAPITAL EXPENDITURE,CAPITAL EXPENDITURE,4990,P124263-SERVICE-LVIC Snagging defect 8.1,13/12/2023 00:00:00,280564,1031.66,DE0013,DENNIS SECURITY CENTRE,27/11/2023 00:00:00,31/12/2023 00:00:00,P09-2024
,LEE VALLEY ICE CENTRE,CAPITAL EXPENDITURE,CAPITAL EXPENDITURE,4990,P124372-SERVICE-Project Management Services - Sept/Oct/Nov 23,13/12/2023 00:00:00,280572,26950,WR0199,WRENBRIDGE LAND LTD,27/11/2023 00:00:00,31/12/2023 00:00:00,P09-2024
,LEE VALLEY ICE CENTRE,CAPITAL EXPENDITURE,CAPITAL EXPENDITURE,4990,P124373-SERVICE-Advice in relation to the insolvency of  Buck,13/12/2023 00:00:00,280573,8450,FO0283,FORSTERS LLP,27/11/2023 00:00:00,31/12/2023 00:00:00,P09-2024
,LEE VALLEY ICE CENTRE,CAPITAL EXPENDITURE,CAPITAL EXPENDITURE,4990,P118879-SERVICE-IC the design work for the 5 interp panels.,31/12/2023 00:00:00,281044,320,TO0631,TOP FLOOR CREATIVE,27/11/2023 00:00:00,31/12/2023 00:00:00,P09-2024
P&V,EVENTS MANAGEMENT (PR),THIRD PARTY PAYMENTS,EVENTS,5101,P124217-SERVICE-WWC Security hut - power failure,12/04/2023 00:00,280025,100,BR0018,BRADSHAW ELECTRICAL LIMITED,27/11/2023 00:00:00,31/12/2023 00:00:00,P09-2024
CEO,PR/COMMUNICATIONS,THIRD PARTY PAYMENTS,CONSULTANTS (GENERAL),5110,P121681-SERVICE-Communications Support - LVRPA Corporate,13/12/2023 00:00:00,280570,3000,LO0024,LONDON COMMUNICATIONS AGENCY LTD,27/11/2023 00:00:00,31/12/2023 00:00:00,P09-2024
CEO,PROPERTY,THIRD PARTY PAYMENTS,CONSULTANTS (GENERAL),5110,P123292-SERVICE-Item 3 - Area 4 Marketing Work,12/04/2023 00:00,277440,7500,MO0036,MONTAGU EVANS LLP,27/11/2023 00:00:00,31/12/2023 00:00:00,P09-2024
P&V,"ASSET PROTECTION, MAINT, DEVEL",THIRD PARTY PAYMENTS,CONSULTANTS (GENERAL),5110,P120793-SERVICE-Trackside inspection of Turnford Bridge.,13/12/2023 00:00:00,280252,1878.71,LG0119,NETWORK RAIL INFRASTRUCTURE LTD,27/11/2023 00:00:00,31/12/2023 00:00:00,P09-2024
P&V,"ASSET PROTECTION, MAINT, DEVEL",THIRD PARTY PAYMENTS,CONSULTANTS (GENERAL),5110,P123720-SERVICE-Various options in respect of the Velodrome H,13/12/2023 00:00:00,280287,630,DJ0297,DJ GOODE & ASSOCIATES LTD,27/11/2023 00:00:00,31/12/2023 00:00:00,P09-2024
P&V,"ASSET PROTECTION, MAINT, DEVEL",THIRD PARTY PAYMENTS,CONSULTANTS (GENERAL),5110,P120793-SERVICE-Trackside inspection of Turnford Bridge.,19/12/2023 00:00:00,280867,2944.07,LG0119,NETWORK RAIL INFRASTRUCTURE LTD,27/11/2023 00:00:00,31/12/2023 00:00:00,P09-2024
P&V,"ASSET PROTECTION, MAINT, DEVEL",THIRD PARTY PAYMENTS,CONSULTANTS (GENERAL),5110,P124450-SERVICE-Dobbs Weir - MPG guidance on Legionella,31/12/2023 00:00:00,281072,620,SO0400,SOUTHERN GREEN SERVICES LIMITED,27/11/2023 00:00:00,31/12/2023 00:00:00,P09-2024
P&V,"ASSET PROTECTION, MAINT, DEVEL",THIRD PARTY PAYMENTS,CONSULTANTS (GENERAL),5110,P124451-SERVICE-Sewardstone campsite MPG guidance on Legionel,31/12/2023 00:00:00,281073,620,SO0400,SOUTHERN GREEN SERVICES LIMITED,27/11/2023 00:00:00,31/12/2023 00:00:00,P09-2024
CEO,LEGAL SERVICES,THIRD PARTY PAYMENTS,CONSULTANTS (GENERAL),5110,P124017-SERVICE-Advice - Barrier Upgrade LV Velopark,12/05/2023 00:00,280267,950,BU0668,BURGES SALMON,27/11/2023 00:00:00,31/12/2023 00:00:00,P09-2024
CEO,LEGAL SERVICES,THIRD PARTY PAYMENTS,CONSULTANTS (GENERAL),5110,P124489-SERVICE-GLL Advice,31/12/2023 00:00:00,280311,913.9,WO0344,WOMBLE BOND DICKINSON (UK) LLP,27/11/2023 00:00:00,31/12/2023 00:00:00,P09-2024
P&V,EVENTS MANAGEMENT (PR),THIRD PARTY PAYMENTS,CONSULTANTS (GENERAL),5110,P124257-SERVICE-Counter Terrorism Report,20/12/2023 00:00:00,280752,2500,GR0097,GREENWICH LEISURE LTD,27/11/2023 00:00:00,31/12/2023 00:00:00,P09-2024
R&B,INTERNAL AUDIT/HEALTH & SAFETY,THIRD PARTY PAYMENTS,CONSULTANTS (HEALTH & SAFETY),5123,P121430-SERVICE-Annual H&S Contract November - March 2024,19/12/2023 00:00:00,280862,11673.33,RI0053,RIGHT DIRECTIONS (MANAGEMENT) LTD,27/11/2023 00:00:00,31/12/2023 00:00:00,P09-2024
P&V,SPORTS DEVELOPMENT GRANTS & AG,THIRD PARTY PAYMENTS,ICE TRANSITION FUND (GRANTS),5144,P122276-SERVICE-Lee Valley Ice Centre video,13/12/2023 00:00:00,275226,1000,GR0458,GRAB MEDIA LTD,27/11/2023 00:00:00,31/12/2023 00:00:00,P09-2024
R&B,BALANCE SHEET (AUTHORITY),CREDITORS,EMPLOYEES INCOME TAX,6701,PAYE,12/12/2023 00:00,280514,102835.2,HM0368,HMRC,27/11/2023 00:00:00,31/12/2023 00:00:00,P09-2024
R&B,BALANCE SHEET (AUTHORITY),CREDITORS,EMPLOYEES NATIONAL INSURANCE,6702,PAYE,12/12/2023 00:00,280514,42191.33,HM0368,HMRC,27/11/2023 00:00:00,31/12/2023 00:00:00,P09-2024
R&B,BALANCE SHEET (AUTHORITY),CREDITORS,EMPLOYERS NATIONAL INSURANCE,6704,PAYE,12/12/2023 00:00,280514,68769.43,HM0368,HMRC,27/11/2023 00:00:00,31/12/2023 00:00:00,P09-2024
R&B,BALANCE SHEET (AUTHORITY),CREDITORS,EMPLOYEES PENSION LGPS,6706,EMPLOYEE CONTRIBUTIONS,12/12/2023 00:00,280515,41657.34,LO0334,LONDON PENSION FUND OPERATIONAL ACCOUNT,27/11/2023 00:00:00,31/12/2023 00:00:00,P09-2024
R&B,BALANCE SHEET (AUTHORITY),CREDITORS,EMPLOYEES PENSION LGPS,6706,AVC CONTRIBUTIONS,12/12/2023 00:00,280516,125,LO0455,LOCAL GOVERNMENT AVC DEPARTMENT,27/11/2023 00:00:00,31/12/2023 00:00:00,P09-2024
R&B,BALANCE SHEET (AUTHORITY),CREDITORS,EMPLOYERS PENSION LGPS,6707,EMPLOYER CONTRIBUTIONS,12/12/2023 00:00,280515,77960.62,LO0334,LONDON PENSION FUND OPERATIONAL ACCOUNT,27/11/2023 00:00:00,31/12/2023 00:00:00,P09-2024
R&B,BALANCE SHEET (AUTHORITY),CREDITORS,EMPLOYEES STUDENT LOANS,6709,PAYE,12/12/2023 00:00,280514,3814,HM0368,HMRC,27/11/2023 00:00:00,31/12/2023 00:00:00,P09-2024
R&B,BALANCE SHEET (AUTHORITY),CREDITORS,EMPLOYEES AEO/DEO,6710,ATTACHMENT OF EARNINGS,12/12/2023 00:00,280518,368.91,DE0325,DEPARTMENT FOR WORKS AND PENSIONS,27/11/2023 00:00:00,31/12/2023 00:00:00,P09-2024
R&B,BALANCE SHEET (AUTHORITY),CREDITORS,EMPLOYEES UNION SUBSCRIPTIONS,6711,MEMBERSHIP FEES,12/12/2023 00:00,280517,67.5,UN0002,UNISON Greater London Region,27/11/2023 00:00:00,31/12/2023 00:00:00,P09-2024
R&B,BALANCE SHEET (AUTHORITY),CREDITORS,EMPLOYEES SMP/SSP,6712,PAYE,12/12/2023 00:00,280514,-1929.71,HM0368,HMRC,27/11/2023 00:00:00,31/12/2023 00:00:00,P09-2024
R&B,BALANCE SHEET (AUTHORITY),CREDITORS,CONSTRUCTION INDUSTRY SCHEME,6721,KENDALL & SONS LIMITED,29/11/2023 00:00:00,280171,-476.8,KE0023,KENDALL & SONS LIMITED,27/11/2023 00:00:00,31/12/2023 00:00:00,P09-2024
R&B,BALANCE SHEET (AUTHORITY),CREDITORS,CONSTRUCTION INDUSTRY SCHEME,6721,CAPSER,29/11/2023 00:00:00,280179,-780,MO0041,CAPSER,27/11/2023 00:00:00,31/12/2023 00:00:00,P09-2024
R&B,BALANCE SHEET (AUTHORITY),CREDITORS,CONSTRUCTION INDUSTRY SCHEME,6721,KENDALL & SONS LIMITED,12/06/2023 00:00,280450,-2210.4,KE0023,KENDALL & SONS LIMITED,27/11/2023 00:00:00,31/12/2023 00:00:00,P09-2024
R&B,BALANCE SHEET (AUTHORITY),CREDITORS,CONSTRUCTION INDUSTRY SCHEME,6721,CAPSER,12/06/2023 00:00,280457,-230,MO0041,CAPSER,27/11/2023 00:00:00,31/12/2023 00:00:00,P09-2024
R&B,BALANCE SHEET (AUTHORITY),CREDITORS,CONSTRUCTION INDUSTRY SCHEME,6721,JOYCE,13/12/2023 00:00:00,280598,460,IN0016,INLAND REVENUE ONLY 948/L1005,27/11/2023 00:00:00,31/12/2023 00:00:00,P09-2024
R&B,BALANCE SHEET (AUTHORITY),CREDITORS,CONSTRUCTION INDUSTRY SCHEME,6721,KENDALL,13/12/2023 00:00:00,280598,1933.8,IN0016,INLAND REVENUE ONLY 948/L1005,27/11/2023 00:00:00,31/12/2023 00:00:00,P09-2024
R&B,BALANCE SHEET (AUTHORITY),CREDITORS,CONSTRUCTION INDUSTRY SCHEME,6721,CASPER,13/12/2023 00:00:00,280598,780,IN0016,INLAND REVENUE ONLY 948/L1005,27/11/2023 00:00:00,31/12/2023 00:00:00,P09-2024
R&B,BALANCE SHEET (AUTHORITY),CREDITORS,CONSTRUCTION INDUSTRY SCHEME,6721,R G JOYCE,13/12/2023 00:00:00,280683,-60,JO0019,R G JOYCE,27/11/2023 00:00:00,31/12/2023 00:00:00,P09-2024
